{"text_format":"1","workbook":"xlsx","n_sheets":4,"sheets":["Cerere de Finantare","Anexa 1","Anexa 2","Anexa 3"],"not_rendered":{"charts":0,"images":1,"macros":1,"external_links":0,"defined_names":4,"comments":0,"pivot_tables":0},"unopened":[],"bounds":{"document_bytes":16777216,"sheet_cells":100000,"rows_first":2000,"rows_last":500,"rows_between":2000,"halvings":0,"cell_chars":16384,"cell_head_chars":4096},"cells_cut":0,"cells_raw":0,"read":"whole","date_system":"1900"}

{"sheet":"Cerere de Finantare","index":0,"n_rows":1137,"n_cols":60,"rows_kept":1137,"cut":false,"hidden":false,"merged":[[767,0,767,60],[801,0,801,60],[836,0,836,60],[886,0,886,61],[645,0,645,34],[645,35,645,43],[645,44,645,51],[645,52,645,60],[640,0,640,34],[640,35,640,43],[640,44,640,51],[640,52,640,60],[641,0,641,34],[641,35,641,43],[641,44,641,51],[641,52,641,60],[642,0,642,34],[642,35,642,43],[642,44,642,51],[642,52,642,60],[643,0,643,34],[643,35,643,43],[643,44,643,51],[643,52,643,60],[644,0,644,34],[644,35,644,43],[644,44,644,51],[644,52,644,60],[647,0,647,34],[647,35,647,43],[497,0,497,34],[497,35,497,43],[497,44,497,51],[497,52,497,60],[498,0,498,34],[498,35,498,43],[498,44,498,51],[498,52,498,60],[499,0,499,34],[499,35,499,43],[499,44,499,51],[499,52,499,60],[625,0,625,34],[625,35,625,43],[625,44,625,51],[625,52,625,60],[696,1,696,24],[647,44,647,51],[647,52,647,60],[648,0,648,34],[648,35,648,43],[648,44,648,51],[648,52,648,60],[649,0,649,34],[649,35,649,43],[649,44,649,51],[649,52,649,60],[650,0,650,34],[650,35,650,43],[650,44,650,51],[650,52,650,60],[651,0,651,34],[651,35,651,43],[651,44,651,51],[651,52,651,60],[656,0,656,34],[656,35,656,43],[656,44,656,51],[656,52,656,60],[657,0,657,34],[657,35,657,43],[657,44,657,51],[657,52,657,60],[658,0,658,34],[658,35,658,58],[659,0,659,34],[659,35,659,43],[659,44,659,51],[659,52,659,60],[660,0,660,34],[660,35,660,43],[660,44,660,51],[660,52,660,60],[638,0,638,34],[638,35,638,43],[638,44,638,51],[638,52,638,60],[639,0,639,34],[639,35,639,43],[639,44,639,51],[639,52,639,60],[646,0,646,34],[646,35,646,43],[646,44,646,51],[646,52,646,60],[661,0,661,34],[661,35,661,43],[661,44,661,51],[661,52,661,60],[652,0,652,34],[652,35,652,43],[652,44,652,51],[652,52,652,60],[653,0,653,34],[653,35,653,43],[653,44,653,51],[653,52,653,60],[654,0,654,34],[654,35,654,43],[654,44,654,51],[654,52,654,60],[655,0,655,34],[655,35,655,43],[655,44,655,51],[655,52,655,60],[634,0,634,34],[634,35,634,43],[634,44,634,51],[634,52,634,60],[635,0,635,34],[635,35,635,43],[635,44,635,51],[635,52,635,60],[630,0,630,34],[630,35,630,43],[630,44,630,51],[630,52,630,60],[636,0,636,34],[636,35,636,43],[636,44,636,51],[636,52,636,60],[637,0,637,34],[637,35,637,43],[637,44,637,51],[637,52,637,60],[633,0,633,34],[633,35,633,43],[633,44,633,51],[633,52,633,60],[626,0,626,34],[626,35,626,43],[626,44,626,51],[626,52,626,60],[627,0,627,34],[627,35,627,43],[627,44,627,51],[627,52,627,60],[631,0,631,24],[631,35,631,60],[632,0,632,34],[632,35,632,43],[632,44,632,51],[632,52,632,60],[620,0,620,34],[620,35,620,43],[620,44,620,51],[620,52,620,60],[621,0,621,34],[621,35,621,43],[621,44,621,51],[621,52,621,60],[622,0,622,34],[622,35,622,43],[622,44,622,51],[622,52,622,60],[623,0,623,34],[623,35,623,43],[623,44,623,51],[623,52,623,60],[624,0,624,34],[624,35,624,43],[624,44,624,51],[624,52,624,60],[610,0,610,34],[610,35,610,43],[610,44,610,51],[610,52,610,60],[611,0,611,34],[611,35,611,43],[611,44,611,51],[611,52,611,60],[612,0,612,34],[618,0,618,34],[618,35,618,43],[618,44,618,51],[618,52,618,60],[619,0,619,34],[619,35,619,43],[619,44,619,51],[619,52,619,60],[605,0,605,34],[605,35,605,43],[605,44,605,51],[605,52,605,60],[606,0,606,34],[606,35,606,43],[606,44,606,51],[606,52,606,60],[607,0,607,34],[607,35,607,43],[607,44,607,51],[607,52,607,60],[608,0,608,34],[608,35,608,43],[608,44,608,51],[608,52,608,60],[609,0,609,34],[609,35,609,43],[609,44,609,51],[609,52,609,60],[790,0,790,42],[782,0,782,3],[782,4,782,41],[782,42,782,50],[782,51,782,60],[783,0,783,3],[783,4,783,41],[783,42,783,50],[783,51,783,60],[784,0,784,3],[784,4,784,41],[784,42,784,50],[784,51,784,60],[786,0,786,3],[786,4,786,41],[786,42,786,50],[786,51,786,60],[787,0,787,3],[787,4,787,41],[787,42,787,50],[787,51,787,60],[785,0,785,3],[785,4,785,41],[785,42,785,50],[785,51,785,60],[777,0,777,3],[777,4,777,41],[777,42,777,50],[777,51,777,60],[778,0,778,3],[778,4,778,41],[778,42,778,50],[778,51,778,60],[780,0,780,3],[780,4,780,41],[780,42,780,50],[780,51,780,60],[781,0,781,3],[781,4,781,41],[781,42,781,50],[781,51,781,60],[788,0,788,41],[788,42,788,60],[779,0,779,3],[779,4,779,41],[779,42,779,50],[779,51,779,60],[771,51,771,60],[772,0,772,3],[772,4,772,41],[772,42,772,50],[772,51,772,60],[773,0,773,3],[773,4,773,41],[773,42,773,50],[773,51,773,60],[775,0,775,3],[775,4,775,41],[775,42,775,50],[775,51,775,60],[776,0,776,3],[776,4,776,41],[776,42,776,50],[776,51,776,60],[774,0,774,3],[774,4,774,41],[774,42,774,50],[774,51,774,60],[692,0,692,31],[692,35,692,42],[692,44,692,60],[693,0,693,34],[693,35,693,43],[693,44,693,60],[694,0,694,30],[694,35,694,43],[694,44,694,60],[687,0,687,34],[687,35,687,43],[687,44,687,51],[687,52,687,60],[688,0,688,34],[688,35,688,43],[688,44,688,51],[688,52,688,60],[689,0,689,13],[689,15,689,34],[689,35,689,43],[689,44,689,51],[689,52,689,60],[690,0,690,13],[690,15,690,34],[690,35,690,43],[690,44,690,51],[690,52,690,60],[683,0,683,34],[683,35,683,43],[683,44,683,51],[683,52,683,60],[684,0,684,34],[684,35,684,43],[684,44,684,51],[684,52,684,60],[685,0,685,34],[685,35,685,43],[685,44,685,51],[685,52,685,60],[686,0,686,34],[686,35,686,43],[686,44,686,51],[686,52,686,60],[691,0,691,34],[691,35,691,43],[691,44,691,51],[691,52,691,60],[678,0,678,34],[678,35,678,43],[678,44,678,51],[678,52,678,60],[679,0,679,34],[679,35,679,43],[679,44,679,51],[679,52,679,60],[680,0,680,34],[680,35,680,60],[681,0,681,34],[681,35,681,43],[681,44,681,51],[681,52,681,60],[682,0,682,34],[682,35,682,43],[682,44,682,51],[682,52,682,60],[673,0,673,34],[673,35,673,43],[673,44,673,51],[673,52,673,60],[674,0,674,34],[674,35,674,43],[674,44,674,51],[674,52,674,60],[675,0,675,17],[675,35,675,60],[676,0,676,34],[676,35,676,43],[676,44,676,51],[676,52,676,60],[677,0,677,34],[677,35,677,43],[677,44,677,51],[677,52,677,60],[667,0,667,34],[667,35,667,43],[667,44,667,51],[667,52,667,60],[668,0,668,34],[668,35,668,43],[668,44,668,51],[668,52,668,60],[669,0,669,34],[669,35,669,43],[669,44,669,51],[669,52,669,60],[670,0,670,34],[670,35,670,43],[670,44,670,51],[670,52,670,60],[671,0,671,34],[671,35,671,43],[671,44,671,51],[671,52,671,60],[664,0,664,34],[664,35,664,43],[664,44,664,51],[664,52,664,60],[665,0,665,34],[665,35,665,43],[665,44,665,51],[665,52,665,60],[600,0,600,34],[600,35,600,43],[600,44,600,51],[600,52,600,60],[601,0,601,34],[601,35,601,43],[601,44,601,51],[601,52,601,60],[603,0,603,34],[603,52,603,60],[603,35,603,43],[603,44,603,51],[604,0,604,34],[604,35,604,43],[604,44,604,51],[604,52,604,60],[612,35,612,43],[612,44,612,51],[612,52,612,60],[613,0,613,34],[613,35,613,43],[613,44,613,51],[613,52,613,60],[614,0,614,34],[597,52,597,60],[598,0,598,34],[598,35,598,43],[598,44,598,51],[598,52,598,60],[599,0,599,34],[599,35,599,43],[599,44,599,51],[599,52,599,60],[662,0,662,34],[662,35,662,43],[662,44,662,51],[662,52,662,60],[663,0,663,34],[663,35,663,43],[663,44,663,51],[663,52,663,60],[614,35,614,43],[614,44,614,51],[614,52,614,60],[615,0,615,34],[615,35,615,43],[615,44,615,51],[615,52,615,60],[616,0,616,34],[616,35,616,43],[616,44,616,51],[616,52,616,60],[617,0,617,34],[617,35,617,43],[617,44,617,51],[617,52,617,60],[602,0,602,34],[602,35,602,43],[602,44,602,51],[602,52,602,60],[586,1,586,57],[587,0,587,34],[587,35,587,60],[588,0,588,34],[588,35,588,43],[588,44,588,51],[588,52,588,60],[589,0,589,60],[591,1,591,5],[591,7,591,12],[591,35,591,44],[593,0,593,60],[594,0,594,34],[594,35,594,43],[594,44,594,51],[594,52,594,60],[591,18,592,34],[595,0,595,34],[595,35,595,43],[595,44,595,51],[595,52,595,60],[596,0,596,34],[596,35,596,43],[596,44,596,51],[596,52,596,60],[597,0,597,34],[597,35,597,43],[597,44,597,51],[581,0,581,34],[581,35,581,43],[581,44,581,51],[581,52,581,60],[582,0,582,31],[582,35,582,42],[582,44,582,60],[583,0,583,34],[583,35,583,43],[583,44,583,60],[584,0,584,30],[584,35,584,43],[584,44,584,60],[577,0,577,34],[577,35,577,43],[577,44,577,51],[577,52,577,60],[578,0,578,34],[578,35,578,43],[578,44,578,51],[578,52,578,60],[579,0,579,13],[579,15,579,34],[579,35,579,43],[579,44,579,51],[579,52,579,60],[580,0,580,13],[580,15,580,34],[580,35,580,43],[580,44,580,51],[580,52,580,60],[572,0,572,34],[572,35,572,43],[572,44,572,51],[572,52,572,60],[573,0,573,34],[573,35,573,43],[573,44,573,51],[573,52,573,60],[574,0,574,34],[574,35,574,43],[574,44,574,51],[574,52,574,60],[575,0,575,34],[575,35,575,43],[575,44,575,51],[575,52,575,60],[576,0,576,34],[576,35,576,43],[576,44,576,51],[576,52,576,60],[567,0,567,34],[567,35,567,43],[567,44,567,51],[567,52,567,60],[568,0,568,34],[568,35,568,43],[568,44,568,51],[568,52,568,60],[569,0,569,34],[569,35,569,43],[569,44,569,51],[569,52,569,60],[570,0,570,34],[570,35,570,60],[571,0,571,34],[571,35,571,43],[571,44,571,51],[571,52,571,60],[561,0,561,34],[561,35,561,43],[561,44,561,51],[561,52,561,60],[562,0,562,34],[562,35,562,43],[562,44,562,51],[562,52,562,60],[564,0,564,34],[564,35,564,43],[564,44,564,51],[564,52,564,60],[565,0,565,17],[565,35,565,60],[566,0,566,34],[566,35,566,43],[566,44,566,51],[566,52,566,60],[563,0,563,34],[563,35,563,43],[563,44,563,51],[563,52,563,60],[555,0,555,34],[555,35,555,43],[555,44,555,51],[555,52,555,60],[557,0,557,34],[557,35,557,43],[557,44,557,51],[557,52,557,60],[558,0,558,34],[558,35,558,43],[558,44,558,51],[558,52,558,60],[559,0,559,34],[559,35,559,43],[559,44,559,51],[559,52,559,60],[560,0,560,34],[560,35,560,43],[560,44,560,51],[560,52,560,60],[556,0,556,34],[556,35,556,43],[556,44,556,51],[556,52,556,60],[549,0,549,34],[549,35,549,43],[549,44,549,51],[549,52,549,60],[550,0,550,34],[550,35,550,43],[550,44,550,51],[550,52,550,60],[552,0,552,34],[552,35,552,43],[552,44,552,51],[552,52,552,60],[553,0,553,34],[553,35,553,43],[553,44,553,51],[553,52,553,60],[554,0,554,34],[554,35,554,43],[554,44,554,51],[554,52,554,60],[551,0,551,34],[551,35,551,43],[551,44,551,51],[551,52,551,60],[544,1,544,13],[544,15,544,20],[544,21,544,25],[544,27,544,32],[544,47,544,56],[546,0,546,34],[546,35,546,43],[546,44,546,51],[546,52,546,60],[547,0,547,34],[547,35,547,43],[547,44,547,51],[547,52,547,60],[548,0,548,34],[548,35,548,43],[548,44,548,51],[548,52,548,60],[544,34,545,46],[535,0,535,31],[535,35,535,42],[535,44,535,60],[536,0,536,34],[536,35,536,43],[536,44,536,60],[537,0,537,30],[537,35,537,43],[537,44,537,60],[539,1,539,57],[540,0,540,34],[540,35,540,60],[541,0,541,34],[541,35,541,43],[541,44,541,51],[541,52,541,60],[542,0,542,60],[532,0,532,13],[532,15,532,34],[532,35,532,43],[532,44,532,51],[532,52,532,60],[533,0,533,13],[533,15,533,34],[533,35,533,43],[533,44,533,51],[533,52,533,60],[534,0,534,34],[534,35,534,43],[534,44,534,51],[534,52,534,60],[527,0,527,34],[527,35,527,43],[527,44,527,51],[527,52,527,60],[528,0,528,34],[528,35,528,43],[528,44,528,51],[528,52,528,60],[529,0,529,34],[529,35,529,43],[529,44,529,51],[529,52,529,60],[530,0,530,34],[530,35,530,43],[530,44,530,51],[530,52,530,60],[531,0,531,34],[531,35,531,43],[519,0,519,34],[519,35,519,43],[519,44,519,51],[519,52,519,60],[520,0,520,34],[520,35,520,43],[520,44,520,51],[520,52,520,60],[521,0,521,34],[521,35,521,43],[521,44,521,51],[521,52,521,60],[531,44,531,51],[531,52,531,60],[522,0,522,34],[522,35,522,43],[522,44,522,51],[522,52,522,60],[523,0,523,34],[523,35,523,60],[524,0,524,34],[524,35,524,43],[524,44,524,51],[524,52,524,60],[525,0,525,34],[525,35,525,43],[525,44,525,51],[525,52,525,60],[526,0,526,34],[526,35,526,43],[526,44,526,51],[526,52,526,60],[514,0,514,34],[514,35,514,43],[514,44,514,51],[514,52,514,60],[515,0,515,34],[515,35,515,43],[515,44,515,51],[515,52,515,60],[516,0,516,34],[516,35,516,43],[516,44,516,51],[516,52,516,60],[517,0,517,34],[517,35,517,43],[517,44,517,51],[517,52,517,60],[518,0,518,17],[518,35,518,60],[509,0,509,34],[509,35,509,43],[509,44,509,51],[509,52,509,60],[510,0,510,34],[510,35,510,43],[510,44,510,51],[510,52,510,60],[511,0,511,34],[511,35,511,43],[511,44,511,51],[511,52,511,60],[512,0,512,34],[512,35,512,43],[512,44,512,51],[512,52,512,60],[513,0,513,34],[513,35,513,58],[504,0,504,34],[504,35,504,43],[504,44,504,51],[504,52,504,60],[505,0,505,34],[505,35,505,43],[505,44,505,51],[505,52,505,60],[506,0,506,34],[506,35,506,43],[506,44,506,51],[506,52,506,60],[507,0,507,34],[507,35,507,43],[507,44,507,51],[507,52,507,60],[508,0,508,34],[508,35,508,43],[508,44,508,51],[508,52,508,60],[493,0,493,34],[493,35,493,43],[493,44,493,51],[493,52,493,60],[494,0,494,34],[494,35,494,43],[494,44,494,51],[494,52,494,60],[501,0,501,34],[501,35,501,43],[501,44,501,51],[501,52,501,60],[502,0,502,34],[502,35,502,43],[502,44,502,51],[502,52,502,60],[503,0,503,34],[503,35,503,43],[503,44,503,51],[503,52,503,60],[500,0,500,34],[500,35,500,43],[500,44,500,51],[500,52,500,60],[495,0,495,34],[495,35,495,43],[495,44,495,51],[495,52,495,60],[496,0,496,34],[496,35,496,43],[496,44,496,51],[496,52,496,60],[489,0,489,34],[489,35,489,43],[489,44,489,51],[489,52,489,60],[488,0,488,34],[488,35,488,43],[488,44,488,51],[488,52,488,60],[490,0,490,34],[490,35,490,43],[490,44,490,51],[490,52,490,60],[491,0,491,34],[491,35,491,43],[491,44,491,51],[491,52,491,60],[492,0,492,34],[492,35,492,43],[492,44,492,51],[492,52,492,60],[483,0,483,34],[483,35,483,43],[483,44,483,51],[483,52,483,60],[484,0,484,34],[484,35,484,43],[484,44,484,51],[484,52,484,60],[485,0,485,34],[485,35,485,43],[485,44,485,51],[485,52,485,60],[486,0,486,24],[486,35,486,60],[487,0,487,34],[487,35,487,43],[487,44,487,51],[487,52,487,60],[478,0,478,34],[478,35,478,43],[478,44,478,51],[478,52,478,60],[479,0,479,34],[479,35,479,43],[479,44,479,51],[479,52,479,60],[480,0,480,34],[480,35,480,43],[480,44,480,51],[480,52,480,60],[481,0,481,34],[481,35,481,43],[481,44,481,51],[481,52,481,60],[482,0,482,34],[482,35,482,43],[482,44,482,51],[482,52,482,60],[473,0,473,34],[473,35,473,43],[473,44,473,51],[473,52,473,60],[474,0,474,34],[474,35,474,43],[474,44,474,51],[474,52,474,60],[475,0,475,34],[475,35,475,43],[475,44,475,51],[475,52,475,60],[476,0,476,34],[476,35,476,43],[476,44,476,51],[476,52,476,60],[477,0,477,34],[477,35,477,43],[477,44,477,51],[477,52,477,60],[468,0,468,34],[468,35,468,43],[468,44,468,51],[468,52,468,60],[469,0,469,34],[469,35,469,43],[469,44,469,51],[469,52,469,60],[470,0,470,34],[470,35,470,43],[470,44,470,51],[470,52,470,60],[471,0,471,34],[471,35,471,43],[471,44,471,51],[471,52,471,60],[472,0,472,34],[472,35,472,43],[472,44,472,51],[472,52,472,60],[463,0,463,34],[463,35,463,43],[463,44,463,51],[463,52,463,60],[464,0,464,34],[464,35,464,43],[464,44,464,51],[464,52,464,60],[465,0,465,34],[465,35,465,43],[465,44,465,51],[465,52,465,60],[466,0,466,34],[466,35,466,43],[466,44,466,51],[466,52,466,60],[467,0,467,34],[467,35,467,43],[467,44,467,51],[467,52,467,60],[458,0,458,34],[458,35,458,43],[458,44,458,51],[458,52,458,60],[459,0,459,34],[459,35,459,43],[459,44,459,51],[459,52,459,60],[460,0,460,34],[460,35,460,43],[460,44,460,51],[460,52,460,60],[461,0,461,34],[461,35,461,43],[461,44,461,51],[461,52,461,60],[462,0,462,34],[462,35,462,43],[462,44,462,51],[462,52,462,60],[452,0,452,34],[452,35,452,43],[452,44,452,51],[452,52,452,60],[454,44,454,51],[454,52,454,60],[455,0,455,34],[455,35,455,43],[455,44,455,51],[455,52,455,60],[456,0,456,34],[456,35,456,43],[456,44,456,51],[456,52,456,60],[457,0,457,34],[457,35,457,43],[457,44,457,51],[457,52,457,60],[128,7,128,22],[128,53,128,57],[134,7,134,22],[130,30,130,39],[133,30,133,39],[134,30,134,39],[266,24,266,49],[244,48,244,55],[445,1,445,58],[446,0,446,34],[446,35,446,60],[447,0,447,34],[447,35,447,43],[447,44,447,51],[447,52,447,60],[448,0,448,60],[450,1,450,13],[450,15,450,20],[450,21,450,25],[450,27,450,32],[450,34,451,46],[450,47,450,56],[997,30,997,34],[997,35,997,41],[997,42,997,49],[997,50,997,54],[997,55,997,60],[1033,1,1033,31],[1032,41,1032,52],[1033,41,1033,50],[1020,5,1020,60],[1021,5,1021,60],[1022,5,1022,60],[1024,5,1024,60],[1025,5,1025,60],[1026,5,1026,60],[1027,5,1027,60],[1028,5,1028,60],[1029,5,1029,60],[1030,5,1030,60],[1002,0,1002,60]],"merged_total":2464,"flags":["merged_cut"]}
[]
[]
[]
[]
[]
[]
[null,null,null,null,null,null,null,null,null,null,"Grupul de Actiune Locala din Muntii Metaliferi Trascau",null,null,null,null,null,null,null,null,null,null,null,null,null,null,null,null,null,null,null,null,null,null,null,null,null,null,null,null,null,null,null,"SECŢIUNE GENERALĂ"]
[null,null,null,null,null,null,null,null,null,null," si Muntele Mare"]
["A PREZENTARE GENERALĂ"]
[null,null,null,null,null,null,null,null,null,"16 Cooperare"]
[null,"A1 Măsura",null,null,null,null,null,null,null," - Masura: 16.7/2A",null,null,null,null,null,null,null,null,null,null,null,"Cooperare pentru abordări comune privind proiectele de mediu și practicile ecologice utilizând surse regenerabile"]
[]
[null,"   Cod CEI selectat:"]
[]
[null,"A2 Denumire lider de proiect:"]
[]
[null,"A3 Titlu proiect:"]
[]
[]
[]
[]
[]
[]
[null,"A4 Scopul si obiectivele acordului de cooperare:"]
[]
[]
[]
[]
[]
[]
[null,"A5 Descrierea succintă a proiectului:"]
[]
[]
[]
[]
[]
[]
[]
[]
[]
[]
[]
[]
[]
[]
["A6 Localizarea proiectului (unde se desfasoara efectiv activitatile descrise in proiect)"]
[]
[null,null,"A6.1 Tara",null,null,null,null,null,null,null,null,null,null,null,null,null,null,null,null,null,null,null,null,null,null,null,null,null,null,null,null,null,null,null,null,null,null,null,null,null,null,"A6.2. Programul de dezvoltare rurala"]
[]
[null,null,"A6.3 Regiunea de dezvoltare:",null,null,null,null,null,null,null,null,null,null,null,null,null,null,null,null,null,null,null,null,null,null,null,null,null,null,null,null,null,null,null,null,null,null,null,null,null,null,"A6.4. Judeţ/Municipiul Bucureşti:"]
[]
[]
[null,"Obiectivele investiţiei",null,null,null,null,null,null,null,null,null,null,null,null,null,"Judeţ",null,null,null,null,null,null,null,null,null,null,null,"Comună/Oraş",null,null,null,null,null,null,null,null,null,null,null,"Sat/Sector",null,null,null,null,null,null,null,null,null,null,"Sat/Sector"]
[]
[null,"Locatia principala"]
[]
[]
[]
[]
[]
[]
[]
[null,"Locatia secundara"]
[]
[]
[]
[]
[]
[]
[]
[]
[]
[]
[]
[]
[]
[]
[]
[]
[]
[]
[]
[]
[]
[]
[]
[]
[]
[]
[]
[]
[]
[]
[]
[]
[]
[]
[]
[]
[]
[]
[]
[]
[]
[]
[]
[]
[]
[]
[]
[]
[]
[]
[]
[]
[]
[]
[]
[]
[]
[]
[]
[]
[]
[]
[]
[]
[null,"A7 Date despre tipul de proiect şi beneficiar:"]
[null,null,"A7.1  ",null,null,null,null,"Proiect pilot",null,null,null,null,null,null,null,null,null,null,null,null,null,null,null,"  A 7.2 Parteneriat format din:",null,null,null,null,null,null,null,null,null,null,null,null,null,null,null,null,null,null,null,"A7.3",null,null,"Prescorare"]
[null,null,null,null,null,null,null,null,null,null,null,null,null,null,null,null,null,null,null,null,null,null,null,null,null,null,null,null,null,null,"Fermieri"]
[null,null,null,null,null,null,null,"Dezvoltarea de noi produse, practici,",null,null,null,null,null,null,null,null,null,null,null,null,null,null,null,null,null,null,null,null,null,null,"Consultant",null,null,null,null,null,null,null,null,null,null,null,null,"A7.4",null,null,"Sectoare finanţate:"]
[null,null,null,null,null,null,null,"procese şi tehnologii în sectorul agro-",null,null,null,null,null,null,null,null,null,null,null,null,null,null,null,null,null,null,null,null,null,null,"Institut de cercetare",null,null,null,null,null,null,null,null,null,null,null,null,null,null,null,"animal"]
[null,null,null,null,null,null,null,"alimentar",null,null,null,null,null,null,null,null,null,null,null,null,null,null,null,null,null,null,null,null,null,null,"Stațiune de cercetare",null,null,null,null,null,null,null,null,null,null,null,null,null,null,null,"vegetal"]
[null,null,null,null,null,null,null,null,null,null,null,null,null,null,null,null,null,null,null,null,null,null,null,null,null,null,null,null,null,null,"IMM",null,null,null,null,null,null,null,null,null,null,null,null,null,null,null,"mixt (animal şi vegetal)"]
[null,null,null,null,null,null,null,null,null,null,null,null,null,null,null,null,null,null,null,null,null,null,null,null,null,null,null,null,null,null,"ONG",null,null,null,null,null,null,null,null,null,null,null,null,null,null,null,"pomicol"]
[null,null,null,null,null,null,null,null,null,null,null,null,null,null,null,null,null,null,null,null,null,null,null,null,null,null,null,null,null,null,"Consiliul local prin UAT",null,null,null,null,null,null,null,null,null,null,null,null,null,null,null,"procesare"]
[null,null,null,null,null,null,null,null,null,null,null,null,null,null,null,null,null,null,null,null,null,null,null,null,null,null,null,null,null,null,null,null,null,null,null,null,null,null,null,null,null,null,null,null,null,null,"cercetare"]
[]
[]
[null,"A7.5  Tip proiect",null,null,null,null,null,null,null,null,null,null,null,null,"Cu construcţii-montaj",null,null,null,null,null,null,null,null,null,null,null,null,null,"  A 7.6 Tip investiție"]
[null,null,null,null,null,null,null,null,null,null,null,null,null,null,"Fără construcţii-montaj",null,null,null,null,null,null,null,null,null,null,null,null,null,null,null,null,null,null,null,null,"Investiţie nouă (în cazul în care sunt prevăzute investiții aferente sM 4.1 și sM4.1a."]
[null,null,null,null,null,null,null,null,null,null,null,null,null,null,null,null,null,null,null,null,null,null,null,null,null,null,null,null,null,null,null,null,null,null,null,"Modernizare /Extindere (în cazul în care sunt prevăzute investiții aferente sM 4.1 și sM4.1a."]
[]
[]
[null,null,null,null,null,null,null,null,null,null,null,null,null,null,null,null,null,null,null,null,null,null,null,null,null,null,null,null,null,null,null,null,null,null,null,"Investiție specifică masuri 16.7/2A."]
[]
[null,"A7.7 Acordul de cooperare numărul :",null,null,null,null,null,null,null,null,null,null,null,null,null,null,null,null,null,null,null,null,null,null,null,null,null,"încheiat la data de :"]
[]
[null,"A7.8 Acordul de cooperare încheiat între :"]
[]
[null,"Denumire consultant:"]
[null,null,null,null,null,null,null,null,null,null,null,null,null,null,null,null,null,null,null,null,null,null,null,null,null,null,null,null,null,null,null,null,null,"CUI"]
[]
[null,null,null,null,null,null,null,null,null,null,null,null,null,null,null,null,null,null,null,null,null,null,null,null,null,null,null,null,null,null,null,null,null,"Nr. Înreg. ONRC"]
[]
[null,"Denumire proiectant:"]
[null,null,null,null,null,null,null,null,null,null,null,null,null,null,null,null,null,null,null,null,null,null,null,null,null,null,null,null,null,null,null,null,null,"CUI"]
[]
[null,null,null,null,null,null,null,null,null,null,null,null,null,null,null,null,null,null,null,null,null,null,null,null,null,null,null,null,null,null,null,null,null,"Nr. Înreg. ONRC"]
[]
[]
[]
[null,"Detaliere criterii de selectie îndeplinite"]
[]
[]
[]
[]
[]
[]
[null,"A8",null,null,"Date necesare obţinerii extrasului de carte funciară pentru imobilul (clădiri şi/sau terenuri) pe care sunt/vor fi realizate\ninvestiţiile, pentru Cererile de Finanţare care vizează investiţii în lucrări privind construcţii noi sau modernizări construcții.\n(dacă este cazul, se va adăuga câte o linie pentru fiecare extras de carte funciară necesar)."]
[]
[]
[]
[]
[null,null,null,null,null,null,null,null,null,null,"Judeţ/Municipiul Bucureşti:",null,null,null,null,null,null,null,null,null,null,null,null,null,null,null,null,null,null,null,null,null,null,"Unitate Administrativ Teritorială \n(UAT: Oraș / Comună / Sector)"]
[]
[]
[null,null,null,null,null,null,null,null,null,null,null,"Identificator Electronic",null,null,null,null,null,null,null,null,null,null,null,"Nr. Carte Funciară",null,null,null,null,null,null,null,null,null,null,null,"Nr. Cadastral",null,null,null,null,null,null,null,null,null,null,"Nr. Topografic"]
[]
[]
[]
[null,null,null,null,"Judeţ/Municipiul Bucureşti:"]
[]
[]
[null,"A8",null,null,"Date necesare obţinerii extrasului de carte funciară pentru imobilul (clădiri şi/sau terenuri) pe care sunt/vor fi realizate\ninvestiţiile, pentru Cererile de Finanţare care vizează investiţii în lucrări privind construcţii noi sau modernizări construcții.\n(dacă este cazul, se va adăuga câte o linie pentru fiecare extras de carte funciară necesar)."]
[]
[]
[]
[]
[null,null,null,null,null,null,null,null,null,null,"Judeţ/Municipiul Bucureşti:",null,null,null,null,null,null,null,null,null,null,null,null,null,null,null,null,null,null,null,null,null,null,"Unitate Administrativ Teritorială \n(UAT: Oraș / Comună / Sector)"]
[]
[]
[null,null,null,null,null,null,null,null,null,null,null,"Identificator Electronic",null,null,null,null,null,null,null,null,null,null,null,"Nr. Carte Funciară",null,null,null,null,null,null,null,null,null,null,null,"Nr. Cadastral",null,null,null,null,null,null,null,null,null,null,"Nr. Topografic"]
[]
[]
[]
[null,null,null,null,"Judeţ/Municipiul Bucureşti:"]
[]
[]
[null,"A8",null,null,"Date necesare obţinerii extrasului de carte funciară pentru imobilul (clădiri şi/sau terenuri) pe care sunt/vor fi realizate\ninvestiţiile, pentru Cererile de Finanţare care vizează investiţii în lucrări privind construcţii noi sau modernizări construcții.\n(dacă este cazul, se va adăuga câte o linie pentru fiecare extras de carte funciară necesar)."]
[]
[]
[]
[]
[null,null,null,null,null,null,null,null,null,null,"Judeţ/Municipiul Bucureşti:",null,null,null,null,null,null,null,null,null,null,null,null,null,null,null,null,null,null,null,null,null,null,"Unitate Administrativ Teritorială \n(UAT: Oraș / Comună / Sector)"]
[]
[]
[null,null,null,null,null,null,null,null,null,null,null,"Identificator Electronic",null,null,null,null,null,null,null,null,null,null,null,"Nr. Carte Funciară",null,null,null,null,null,null,null,null,null,null,null,"Nr. Cadastral",null,null,null,null,null,null,null,null,null,null,"Nr. Topografic"]
[]
[]
[]
[null,null,null,null,"Judeţ/Municipiul Bucureşti:"]
[]
[]
[null,"A8",null,null,"Date necesare obţinerii extrasului de carte funciară pentru imobilul (clădiri şi/sau terenuri) pe care sunt/vor fi realizate\ninvestiţiile, pentru Cererile de Finanţare care vizează investiţii în lucrări privind construcţii noi sau modernizări construcții.\n(dacă este cazul, se va adăuga câte o linie pentru fiecare extras de carte funciară necesar)."]
[]
[]
[]
[]
[null,null,null,null,null,null,null,null,null,null,"Judeţ/Municipiul Bucureşti:",null,null,null,null,null,null,null,null,null,null,null,null,null,null,null,null,null,null,null,null,null,null,"Unitate Administrativ Teritorială \n(UAT: Oraș / Comună / Sector)"]
[]
[]
[null,null,null,null,null,null,null,null,null,null,null,"Identificator Electronic",null,null,null,null,null,null,null,null,null,null,null,"Nr. Carte Funciară",null,null,null,null,null,null,null,null,null,null,null,"Nr. Cadastral",null,null,null,null,null,null,null,null,null,null,"Nr. Topografic"]
[]
[]
[]
[null,null,null,null,"Judeţ/Municipiul Bucureşti:"]
[]
[]
["B  LIDERUL DE PROIECT"]
["B1 Informații privind liderul de proiect"]
[]
[null,"    Data de înființare",null,null,null,null,null,null,null,null,null,null,null,null,null,null,null,null,null,"CUI / Cod de Înregistrare Fiscală",null,null,null,null,null,null,null,null,null,null,null,null,null,null,null,null,null,null,null,null,null,null,null,"Statut juridic al solicitantului"]
[]
[]
[]
[null,"B1.1 Tipul partenerului (liderului)"]
[]
[null,"Obiectul de activitate (pentru alte categorii)"]
[]
[null,"Număr de înregistrare în registrul comerțului/Registrul asociațiilor și fundațiilor"]
[]
[null,"Codul CAEN al activităţii/activităţilor finanţate prin proiect:"]
[]
[null,"Codul unic de înregistrare APIA \nValabil pentru fermieri",null,null,null,null,null,null,null,null,null,null,null,null,null,null,null,null,null,null,null,null,null,null,null,null,null,null,null,null,null,null,null,null,null,null,"Anul atribuirii codului"]
[]
[]
["B2 Sediul social"]
[null,"Judeţ",null,null,null,null,null,null,null,null,null,null,null,null,null,null,null,null,null,null,null,null,"Localitate",null,null,null,null,null,null,null,null,null,null,null,null,null,null,null,null,null,null,null,"Sat"]
[]
[null,"Cod Poştal",null,null,null,null,null,null,null,null,null,null,null,null,null,"Strada",null,null,null,null,null,null,null,null,null,null,null,null,null,null,null,null,null,null,null,null,null,null,null,null,null,null,null,null,null,null,null,null,null,null,null,null,"Nr."]
[]
[null,"Bloc",null,null,null,null,null,null,null,null,null,null,null,null,null,null,null,"Scara",null,null,null,null,null,null,null,null,null,null,null,null,null,"Etaj",null,null,null,null,null,null,null,null,null,null,null,null,null,null,null,"Apartament"]
[]
[null,"Telefon fix",null,null,null,null,null,null,null,null,null,null,null,"Telefon mobil",null,null,null,null,null,null,null,null,null,null,"Fax",null,null,null,null,null,null,null,null,null,null,null,"E-mail"]
[]
[]
["B3 Reprezentant legal al liderului de proiect (persoană de contact)"]
[]
[null,null,null,"Numele",null,null,null,null,null,null,null,null,null,null,"Prenumele",null,null,null,null,null,null,null,null,null,null,"Funcţia",null,null,null,null,null,null,null,null,null,null,"Reprezentant legal",null,null,null,null,null,null,null,null,null,null,"Specimen de"]
[null,null,null,null,null,null,null,null,null,null,null,null,null,null,null,null,null,null,null,null,null,null,null,null,null,null,null,null,null,null,null,null,null,null,null,null,null,null,null,null,null,null,null,null,null,null,null,"semnătură"]
[]
[null,null,null,null,null,null,null,null,null,null,null,null,null,null,null,null,null,null,null,null,null,null,null,null,null,null,null,null,null,null,null,null,null,null,null,null,"LEGAL"]
[]
[]
[null,null,null,"Data naşterii",null,null,null,null,null,null,null,null,null,null,null,null,null,null,null,null,null,null,null,null,"Cod numeric personal"]
[]
[]
[]
[null,null,null,null,"Act de identitate",null,null,null,null,null,null,null,null,null,null,null,null,null,"Seria",null,null,"Nr.",null,null,null,null,null,null,"Eliberat la data de",null,null,null,null,null,null,null,null,"de:",null,null,null,null,null,null,null,null,null,null,null,null,null,"Valabil până la:"]
[null,null,null,null,"B.I.",null,null,"C.I.",null,null,"Paşaport"]
[]
[]
["B3.1 Adresa reprezentantului legal al liderului de proiect"]
[null,"Judeţ",null,null,null,null,null,null,null,null,null,null,null,null,null,null,null,null,null,null,null,null,"Localitate",null,null,null,null,null,null,null,null,null,null,null,null,null,null,null,null,null,null,null,"Sat"]
[]
[null,"Cod Poştal",null,null,null,null,null,null,null,null,null,null,"Strada",null,null,null,null,null,null,null,null,null,null,null,null,null,null,null,null,null,"Nr.",null,null,null,null,null,"Bloc",null,null,null,null,null,null,null,null,null,null,null,"Scara",null,null,null,null,null,"Ap."]
[]
[null,"Telefon fix",null,null,null,null,null,null,null,null,null,null,null,"Telefon mobil",null,null,null,null,null,null,null,null,null,null,"Fax",null,null,null,null,null,null,null,null,null,null,null,"E-mail"]
[]
[]
["B3.2 Rolul și responsabilitatea liderului în implementarea proiectului"]
[]
[]
[]
[]
[]
[]
[]
["B4 Coordonator de proiect (persoană de contact)"]
[]
[null,null,null,"Numele",null,null,null,null,null,null,null,null,null,null,"Prenumele",null,null,null,null,null,null,null,null,null,null,"Funcţia"]
[]
[]
[]
[]
[]
[null,null,null,"Data naşterii",null,null,null,null,null,null,null,null,null,null,null,null,null,null,null,null,null,null,null,null,"Cod numeric personal"]
[]
[]
[]
[null,null,null,null,"Act de identitate",null,null,null,null,null,null,null,null,null,null,null,null,null,"Seria",null,null,"Nr.",null,null,null,null,null,null,"Eliberat la data de",null,null,null,null,null,null,null,null,"de:",null,null,null,null,null,null,null,null,null,null,null,null,null,"Valabil până la:"]
[null,null,null,null,"B.I.",null,null,"C.I.",null,null,"Paşaport"]
[]
[]
["B4.1 Adresa coordonatorului de proiect"]
[null,"Judeţ",null,null,null,null,null,null,null,null,null,null,null,null,null,null,null,null,null,null,null,null,"Localitate",null,null,null,null,null,null,null,null,null,null,null,null,null,null,null,null,null,null,null,"Sat"]
[]
[null,"Cod Poştal",null,null,null,null,null,null,null,null,null,null,"Strada",null,null,null,null,null,null,null,null,null,null,null,null,null,null,null,null,null,"Nr.",null,null,null,null,null,"Bloc",null,null,null,null,null,null,null,null,null,null,null,"Scara",null,null,null,null,null,"Ap."]
[]
[null,"Telefon fix",null,null,null,null,null,null,null,null,null,null,null,"Telefon mobil",null,null,null,null,null,null,null,null,null,null,null,null,null,null,null,null,null,null,"E-mail"]
[]
[]
["B4.2 Rolul și responsabilitatea coordonatorului în implementarea proiectului"]
[]
[]
[]
[]
[]
[]
[]
[]
[]
[]
[]
[]
[]
[]
[]
[]
[]
[]
[]
[]
["C. Membrii propuși ai parteneriatului"]
[null,"C1. Denumire"]
[]
[]
[]
[null,"    Data de înființare",null,null,null,null,null,null,null,null,null,null,null,null,null,null,null,null,null,"CUI / Cod de Înregistrare Fiscală",null,null,null,null,null,null,null,null,null,null,null,null,null,null,null,null,null,null,null,null,null,null,null,"Statut juridic al solicitantului"]
[]
[]
[null,"C1.1 Adresa membru propus :"]
[null,"Judeţ",null,null,null,null,null,null,null,null,null,null,null,null,null,null,null,null,null,null,null,null,"Localitate",null,null,null,null,null,null,null,null,null,null,null,null,null,null,null,null,null,null,null,"Sat"]
[]
[null,"Cod Poştal",null,null,null,null,null,null,null,null,null,null,"Strada",null,null,null,null,null,null,null,null,null,null,null,null,null,null,null,null,null,"Nr.",null,null,null,null,null,"Bloc",null,null,null,null,null,null,null,null,null,null,null,"Scara",null,null,null,null,null,"Ap."]
[]
[null,"Telefon fix",null,null,null,null,null,null,null,null,null,null,null,"Telefon mobil",null,null,null,null,null,null,null,null,null,null,null,null,null,null,null,null,null,null,"E-mail"]
[]
[]
[null,"C1.2 Tip partener :"]
[null,null,"(pentru partenerii care nu se incadreaza in categoriile de mai jos se va specifica obiectul de activitate)"]
[null,null,null,null,null,null,null,null,null,null,null,null,null,null,null,null,null,null,null,null,"Obiectul de activitate"]
[null,null,null,null,null,null,null,null,null,null,null,null,null,null,null,null,null,null,null,null,"(pentru alte categorii)"]
[]
[null,"C1.3 Rolul și responsabilitatea membrului parteneriatului în implementarea proiectului"]
[null,"(maxim 600 caractere) :"]
[]
[]
[]
[]
[]
[]
[]
[]
[]
[]
[]
[]
[]
[]
[]
[]
[]
[]
[]
[]
[]
[]
[]
[]
[]
[]
[]
[]
[]
[]
[]
[]
[]
[]
[]
[]
[]
[]
[]
["  "]
[null,"REGULI DE COMPLETARE\n\nCompletaţi devizele aferente capitolelor de cheltuieli, defalcat pe cheltuieli eligibile şi neeligibile prin completarea tabelurilor incluse în acest document, respectiv:\n1. Tabelul \"Deviz financiar cap3\" cuprinde cheltuielile aferente capitolului 3 - Cheltuieli pentru proiectare şi asistenţă tehnică,cheltuieli care trebuie să se regăsească atât în Bugetul Indicativ (Tabel \"Buget indicativ\" din cererea de finanţare, partea specifică) cât şi în Devizul General din Studiul de Fezabilitate.\n2. Tabelul \"Devize obiect\" cuprinde formatul cadru al devizului pe obiect, iar solicitantul va completa atâtea devize pe obiect câte obiecte de investiţie sunt incluse în proiect. Suma tuturor devizelor pe obiect trebuie să se regăseasca atat in Bugetul Indicativ (tabelul \"Buget indicativ\" din cererea de finanţare, partea specifică) cât şi în Devizul General din Studiul de Fezabilitate. În cazul în care proiectul de investiţii presupune mai multe devize pe obiect, solicitantul va crea în documentul curent câte o copie a tabelului \"Devize obiect\" pentru fiecare deviz pe obiect şi va detalia cheltuielile eligibile şi neeligibile pe fiecare în parte.\n3. Tabelul \"cap.2+cap.5\" cuprinde cheltuieli aferente capitolelor 2 şi 5 şi trebuie să se regăsească atât în Bugetul Indicativ (tabel \"Buget indicativ\" din cererea de finanţare, partea specifică) cât şi Devizul General din Studiul de Fezabilitate.\n4. Câmpul \"Prescorare\" de la secţiunea A7 este obligatoriu.\n5. Trebuie bifate toate documentele de pe coloana “Obligatoriu pentru toate proiectele” din secțiunea E - Lista documentelor anexate.\n6. În cadrul Bugetului Indicativ poate fi completat TVA eligibil dar și TVA neeligibil.\n7. Secțiunea A8 - Pentru imobilul (clădiri şi/sau terenuri) pe care sunt/vor fi realizate investiţiile, pentru Cererile de Finanțarecare vizează investiţii în lucrări privind construcţiile noi sau modernizări ale construcțiilor existente, cu lucrările de cadastru finalizate se va completa secțiunea A8 din CF, cu informațiile cadastrale necesare obținerii de către AFIR a extrasului de carte funciară de la ANCPI.\n8. Se vor completa liniile Bugetului Indicativ – Capitolul 4 B inclusiv pentru proiectele care nu sunt generatoare de profit în cazul operațiunilor similare submăsurilor 4.1 și 4.1a. Pentru aceasta, raportarea \"VALORI PENTRU COSTURI STANDARD ȘI CONTRIBUȚIE ÎN NATURĂ\", APLICABILE INVESTIŢIILOR se va face la ultima formă a Ghidului Solicitantului aflată în vigoare la data lansării măsuri 16.7/2A.\nSe vor completa obligatoriu următoarele informații:\n     Județ, UAT cât si următoarele date de identificare:\n          Identificator electronic\n     sau:\n          Nr. carte funciară și Nr. cadastral\n     sau\n          Nr. carte funciară și Nr. topografic.\nDacă este cazul, se va adăuga câte o linie pentru fiecare extras de carte funciară necesar.\n\n       ATENTIE: Elaborarea de studii pregătitoare, studii de fezabilitate și planuri, inclusiv planul proiectului reprezintă cheltuieli eligibile respectând condițiile menționate în cadrul Fișei Submăsurii. Sprijinul acordat pentru activitățile pregătitoare nu trebuie să depășească pragurile menționate la cap. 1.1 - BUGET INDICATIV ACTIVITĂȚI PREGĂTITOARE.\nAvând în vedere faptul că o Cerere de Finanțare poate fi selectată doar pentru a beneficia de sprijin pentru activitățile pregătitoare, întrucât aceste cheltuieli sunt efectuate după selectarea CEI în prima etapă cu scopul elaborării CF aferentă etapei II, pot exista următoarele situații:\n- dacă sunt prevăzute doar operatiuni specifice M 16.7/2A, valorile vor fi eligibile până în limita totală de 5% (în cazul finanțării întregului proiect) și în limitele procentuale menționate la cap. 1.1 - BUGET INDICATIV ACTIVITĂȚI\nPREGĂTITOARE și trecute în cadrul liniilor bugetare 1.1, 1.2, 1.3 și 1.4 (în cazul finanțării activităților pregătitoare).\n- dacă sunt prevăzute și operațiuni aferente submăsurilor 4.1, 4.1a alături de operatiunile specifice M 16.7/A, valorile vor fi eligibile până în limita totală de 5% (AS) sau 10% (CM) la cap. 1.1 - Elaborarea de studii pregătitoare, studii de fezabilitate și planuri, inclusiv planul proiectului pentru operațiunile aferente submăsurilor 4.1, 4.1a (în cazul finanțării întregului proiect) și în limitele procentuale menționate la cap. 1.1 - BUGET INDICATIV ACTIVITĂȚI PREGĂTITOARE și trecute în cadrul liniilor bugetare 1.1, 1.2, 1.3 și 1.4 pentru operatiunile specifice sM 16.7/2A (în cazul finanțării activităților pregătitoare).\n"]
[]
[]
[]
[]
[]
[]
[]
[]
[]
[]
[]
[]
[]
[]
[]
[]
[]
[]
[]
[]
[]
[]
[]
[]
[]
[]
[]
[]
[]
[]
[]
[]
[]
[]
[]
[]
[]
[]
[]
[]
[]
[]
[]
[]
[]
[]
[]
[null,"Buget Indicativ al Proiectului (EURO) cu Intensitatea de 90% - HG 907/2016 "]
["MINISTERUL AGRICULTURII ŞI DEZVOLTĂRII RURALE"]
["AGENŢIA PENTRU FINANŢAREA INVESTIŢIILOR RURALE"]
[]
[]
[null,"Procentul aferent intensităţii",null,null,null,null,null,null,null,null,null,null,null,null,null,90,null,null,null,null,null,"Curs EURO",null,null,null,null,null,null,null,null,null,null,null,null,"Data întocmirii Studiului de Fezabilitate"]
[]
["Măsura",null,null,null,null,null,null,null,null,null,null,null,null,null,null,null,null,null,null,null,null,null,null,null,null,null,null,null,null,null,null,null,null,null,null," 16.7/2A"]
["Denumirea capitolelor de cheltuieli",null,null,null,null,null,null,null,null,null,null,null,null,null,null,null,null,null,null,null,null,null,null,null,null,null,null,null,null,null,null,null,null,null,null,"Cheltuieli eligibile",null,null,null,null,null,null,null,null,"Cheltuieli neeligibile",null,null,null,null,null,null,null,"Total"]
[null,null,null,null,null,null,null,null,null,null,null,null,null,null,null,null,null,null,null,null,null,null,null,null,null,null,null,null,null,null,null,null,null,null,null,"EURO",null,null,null,null,null,null,null,null,"EURO",null,null,null,null,null,null,null,"EURO"]
[1,null,null,null,null,null,null,null,null,null,null,null,null,null,null,null,null,null,null,null,null,null,null,null,null,null,null,null,null,null,null,null,null,null,null,2,null,null,null,null,null,null,null,null,3,null,null,null,null,null,null,null,4]
["Capitolul 1 Cheltuieli pentru obtinerea şi amenajarea terenului - total, din care:",null,null,null,null,null,null,null,null,null,null,null,null,null,null,null,null,null,null,null,null,null,null,null,null,null,null,null,null,null,null,null,null,null,null,{"$f":"SUM(AJ459:AJ461)","v":0},null,null,null,null,null,null,null,null,{"$f":"SUM(AS458:AS461)","v":0},null,null,null,null,null,null,null,{"$f":"SUM(AJ457:AZ457)","v":0}]
["1.1 Obţinerea terenului",null,null,null,null,null,null,null,null,null,null,null,null,null,null,null,null,null,null,null,null,null,null,null,null,null,null,null,null,null,null,null,null,null,null,null,null,null,null,null,null,null,null,null,null,null,null,null,null,null,null,null,{"$f":"AS458","v":0}]
["1.2 Amenajarea terenului",null,null,null,null,null,null,null,null,null,null,null,null,null,null,null,null,null,null,null,null,null,null,null,null,null,null,null,null,null,null,null,null,null,null,null,null,null,null,null,null,null,null,null,null,null,null,null,null,null,null,null,{"$f":"SUM(AJ459:AZ459)","v":0}]
["1.3 Amenajari pentru protecţia mediului şi aducerea terenului la starea iniţială",null,null,null,null,null,null,null,null,null,null,null,null,null,null,null,null,null,null,null,null,null,null,null,null,null,null,null,null,null,null,null,null,null,null,null,null,null,null,null,null,null,null,null,null,null,null,null,null,null,null,null,0]
["1.4 Cheltuieli pentru relocarea/protecţia utilităţilor",null,null,null,null,null,null,null,null,null,null,null,null,null,null,null,null,null,null,null,null,null,null,null,null,null,null,null,null,null,null,null,null,null,null,null,null,null,null,null,null,null,null,null,null,null,null,null,null,null,null,null,0]
["Capitolul 2 Cheltuieli pentru asigurarea utilităţilor necesare obiectivului de investiții",null,null,null,null,null,null,null,null,null,null,null,null,null,null,null,null,null,null,null,null,null,null,null,null,null,null,null,null,null,null,null,null,null,null,null,null,null,null,null,null,null,null,null,null,null,null,null,null,null,null,null,0]
["Capitolul 3 Cheltuieli pentru proiectare şi asistenţă tehnică - total, din care:",null,null,null,null,null,null,null,null,null,null,null,null,null,null,null,null,null,null,null,null,null,null,null,null,null,null,null,null,null,null,null,null,null,null,{"$f":"AJ464+AJ468+AJ469+AJ470+AJ471+AJ479+AJ482","v":0},null,null,null,null,null,null,null,null,{"$f":"AS464+AS468+AS469+AS478+AS470+AS471+AS479+AS482","v":0},null,null,null,null,null,null,null,0]
["3.1 Studii",null,null,null,null,null,null,null,null,null,null,null,null,null,null,null,null,null,null,null,null,null,null,null,null,null,null,null,null,null,null,null,null,null,null,{"$f":"SUM(AJ465:AJ467)","v":0},null,null,null,null,null,null,null,null,{"$f":"SUM(AS465:AS467)","v":0},null,null,null,null,null,null,null,{"$f":"SUM(AJ464:AZ464)","v":0}]
["      3.1.1 Studii de teren",null,null,null,null,null,null,null,null,null,null,null,null,null,null,null,null,null,null,null,null,null,null,null,null,null,null,null,null,null,null,null,null,null,null,null,null,null,null,null,null,null,null,null,null,null,null,null,null,null,null,null,0]
["      3.1.2 Raport privind impactul asupra mediului",null,null,null,null,null,null,null,null,null,null,null,null,null,null,null,null,null,null,null,null,null,null,null,null,null,null,null,null,null,null,null,null,null,null,null,null,null,null,null,null,null,null,null,null,null,null,null,null,null,null,null,0]
["      3.1.3 Alte studii specifice",null,null,null,null,null,null,null,null,null,null,null,null,null,null,null,null,null,null,null,null,null,null,null,null,null,null,null,null,null,null,null,null,null,null,null,null,null,null,null,null,null,null,null,null,null,null,null,null,null,null,null,0]
["3.2 Documentații-suport și cheltuieli pentru obţinerea de avize, acorduri şi autorizaţii",null,null,null,null,null,null,null,null,null,null,null,null,null,null,null,null,null,null,null,null,null,null,null,null,null,null,null,null,null,null,null,null,null,null,null,null,null,null,null,null,null,null,null,null,null,null,null,null,null,null,null,{"$f":"SUM(AJ468:AZ468)","v":0}]
["3.3 Expertizare tehnică",null,null,null,null,null,null,null,null,null,null,null,null,null,null,null,null,null,null,null,null,null,null,null,null,null,null,null,null,null,null,null,null,null,null,null,null,null,null,null,null,null,null,null,null,null,null,null,null,null,null,null,0]
["3.4 Certificarea performanței energetice și auditul energetic al clădirilor",null,null,null,null,null,null,null,null,null,null,null,null,null,null,null,null,null,null,null,null,null,null,null,null,null,null,null,null,null,null,null,null,null,null,null,null,null,null,null,null,null,null,null,null,null,null,null,null,null,null,null,0]
["3.5 Proiectare",null,null,null,null,null,null,null,null,null,null,null,null,null,null,null,null,null,null,null,null,null,null,null,null,null,null,null,null,null,null,null,null,null,null,{"$f":"SUM(AJ472:AJ477)","v":0},null,null,null,null,null,null,null,null,{"$f":"SUM(AS472:AS477)","v":0},null,null,null,null,null,null,null,0]
["      3.5.1 Temă de proiectare",null,null,null,null,null,null,null,null,null,null,null,null,null,null,null,null,null,null,null,null,null,null,null,null,null,null,null,null,null,null,null,null,null,null,null,null,null,null,null,null,null,null,null,null,null,null,null,null,null,null,null,0]
["      3.5.2 Studiu de prefezabilitate",null,null,null,null,null,null,null,null,null,null,null,null,null,null,null,null,null,null,null,null,null,null,null,null,null,null,null,null,null,null,null,null,null,null,null,null,null,null,null,null,null,null,null,null,null,null,null,null,null,null,null,0]
["      3.5.3 Studiu de fezabilitate/documentație de avizare a lucrărilor de intervenții și deviz general",null,null,null,null,null,null,null,null,null,null,null,null,null,null,null,null,null,null,null,null,null,null,null,null,null,null,null,null,null,null,null,null,null,null,null,null,null,null,null,null,null,null,null,null,null,null,null,null,null,null,null,0]
["      3.5.4 Documentațiile tehnice necesare în vederea obținerii avizelor/acordurilor/ autorizațiilor",null,null,null,null,null,null,null,null,null,null,null,null,null,null,null,null,null,null,null,null,null,null,null,null,null,null,null,null,null,null,null,null,null,null,null,null,null,null,null,null,null,null,null,null,null,null,null,null,null,null,null,{"$f":"SUM(AJ475:AZ475)","v":0}]
["      3.5.5 Verificarea tehnică de calitate a proiectului tehnic și a detaliilor de execuție",null,null,null,null,null,null,null,null,null,null,null,null,null,null,null,null,null,null,null,null,null,null,null,null,null,null,null,null,null,null,null,null,null,null,null,null,null,null,null,null,null,null,null,null,null,null,null,null,null,null,null,0]
["      3.5.6 Proiect tehnic și detalii de execuție",null,null,null,null,null,null,null,null,null,null,null,null,null,null,null,null,null,null,null,null,null,null,null,null,null,null,null,null,null,null,null,null,null,null,null,null,null,null,null,null,null,null,null,null,null,null,null,null,null,null,null,0]
["3.6 Organizarea procedurilor de achiziţie",null,null,null,null,null,null,null,null,null,null,null,null,null,null,null,null,null,null,null,null,null,null,null,null,null,null,null,null,null,null,null,null,null,null,null,null,null,null,null,null,null,null,null,null,null,null,null,null,null,null,null,{"$f":"AS478","v":0}]
["3.7 Consultanță",null,null,null,null,null,null,null,null,null,null,null,null,null,null,null,null,null,null,null,null,null,null,null,null,null,null,null,null,null,null,null,null,null,null,{"$f":"AJ480","v":0},null,null,null,null,null,null,null,null,{"$f":"SUM(AS480:AS481)","v":0},null,null,null,null,null,null,null,{"$f":"SUM(AJ479:AZ479)","v":0}]
["      3.7.1 Managementul de proiect pentru obiectivul de investiții",null,null,null,null,null,null,null,null,null,null,null,null,null,null,null,null,null,null,null,null,null,null,null,null,null,null,null,null,null,null,null,null,null,null,null,null,null,null,null,null,null,null,null,null,null,null,null,null,null,null,null,0]
["      3.7.2 Auditul financiar",null,null,null,null,null,null,null,null,null,null,null,null,null,null,null,null,null,null,null,null,null,null,null,null,null,null,null,null,null,null,null,null,null,null,null,null,null,null,null,null,null,null,null,null,null,null,null,null,null,null,null,{"$f":"AS481","v":0}]
["3.8 Asistența tehnică",null,null,null,null,null,null,null,null,null,null,null,null,null,null,null,null,null,null,null,null,null,null,null,null,null,null,null,null,null,null,null,null,null,null,{"$f":"AJ483+AJ486","v":0},null,null,null,null,null,null,null,null,{"$f":"AS483+AS486","v":0},null,null,null,null,null,null,null,0]
["      3.8.1 Asistență tehnică din partea proiectantului",null,null,null,null,null,null,null,null,null,null,null,null,null,null,null,null,null,null,null,null,null,null,null,null,null,null,null,null,null,null,null,null,null,null,{"$f":"SUM(AJ484:AJ485)","v":0},null,null,null,null,null,null,null,null,{"$f":"SUM(AS484:AS485)","v":0},null,null,null,null,null,null,null,0]
["            3.8.1.1 pe perioada de execuție a lucrărilor",null,null,null,null,null,null,null,null,null,null,null,null,null,null,null,null,null,null,null,null,null,null,null,null,null,null,null,null,null,null,null,null,null,null,null,null,null,null,null,null,null,null,null,null,null,null,null,null,null,null,null,0]
["            3.8.1.2 pentru participarea proiectantului la fazele incluse în programul de control al lucrărilor de execuție, avizat de către Inspectoratul de Stat în Construcții",null,null,null,null,null,null,null,null,null,null,null,null,null,null,null,null,null,null,null,null,null,null,null,null,null,null,null,null,null,null,null,null,null,null,null,null,null,null,null,null,null,null,null,null,null,null,null,null,null,null,null,0]
["      3.8.2 Dirigenție de șantier",null,null,null,null,null,null,null,null,null,null,null,null,null,null,null,null,null,null,null,null,null,null,null,null,null,null,null,null,null,null,null,null,null,null,null,null,null,null,null,null,null,null,null,null,null,null,null,null,null,null,null,0]
["Verificare încadrare cheltuieli capitolul 3",null,null,null,null,null,null,null,null,null,null,null,null,null,null,null,null,null,null,null,null,null,null,null,null,null,null,null,null,null,null,null,{"$f":"AJ457+AJ462+AJ488","v":0},{"$f":"IF(AG487=0,0,AI487)","v":0},{"$f":"AJ463*100/AG487","v":{"$error":"#DIV/0!"}},{"$f":"IF(AJ488=0,IF(AH487<=5,\"cheltuieli capitol 3 se incadreaza in limita de 5%\",\"cheltuieli capitol 3 nu se incadreaza in limita de 5%\"),IF(AH487<=10,\"cheltuieli capitol 3 se incadreaza in limita de 10%\",\"cheltuieli capitol 3 nu se incadreaza in limita de 10%\"))","v":"cheltuieli capitol 3 se incadreaza in limita de 5%"}]
["Capitolul 4 Cheltuieli pentru investiţia de bază - total, din care:",null,null,null,null,null,null,null,null,null,null,null,null,null,null,null,null,null,null,null,null,null,null,null,null,null,null,null,null,null,null,null,null,null,null,{"$f":"AJ496+AJ489","v":0},null,null,null,null,null,null,null,null,{"$f":"AS496+AS489","v":0},null,null,null,null,null,null,null,{"$f":"SUM(AJ488:AZ488)","v":0}]
["A - Constructii şi lucrări de intervenţii - total, din care:",null,null,null,null,null,null,null,null,null,null,null,null,null,null,null,null,null,null,null,null,null,null,null,null,null,null,null,null,null,null,null,null,null,null,{"$f":"SUM(AJ490:AR495)","v":0},null,null,null,null,null,null,null,null,{"$f":"SUM(AS490:AZ495)","v":0},null,null,null,null,null,null,null,{"$f":"SUM(AJ489:AZ489)","v":0}]
["4.1 Construcţii şi instalaţii",null,null,null,null,null,null,null,null,null,null,null,null,null,null,null,null,null,null,null,null,null,null,null,null,null,null,null,null,null,null,null,null,null,null,null,null,null,null,null,null,null,null,null,null,null,null,null,null,null,null,null,0]
["4.2 Montaj utilaje, echipamente tehnologice şi funcţionale",null,null,null,null,null,null,null,null,null,null,null,null,null,null,null,null,null,null,null,null,null,null,null,null,null,null,null,null,null,null,null,null,null,null,null,null,null,null,null,null,null,null,null,null,null,null,null,null,null,null,null,0]
["4.3 Utilaje, echipamente tehnologice şi funcţionale care necesită montaj",null,null,null,null,null,null,null,null,null,null,null,null,null,null,null,null,null,null,null,null,null,null,null,null,null,null,null,null,null,null,null,null,null,null,null,null,null,null,null,null,null,null,null,null,null,null,null,null,null,null,null,0]
["4.4 Utilaje, echipamente tehnologice şi funcţionale care nu necesită montaj şi echipamente de transport",null,null,null,null,null,null,null,null,null,null,null,null,null,null,null,null,null,null,null,null,null,null,null,null,null,null,null,null,null,null,null,null,null,null,null,null,null,null,null,null,null,null,null,null,null,null,null,null,null,null,null,0]
["4.5 Dotări",null,null,null,null,null,null,null,null,null,null,null,null,null,null,null,null,null,null,null,null,null,null,null,null,null,null,null,null,null,null,null,null,null,null,null,null,null,null,null,null,null,null,null,null,null,null,null,null,null,null,null,0]
["4.6 Active necorporale",null,null,null,null,null,null,null,null,null,null,null,null,null,null,null,null,null,null,null,null,null,null,null,null,null,null,null,null,null,null,null,null,null,null,null,null,null,null,null,null,null,null,null,null,null,null,null,null,null,null,null,0]
["B - Cheltuieli pentru investitii în culturi/plantaţii",null,null,null,null,null,null,null,null,null,null,null,null,null,null,null,null,null,null,null,null,null,null,null,null,null,null,null,null,null,null,null,null,null,null,{"$f":"SUM(AJ497:AR501)","v":0},null,null,null,null,null,null,null,null,{"$f":"SUM(AS497:AZ501)","v":0},null,null,null,null,null,null,null,{"$f":"SUM(AJ496:AZ496)","v":0}]
["Subcapitol 1 - Lucrări de pregătire a terenului",null,null,null,null,null,null,null,null,null,null,null,null,null,null,null,null,null,null,null,null,null,null,null,null,null,null,null,null,null,null,null,null,null,null,null,null,null,null,null,null,null,null,null,null,null,null,null,null,null,null,null,0]
["Subcapitol 2 - Infiinţarea plantaţiei",null,null,null,null,null,null,null,null,null,null,null,null,null,null,null,null,null,null,null,null,null,null,null,null,null,null,null,null,null,null,null,null,null,null,null,null,null,null,null,null,null,null,null,null,null,null,null,null,null,null,null,0]
["Subcapitol 3 - Intreţinere plantaţie în anul 1",null,null,null,null,null,null,null,null,null,null,null,null,null,null,null,null,null,null,null,null,null,null,null,null,null,null,null,null,null,null,null,null,null,null,null,null,null,null,null,null,null,null,null,null,null,null,null,null,null,null,null,0]
["Subcapitol 4 - Intreţinere plantaţie în anul 2",null,null,null,null,null,null,null,null,null,null,null,null,null,null,null,null,null,null,null,null,null,null,null,null,null,null,null,null,null,null,null,null,null,null,null,null,null,null,null,null,null,null,null,null,null,null,null,null,null,null,null,0]
["Subcapitol 5 - Instalat sistem susţinere şi împrejmuire",null,null,null,null,null,null,null,null,null,null,null,null,null,null,null,null,null,null,null,null,null,null,null,null,null,null,null,null,null,null,null,null,null,null,null,null,null,null,null,null,null,null,null,null,null,null,null,null,null,null,null,0]
["Capitolul 5 Alte cheltuieli - total, din care:",null,null,null,null,null,null,null,null,null,null,null,null,null,null,null,null,null,null,null,null,null,null,null,null,null,null,null,null,null,null,null,null,null,null,{"$f":"AJ503+AJ506+AJ512","v":0},null,null,null,null,null,null,null,null,{"$f":"AS513+AS512+AS506+AS503","v":0},null,null,null,null,null,null,null,{"$f":"BA513+BA512+BA506+BA503","v":0}]
["5.1 Organizare de şantier",null,null,null,null,null,null,null,null,null,null,null,null,null,null,null,null,null,null,null,null,null,null,null,null,null,null,null,null,null,null,null,null,null,null,{"$f":"SUM(AJ504:AR505)","v":0},null,null,null,null,null,null,null,null,{"$f":"SUM(AS504:AZ505)","v":0},null,null,null,null,null,null,null,0]
["      5.1.1 Lucrări de construcţii şi instalaţii aferente organizării de şantier",null,null,null,null,null,null,null,null,null,null,null,null,null,null,null,null,null,null,null,null,null,null,null,null,null,null,null,null,null,null,null,null,null,null,null,null,null,null,null,null,null,null,null,null,null,null,null,null,null,null,null,0]
["      5.1.2 Cheltuieli conexe orgănizării şantierului",null,null,null,null,null,null,null,null,null,null,null,null,null,null,null,null,null,null,null,null,null,null,null,null,null,null,null,null,null,null,null,null,null,null,null,null,null,null,null,null,null,null,null,null,null,null,null,null,null,null,null,0]
["5.2 Comisioane, cote, taxe, costul creditului",null,null,null,null,null,null,null,null,null,null,null,null,null,null,null,null,null,null,null,null,null,null,null,null,null,null,null,null,null,null,null,null,null,null,{"$f":"AJ508+AJ509+AJ511","v":0},null,null,null,null,null,null,null,null,{"$f":"AS511+AS510+AS509+AS508+AS507","v":0},null,null,null,null,null,null,null,{"$f":"BA511+BA510+BA509+BA508+BA507","v":0}]
["      5.2.1 Comisioanele și dobânzile aferente creditului băncii finanțatoare",null,null,null,null,null,null,null,null,null,null,null,null,null,null,null,null,null,null,null,null,null,null,null,null,null,null,null,null,null,null,null,null,null,null,null,null,null,null,null,null,null,null,null,null,null,null,null,null,null,null,null,{"$f":"AS507","v":0}]
["      5.2.2 Cota aferentă ISC pentru controlul calității lucrărilor de construcții",null,null,null,null,null,null,null,null,null,null,null,null,null,null,null,null,null,null,null,null,null,null,null,null,null,null,null,null,null,null,null,null,null,null,null,null,null,null,null,null,null,null,null,null,null,null,null,null,null,null,null,{"$f":"SUM(AJ508:AZ508)","v":0}]
["      5.2.3 Cota aferentă ISC pentru controlul statului în amenajarea teritoriului, urbanism și pentru autorizarea lucrărilor de construcţii",null,null,null,null,null,null,null,null,null,null,null,null,null,null,null,null,null,null,null,null,null,null,null,null,null,null,null,null,null,null,null,null,null,null,null,null,null,null,null,null,null,null,null,null,null,null,null,null,null,null,null,0]
["      5.2.4 Cota aferentă Casei Sociale a Constructorilor - CSC",null,null,null,null,null,null,null,null,null,null,null,null,null,null,null,null,null,null,null,null,null,null,null,null,null,null,null,null,null,null,null,null,null,null,null,null,null,null,null,null,null,null,null,null,null,null,null,null,null,null,null,{"$f":"AS510","v":0}]
["      5.2.5 Taxe pentru acorduri, avize conforme și autorizația de construire/desființare",null,null,null,null,null,null,null,null,null,null,null,null,null,null,null,null,null,null,null,null,null,null,null,null,null,null,null,null,null,null,null,null,null,null,null,null,null,null,null,null,null,null,null,null,null,null,null,null,null,null,null,0]
["5.3 Cheltuieli diverse şi neprevăzute",null,null,null,null,null,null,null,null,null,null,null,null,null,null,null,null,null,null,null,null,null,null,null,null,null,null,null,null,null,null,null,null,null,null,null,null,null,null,null,null,null,null,null,null,null,null,null,null,null,null,null,{"$f":"SUM(AJ512:AZ512)","v":0}]
["5.4 Cheltuieli pentru informare și publicitate",null,null,null,null,null,null,null,null,null,null,null,null,null,null,null,null,null,null,null,null,null,null,null,null,null,null,null,null,null,null,null,null,null,null,null,null,null,null,null,null,null,null,null,null,null,null,null,null,null,null,null,{"$f":"AS513","v":0}]
["Procent cheltuieli diverse şi neprevăzute",null,null,null,null,null,null,null,null,null,null,null,null,null,null,null,null,null,null,null,null,null,null,null,null,null,null,null,null,null,null,null,null,null,null,{"$f":"IF((AJ459+AJ460+AJ461+AJ462+AJ471+AJ482+AJ488)=0,0,(AJ512/(AJ459+AJ460+AJ461+AJ462+AJ471+AJ482+AJ488)*100))","v":0},null,null,null,null,null,null,null,null,null,null,null,null,null,null,null,null,null,null,null,null,null,null,null,"%"]
["Capitolul 6 Cheltuieli pentru probe tehnologice şi teste - total, din care:",null,null,null,null,null,null,null,null,null,null,null,null,null,null,null,null,null,null,null,null,null,null,null,null,null,null,null,null,null,null,null,null,null,null,{"$f":"AJ517","v":0},null,null,null,null,null,null,null,null,{"$f":"SUM(AS516:AS517)","v":0},null,null,null,null,null,null,null,{"$f":"SUM(AJ515:AZ515)","v":0}]
["6.1 Pregătirea personalului de exploatare",null,null,null,null,null,null,null,null,null,null,null,null,null,null,null,null,null,null,null,null,null,null,null,null,null,null,null,null,null,null,null,null,null,null,null,null,null,null,null,null,null,null,null,null,null,null,null,null,null,null,null,{"$f":"AS516","v":0}]
["6.2 Probe tehnologice şi teste",null,null,null,null,null,null,null,null,null,null,null,null,null,null,null,null,null,null,null,null,null,null,null,null,null,null,null,null,null,null,null,null,null,null,null,null,null,null,null,null,null,null,null,null,null,null,null,null,null,null,null,0]
["TOTAL GENERAL",null,null,null,null,null,null,null,null,null,null,null,null,null,null,null,null,null,null,null,null,null,null,null,null,null,null,null,null,null,null,null,null,null,null,{"$f":"AJ457+AJ462+AJ463+AJ488+AJ502+AJ515","v":0},null,null,null,null,null,null,null,null,{"$f":"AS457+AS462+AS463+AS488+AS502+AS515","v":0},null,null,null,null,null,null,null,0]
["Verificare actualizare",null,null,null,null,null,null,null,null,null,null,null,null,null,null,null,null,null,null,null,null,null,null,null,null,null,null,null,null,null,null,{"$f":"AJ520*100/AJ518","v":{"$error":"#DIV/0!"}},null,null,{"$f":"IF(AJ518=0,0,AF519)","v":0},{"$f":"IF(AI519<=5,\"actualizare mai mică de 5% din valoarea eligibila\",\"actualizare mai mare de 5% din valoarea eligibila\")","v":"actualizare mai mică de 5% din valoarea eligibila"}]
["ACTUALIZARE Cheltuieli Eligibile (max 5%)",null,null,null,null,null,null,null,null,null,null,null,null,null,null,null,null,null,null,null,null,null,null,null,null,null,null,null,null,null,null,null,null,null,null,null,null,null,null,null,null,null,null,null,null,null,null,null,null,null,null,null,{"$f":"AJ520","v":0}]
["TOTAL GENERAL CU ACTUALIZARE",null,null,null,null,null,null,null,null,null,null,null,null,null,null,null,null,null,null,null,null,null,null,null,null,null,null,null,null,null,null,null,null,null,null,{"$f":"AJ518+AJ520","v":0},null,null,null,null,null,null,null,null,{"$f":"AS518","v":0},null,null,null,null,null,null,null,{"$f":"SUM(AJ521:AZ521)","v":0}]
["Valoare TVA",null,null,null,null,null,null,null,null,null,null,null,null,null,null,null,null,null,null,null,null,null,null,null,null,null,null,null,null,null,null,null,null,null,null,null,null,null,null,null,null,null,null,null,null,null,null,null,null,null,null,null,0]
[]
["TOTAL GENERAL inclusiv TVA",null,null,null,null,null,null,null,null,null,null,null,null,null,null,null,null,null,null,null,null,null,null,null,null,null,null,null,null,null,null,null,null,null,null,{"$f":"BA521+BA522","v":0}]
[null,null,null,null,null,null,null,null,null,null,null,null,null,null,null,null,null,null,null,null,null,null,null,null,null,null,null,null,null,null,null,null,null,null,null,"LEI",null,null,null,null,null,null,null,null,"EURO"]
["VALOARE TOTALĂ",null,null,null,null,null,null,null,null,null,null,null,null,null,null,null,null,null,null,null,null,null,null,null,null,null,null,null,null,null,null,null,null,null,null,{"$f":"AS526*AB451","v":0},null,null,null,null,null,null,null,null,{"$f":"AJ524","v":0}]
["VALOARE ELIGIBILĂ",null,null,null,null,null,null,null,null,null,null,null,null,null,null,null,null,null,null,null,null,null,null,null,null,null,null,null,null,null,null,null,null,null,null,{"$f":"AS527*AB451","v":0},null,null,null,null,null,null,null,null,{"$f":"AJ521+AJ522","v":0}]
["VALOARE NEELIGIBILĂ",null,null,null,null,null,null,null,null,null,null,null,null,null,null,null,null,null,null,null,null,null,null,null,null,null,null,null,null,null,null,null,null,null,null,{"$f":"AS528*AB451","v":0},null,null,null,null,null,null,null,null,{"$f":"AS521+AS522","v":0}]
[]
["Plan Financiar",null,null,null,null,null,null,null,null,null,null,null,null,null,null,null,null,null,null,null,null,null,null,null,null,null,null,null,null,null,null,null,null,null,null,"Cheltuieli eligibile EURO",null,null,null,null,null,null,null,null,"Cheltuieli neeligibile EURO",null,null,null,null,null,null,null,"Total"]
["Ajutor public nerambursabil (contribuţie UE şi cofinanţare naţională)",null,null,null,null,null,null,null,null,null,null,null,null,null,null,null,null,null,null,null,null,null,null,null,null,null,null,null,null,null,null,null,null,null,null,null,null,null,null,null,null,null,null,null,null,null,null,null,null,null,null,null,{"$f":"AJ531","v":0}]
["Cofinantare privata, din care:",null,null,null,null,null,null,null,null,null,null,null,null,null,null,null,null,null,null,null,null,null,null,null,null,null,null,null,null,null,null,null,null,null,null,{"$f":"SUM(AJ533:AJ534)","v":0},null,null,null,null,null,null,null,null,{"$f":"SUM(AS533:AS534)","v":0},null,null,null,null,null,null,null,{"$f":"SUM(AJ532:AZ532)","v":0}]
[null,null,null,null,null,null,null,null,null,null,null,null,null,null,null,"- autofinantare",null,null,null,null,null,null,null,null,null,null,null,null,null,null,null,null,null,null,null,null,null,null,null,null,null,null,null,null,null,null,null,null,null,null,null,null,0]
[null,null,null,null,null,null,null,null,null,null,null,null,null,null,null,"- imprumuturi",null,null,null,null,null,null,null,null,null,null,null,null,null,null,null,null,null,null,null,null,null,null,null,null,null,null,null,null,null,null,null,null,null,null,null,null,0]
["TOTAL PROIECT",null,null,null,null,null,null,null,null,null,null,null,null,null,null,null,null,null,null,null,null,null,null,null,null,null,null,null,null,null,null,null,null,null,null,{"$f":"AJ531+AJ532","v":0},null,null,null,null,null,null,null,null,{"$f":"AS532","v":0},null,null,null,null,null,null,null,0]
["Procent contribuţie publică",null,null,null,null,null,null,null,null,null,null,null,null,null,null,null,null,null,null,null,null,null,null,null,null,null,null,null,null,null,null,null,null,{"$f":"AJ531*100/AJ535","v":{"$error":"#DIV/0!"}},{"$f":"IF(AJ535=0,0,AH536)","v":0},{"$f":"AI536","v":0},null,null,null,null,null,null,null,"%"]
["Avans solicitat"]
["Procent avans solicitat ca procent din ajutorul public nerambursabil",null,null,null,null,null,null,null,null,null,null,null,null,null,null,null,null,null,null,null,null,null,null,null,null,null,null,null,null,null,null,null,null,null,{"$f":"AJ537*100/AJ531","v":{"$error":"#DIV/0!"}},{"$f":"IF(AJ531=0,0,AI538)","v":0},null,null,null,null,null,null,null,null,{"$f":"IF(AJ538<=50,\"Suma avans mai mica de 50% din ajutorul public\",\"Suma avans mai mare de 50% din ajutorul public\")","v":"Suma avans mai mica de 50% din ajutorul public"}]
[]
[null,"Buget indicativ pentru INVESTITII SPECIFICE (EURO) cu Intensitatea de 100% - HG 907/2016"]
["MINISTERUL AGRICULTURII ŞI DEZVOLTĂRII RURALE"]
["AGENŢIA PENTRU FINANŢAREA INVESTIŢIILOR RURALE"]
[]
[]
[null,"Procentul aferent intensităţi",null,null,null,null,null,null,null,null,null,null,null,null,null,100,null,null,null,null,null,"Curs EURO",null,null,null,null,null,null,null,null,null,null,null,null,"Data întocmirii Studiului de Fezabilitate"]
[]
["Măsura",null,null,null,null,null,null,null,null,null,null,null,null,null,null,null,null,null,null,null,null,null,null,null,null,null,null,null,null,null,null,null,null,null,null,"16.7/2A"]
["Denumirea capitolelor de cheltuieli",null,null,null,null,null,null,null,null,null,null,null,null,null,null,null,null,null,null,null,null,null,null,null,null,null,null,null,null,null,null,null,null,null,null,"Cheltuieli eligibile",null,null,null,null,null,null,null,null,"Cheltuieli neeligibile",null,null,null,null,null,null,null,"Total"]
[null,null,null,null,null,null,null,null,null,null,null,null,null,null,null,null,null,null,null,null,null,null,null,null,null,null,null,null,null,null,null,null,null,null,null,"EURO",null,null,null,null,null,null,null,null,"EURO",null,null,null,null,null,null,null,"EURO"]
[1,null,null,null,null,null,null,null,null,null,null,null,null,null,null,null,null,null,null,null,null,null,null,null,null,null,null,null,null,null,null,null,null,null,null,2,null,null,null,null,null,null,null,null,3,null,null,null,null,null,null,null,4]
["Capitolul 1 Studii/planuri",null,null,null,null,null,null,null,null,null,null,null,null,null,null,null,null,null,null,null,null,null,null,null,null,null,null,null,null,null,null,null,null,null,null,{"$f":"AJ553+AJ552","v":0},null,null,null,null,null,null,null,null,{"$f":"AS553+AS552","v":0},null,null,null,null,null,null,null,{"$f":"SUM(AJ551:AZ551)","v":0}]
["1.1 Elaborarea de studii pregătitoare, studii de fezabilitate și planuri, inclusiv planul\nproiectului",null,null,null,null,null,null,null,null,null,null,null,null,null,null,null,null,null,null,null,null,null,null,null,null,null,null,null,null,null,null,null,null,null,null,null,null,null,null,null,null,null,null,null,null,null,null,null,null,null,null,null,{"$f":"SUM(AJ552:AZ552)","v":0}]
["1.2 Alte cheltuieli necesare elaborării documentației necesare depunerii proiectului\ncomplet  care nu se încadrează în categoria de mai sus.",null,null,null,null,null,null,null,null,null,null,null,null,null,null,null,null,null,null,null,null,null,null,null,null,null,null,null,null,null,null,null,null,null,null,null,null,null,null,null,null,null,null,null,null,null,null,null,null,null,null,null,{"$f":"SUM(AJ553:AZ553)","v":0}]
["Capitolul 2 Costurile de funcţionare a cooperării",null,null,null,null,null,null,null,null,null,null,null,null,null,null,null,null,null,null,null,null,null,null,null,null,null,null,null,null,null,null,null,null,null,null,{"$f":"SUM(AJ555:AJ558)","v":0},null,null,null,null,null,null,null,null,{"$f":"SUM(AS555:AS558)","v":0},null,null,null,null,null,null,null,0]
["2.1 Cheltuieli de transport și diurnă ale coordonatorului/echipei de proiect și partenerilor, legate de activitățile parteneriatului, conform legislatiei nationale;",null,null,null,null,null,null,null,null,null,null,null,null,null,null,null,null,null,null,null,null,null,null,null,null,null,null,null,null,null,null,null,null,null,null,null,null,null,null,null,null,null,null,null,null,null,null,null,null,null,null,null,0]
["2.2 Onorarii ale personalului (de exemplu angajat salariat în vederea asigurării activității\nde secretariat, relației cu AFIR, etc.);",null,null,null,null,null,null,null,null,null,null,null,null,null,null,null,null,null,null,null,null,null,null,null,null,null,null,null,null,null,null,null,null,null,null,null,null,null,null,null,null,null,null,null,null,null,null,null,null,null,null,null,0]
["2.3 Cheltuieli legate de închirierea spațiilor de desfășurare a întâlnirilor parteneriatului, inchiriere sediu, achizitie echipamente IT si alte dotari necesare desfasurarii cooperarii",null,null,null,null,null,null,null,null,null,null,null,null,null,null,null,null,null,null,null,null,null,null,null,null,null,null,null,null,null,null,null,null,null,null,null,null,null,null,null,null,null,null,null,null,null,null,null,null,null,null,null,{"$f":"SUM(AJ557:AZ557)","v":0}]
["2.4 Alte cheltuieli ce nu pot fi incluse în categoria de mai sus.",null,null,null,null,null,null,null,null,null,null,null,null,null,null,null,null,null,null,null,null,null,null,null,null,null,null,null,null,null,null,null,null,null,null,null,null,null,null,null,null,null,null,null,null,null,null,null,null,null,null,null,0]
["Capitolul 3 Costurile directe generate în mod specific de activitățile incluse în\nplanul de proiect depus departeneriat (pot fi efectuate după semnarea contractului),\nprecum:",null,null,null,null,null,null,null,null,null,null,null,null,null,null,null,null,null,null,null,null,null,null,null,null,null,null,null,null,null,null,null,null,null,null,{"$f":"SUM(AJ560:AJ562)","v":0},null,null,null,null,null,null,null,null,{"$f":"SUM(AS560:AZ562)","v":0},null,null,null,null,null,null,null,0]
["3.1 Cheltuieli legate de chirii pentru: echipamente, utilaje, imobile necesare desfășurării\nactivității descrise în proiect (altele decât sediu) etc.",null,null,null,null,null,null,null,null,null,null,null,null,null,null,null,null,null,null,null,null,null,null,null,null,null,null,null,null,null,null,null,null,null,null,null,null,null,null,null,null,null,null,null,null,null,null,null,null,null,null,null,0]
["3.2 Cheltuieli cu onorarii ale partenerilor, colaboratorilor externi, aferente activitatilor\ndescrise in proiect și prestări servicii de către aceștia sau alte persoane/entități, inclusiv\ncheltuielile aferente salariului/onorariului coordonatorului de proiect, după caz.",null,null,null,null,null,null,null,null,null,null,null,null,null,null,null,null,null,null,null,null,null,null,null,null,null,null,null,null,null,null,null,null,null,null,null,null,null,null,null,null,null,null,null,null,null,null,null,null,null,null,null,0]
["3.3 Alte cheltuieli ce nu pot fi incluse în categoria de mai sus.",null,null,null,null,null,null,null,null,null,null,null,null,null,null,null,null,null,null,null,null,null,null,null,null,null,null,null,null,null,null,null,null,null,null,null,null,null,null,null,null,null,null,null,null,null,null,null,null,null,null,null,0]
["Capitolul 4 Cheltuieli generate de diseminarea rezultatelor",null,null,null,null,null,null,null,null,null,null,null,null,null,null,null,null,null,null,null,null,null,null,null,null,null,null,null,null,null,null,null,null,null,null,{"$f":"AJ564","v":0},null,null,null,null,null,null,null,null,{"$f":"SUM(AS564:AS564)","v":0},null,null,null,null,null,null,null,{"$f":"SUM(AJ563:AZ563)","v":0}]
["4.1 Cheltuielile generate de diseminarea rezultatelor cum sunt (listă indicativă):\norganizare evenimente diseminare, pliante, publicații, participare evenimente specifice în vederea diseminării rezultatelor etc.",null,null,null,null,null,null,null,null,null,null,null,null,null,null,null,null,null,null,null,null,null,null,null,null,null,null,null,null,null,null,null,null,null,null,null,null,null,null,null,null,null,null,null,null,null,null,null,null,null,null,null,0]
["TOTAL GENERAL",null,null,null,null,null,null,null,null,null,null,null,null,null,null,null,null,null,null,null,null,null,null,null,null,null,null,null,null,null,null,null,null,null,null,{"$f":"AJ563+AJ559+AJ554+AJ551","v":0},null,null,null,null,null,null,null,null,{"$f":"AS551+AS554+AS559+AS563","v":0},null,null,null,null,null,null,null,{"$f":"SUM(AJ565:AZ565)","v":0}]
["Verificare actualizare",null,null,null,null,null,null,null,null,null,null,null,null,null,null,null,null,null,null,null,null,null,null,null,null,null,null,null,null,null,null,{"$f":"AJ567*100/AJ565","v":{"$error":"#DIV/0!"}},null,null,{"$f":"IF(AJ565=0,0,AF566)","v":0},{"$f":"IF(AI566<=5,\"actualizare mai mică de 5% din valoarea eligibila\",\"actualizare mai mare de 5% din valoarea eligibila\")","v":"actualizare mai mică de 5% din valoarea eligibila"}]
["ACTUALIZARE Cheltuieli Eligibile (max 5%)",null,null,null,null,null,null,null,null,null,null,null,null,null,null,null,null,null,null,null,null,null,null,null,null,null,null,null,null,null,null,null,null,null,null,null,null,null,null,null,null,null,null,null,null,null,null,null,null,null,null,null,{"$f":"AJ567","v":0}]
["TOTAL GENERAL CU ACTUALIZARE",null,null,null,null,null,null,null,null,null,null,null,null,null,null,null,null,null,null,null,null,null,null,null,null,null,null,null,null,null,null,null,null,null,null,{"$f":"AJ565+AJ567","v":0},null,null,null,null,null,null,null,null,{"$f":"AS565","v":0},null,null,null,null,null,null,null,{"$f":"SUM(AJ568:AZ568)","v":0}]
["Valoare TVA",null,null,null,null,null,null,null,null,null,null,null,null,null,null,null,null,null,null,null,null,null,null,null,null,null,null,null,null,null,null,null,null,null,null,null,null,null,null,null,null,null,null,null,null,null,null,null,null,null,null,null,0]
[null,null,null,null,null,null,null,null,null,null,null,null,null,null,null,null,null,null,null,null,null,null,null,null,null,null,null,null,null,null,null,null,null,null,null,{"$f":"SUM(AJ568:AR569)","v":0},null,null,null,null,null,null,null,null,{"$f":"SUM(AS568:AZ569)","v":0},null,null,null,null,null,null,null,0]
["TOTAL GENERAL inclusiv TVA",null,null,null,null,null,null,null,null,null,null,null,null,null,null,null,null,null,null,null,null,null,null,null,null,null,null,null,null,null,null,null,null,null,null,{"$f":"BA568+BA569","v":0}]
[null,null,null,null,null,null,null,null,null,null,null,null,null,null,null,null,null,null,null,null,null,null,null,null,null,null,null,null,null,null,null,null,null,null,null,"LEI",null,null,null,null,null,null,null,null,"EURO"]
["VALOARE TOTALĂ",null,null,null,null,null,null,null,null,null,null,null,null,null,null,null,null,null,null,null,null,null,null,null,null,null,null,null,null,null,null,null,null,null,null,{"$f":"AS573*AB545","v":0},null,null,null,null,null,null,null,null,{"$f":"AJ571","v":0}]
["VALOARE ELIGIBILĂ",null,null,null,null,null,null,null,null,null,null,null,null,null,null,null,null,null,null,null,null,null,null,null,null,null,null,null,null,null,null,null,null,null,null,{"$f":"AS574*AB545","v":0},null,null,null,null,null,null,null,null,{"$f":"AJ568+AJ569","v":0}]
["VALOARE NEELIGIBILĂ",null,null,null,null,null,null,null,null,null,null,null,null,null,null,null,null,null,null,null,null,null,null,null,null,null,null,null,null,null,null,null,null,null,null,{"$f":"AS575*AB545","v":0},null,null,null,null,null,null,null,null,{"$f":"AS568+AS569","v":0}]
[]
["Plan Financiar",null,null,null,null,null,null,null,null,null,null,null,null,null,null,null,null,null,null,null,null,null,null,null,null,null,null,null,null,null,null,null,null,null,null,"Cheltuieli eligibile EURO",null,null,null,null,null,null,null,null,"Cheltuieli neeligibile EURO",null,null,null,null,null,null,null,"Total"]
["Ajutor public nerambursabil (contribuţie UE şi cofinanţare naţională)",null,null,null,null,null,null,null,null,null,null,null,null,null,null,null,null,null,null,null,null,null,null,null,null,null,null,null,null,null,null,null,null,null,null,null,null,null,null,null,null,null,null,null,null,null,null,null,null,null,null,null,{"$f":"AJ578","v":0}]
["Cofinantare privata, din care:",null,null,null,null,null,null,null,null,null,null,null,null,null,null,null,null,null,null,null,null,null,null,null,null,null,null,null,null,null,null,null,null,null,null,0,null,null,null,null,null,null,null,null,{"$f":"SUM(AS580:AZ581)","v":0},null,null,null,null,null,null,null,{"$f":"SUM(AJ579:AZ579)","v":0}]
[null,null,null,null,null,null,null,null,null,null,null,null,null,null,null,"- autofinantare",null,null,null,null,null,null,null,null,null,null,null,null,null,null,null,null,null,null,null,null,null,null,null,null,null,null,null,null,null,null,null,null,null,null,null,null,0]
[null,null,null,null,null,null,null,null,null,null,null,null,null,null,null,"- imprumuturi",null,null,null,null,null,null,null,null,null,null,null,null,null,null,null,null,null,null,null,null,null,null,null,null,null,null,null,null,null,null,null,null,null,null,null,null,0]
["TOTAL PROIECT",null,null,null,null,null,null,null,null,null,null,null,null,null,null,null,null,null,null,null,null,null,null,null,null,null,null,null,null,null,null,null,null,null,null,{"$f":"AJ578+AJ579","v":0},null,null,null,null,null,null,null,null,{"$f":"AS579","v":0},null,null,null,null,null,null,null,0]
["Procent contribuţie publică",null,null,null,null,null,null,null,null,null,null,null,null,null,null,null,null,null,null,null,null,null,null,null,null,null,null,null,null,null,null,null,null,{"$f":"AJ578*100/AJ582","v":{"$error":"#DIV/0!"}},{"$f":"IF(AJ582=0,0,AH583)","v":0},{"$f":"AI583","v":0},null,null,null,null,null,null,null,"%"]
["Avans solicitat"]
["Procent avans solicitat ca procent din ajutorul public nerambursabil",null,null,null,null,null,null,null,null,null,null,null,null,null,null,null,null,null,null,null,null,null,null,null,null,null,null,null,null,null,null,null,null,null,{"$f":"AJ584*100/AJ578","v":{"$error":"#DIV/0!"}},{"$f":"IF(AJ578=0,0,AI585)","v":0},null,null,null,null,null,null,null,null,{"$f":"IF(AJ585<=50,\"Suma avans mai mica de 50% din ajutorul public\",\"Suma avans mai mare de 50% din ajutorul public\")","v":"Suma avans mai mica de 50% din ajutorul public"}]
[]
[null,"Sectiunea C: BUGET INDICATIV TOTALIZATOR - HG907/2016"]
["MINISTERUL AGRICULTURII ŞI DEZVOLTĂRII RURALE"]
["AGENŢIA PENTRU FINANŢAREA INVESTIŢIILOR RURALE"]
["Buget Indicativ Totalizator al Proiectului (Valori fara TVA )"]
[]
[null,"Curs EURO",null,null,null,null,null,null,null,null,null,null,null,null,null,null,null,null,"Data întocmirii devizului general din SF/DALI"]
[]
["Buget Indicativ Totalizator al Proiectului (Valori fara TVA )"]
["Măsura",null,null,null,null,null,null,null,null,null,null,null,null,null,null,null,null,null,null,null,null,null,null,null,null,null,null,null,null,null,null,null,null,null,null,"16.7/2A"]
["Denumirea capitolelor de cheltuieli",null,null,null,null,null,null,null,null,null,null,null,null,null,null,null,null,null,null,null,null,null,null,null,null,null,null,null,null,null,null,null,null,null,null,"Cheltuieli eligibile",null,null,null,null,null,null,null,null,"Cheltuieli neeligibile",null,null,null,null,null,null,null,"Total"]
[null,null,null,null,null,null,null,null,null,null,null,null,null,null,null,null,null,null,null,null,null,null,null,null,null,null,null,null,null,null,null,null,null,null,null,"EURO",null,null,null,null,null,null,null,null,"EURO",null,null,null,null,null,null,null,"EURO"]
[1,null,null,null,null,null,null,null,null,null,null,null,null,null,null,null,null,null,null,null,null,null,null,null,null,null,null,null,null,null,null,null,null,null,null,2,null,null,null,null,null,null,null,null,3,null,null,null,null,null,null,null,4]
["Capitolul 1 Cheltuieli pentru obtinerea şi amenajarea terenului - total, din care:",null,null,null,null,null,null,null,null,null,null,null,null,null,null,null,null,null,null,null,null,null,null,null,null,null,null,null,null,null,null,null,null,null,null,{"$f":"SUM(AJ601:AR603)","v":0},null,null,null,null,null,null,null,null,{"$f":"SUM(AS600:AZ603)","v":0},null,null,null,null,null,null,null,{"$f":"SUM(AJ599:AZ599)","v":0}]
["1.1 Cheltuieli pentru obţinerea terenului",null,null,null,null,null,null,null,null,null,null,null,null,null,null,null,null,null,null,null,null,null,null,null,null,null,null,null,null,null,null,null,null,null,null,null,null,null,null,null,null,null,null,null,{"$f":"AS458","v":0},null,null,null,null,null,null,null,{"$f":"AS600","v":0}]
["1.2 Cheltuieli pentru amenajarea terenului",null,null,null,null,null,null,null,null,null,null,null,null,null,null,null,null,null,null,null,null,null,null,null,null,null,null,null,null,null,null,null,null,null,null,{"$f":"AJ459","v":0},null,null,null,null,null,null,null,null,{"$f":"AS459","v":0},null,null,null,null,null,null,null,{"$f":"SUM(AJ601:AZ601)","v":0}]
["1.3 Cheltuieli cu amenajari pentru protecţia mediului şi aducerea la starea iniţială",null,null,null,null,null,null,null,null,null,null,null,null,null,null,null,null,null,null,null,null,null,null,null,null,null,null,null,null,null,null,null,null,null,null,{"$f":"AJ460","v":0},null,null,null,null,null,null,null,null,{"$f":"AS460","v":0},null,null,null,null,null,null,null,0]
["1.4 Cheltuieli pentru relocarea\\protecţia utilităţilor",null,null,null,null,null,null,null,null,null,null,null,null,null,null,null,null,null,null,null,null,null,null,null,null,null,null,null,null,null,null,null,null,null,null,{"$f":"AJ461","v":0},null,null,null,null,null,null,null,null,{"$f":"AS461","v":0},null,null,null,null,null,null,null,{"$f":"SUM(AJ603:AZ603)","v":0}]
["Capitolul 2 Cheltuieli pentru asigurarea utilităţilor necesare obiectivului",null,null,null,null,null,null,null,null,null,null,null,null,null,null,null,null,null,null,null,null,null,null,null,null,null,null,null,null,null,null,null,null,null,null,{"$f":"AJ462","v":0},null,null,null,null,null,null,null,null,{"$f":"AS462","v":0},null,null,null,null,null,null,null,{"$f":"SUM(AJ604:AZ604)","v":0}]
["Capitolul 3 Cheltuieli pentru proiectare şi asistenţă tehnică - total, din care:",null,null,null,null,null,null,null,null,null,null,null,null,null,null,null,null,null,null,null,null,null,null,null,null,null,null,null,null,null,null,null,null,null,null,{"$f":"AJ606+AJ610+AJ611+AJ612+AJ613+AJ621+AJ624+AJ629","v":0},null,null,null,null,null,null,null,null,{"$f":"AS606+AS610+AS611+AS612+AS613+AS620+AS621+AS624+AS629","v":0},null,null,null,null,null,null,null,0]
["3.1 Studii",null,null,null,null,null,null,null,null,null,null,null,null,null,null,null,null,null,null,null,null,null,null,null,null,null,null,null,null,null,null,null,null,null,null,{"$f":"SUM(AJ607:AJ609)","v":0},null,null,null,null,null,null,null,null,{"$f":"SUM(AS607:AS609)","v":0},null,null,null,null,null,null,null,{"$f":"SUM(AJ606:AZ606)","v":0}]
["      3.1.1 Studii de teren",null,null,null,null,null,null,null,null,null,null,null,null,null,null,null,null,null,null,null,null,null,null,null,null,null,null,null,null,null,null,null,null,null,null,{"$f":"AJ465","v":0},null,null,null,null,null,null,null,null,{"$f":"AS465","v":0},null,null,null,null,null,null,null,0]
["      3.1.2 Raport privind impactul asupra mediului",null,null,null,null,null,null,null,null,null,null,null,null,null,null,null,null,null,null,null,null,null,null,null,null,null,null,null,null,null,null,null,null,null,null,0,null,null,null,null,null,null,null,null,0,null,null,null,null,null,null,null,0]
["      3.1.3 Alte studii specifice",null,null,null,null,null,null,null,null,null,null,null,null,null,null,null,null,null,null,null,null,null,null,null,null,null,null,null,null,null,null,null,null,null,null,0,null,null,null,null,null,null,null,null,0,null,null,null,null,null,null,null,0]
["3.2 Documentații-suport și cheltuieli pentru obţinerea de avize, acorduri şi autorizaţii",null,null,null,null,null,null,null,null,null,null,null,null,null,null,null,null,null,null,null,null,null,null,null,null,null,null,null,null,null,null,null,null,null,null,0,null,null,null,null,null,null,null,null,0,null,null,null,null,null,null,null,{"$f":"SUM(AJ610:AZ610)","v":0}]
["3.3 Expertizare tehnică",null,null,null,null,null,null,null,null,null,null,null,null,null,null,null,null,null,null,null,null,null,null,null,null,null,null,null,null,null,null,null,null,null,null,0,null,null,null,null,null,null,null,null,0,null,null,null,null,null,null,null,0]
["3.4 Certificarea performanței energetice și auditul energetic al clădirilor",null,null,null,null,null,null,null,null,null,null,null,null,null,null,null,null,null,null,null,null,null,null,null,null,null,null,null,null,null,null,null,null,null,null,0,null,null,null,null,null,null,null,null,0,null,null,null,null,null,null,null,0]
["3.5 Proiectare",null,null,null,null,null,null,null,null,null,null,null,null,null,null,null,null,null,null,null,null,null,null,null,null,null,null,null,null,null,null,null,null,null,null,{"$f":"SUM(AJ614:AJ619)","v":0},null,null,null,null,null,null,null,null,{"$f":"SUM(AS614:AS619)","v":0},null,null,null,null,null,null,null,0]
["      3.5.1 Temă de proiectare",null,null,null,null,null,null,null,null,null,null,null,null,null,null,null,null,null,null,null,null,null,null,null,null,null,null,null,null,null,null,null,null,null,null,{"$f":"AJ472","v":0},null,null,null,null,null,null,null,null,{"$f":"AS472","v":0},null,null,null,null,null,null,null,0]
["      3.5.2 Studiu de prefezabilitate",null,null,null,null,null,null,null,null,null,null,null,null,null,null,null,null,null,null,null,null,null,null,null,null,null,null,null,null,null,null,null,null,null,null,0,null,null,null,null,null,null,null,null,0,null,null,null,null,null,null,null,0]
["      3.5.3 Studiu de fezabilitate/documentație de avizare a lucrărilor de intervenții și deviz general",null,null,null,null,null,null,null,null,null,null,null,null,null,null,null,null,null,null,null,null,null,null,null,null,null,null,null,null,null,null,null,null,null,null,0,null,null,null,null,null,null,null,null,0,null,null,null,null,null,null,null,0]
["      3.5.4 Documentațiile tehnice necesare în vederea obținerii avizelor/acordurilor/ autorizațiilor",null,null,null,null,null,null,null,null,null,null,null,null,null,null,null,null,null,null,null,null,null,null,null,null,null,null,null,null,null,null,null,null,null,null,0,null,null,null,null,null,null,null,null,0,null,null,null,null,null,null,null,{"$f":"SUM(AJ617:AZ617)","v":0}]
["      3.5.5 Verificarea tehnică de calitate a proiectului tehnic și a detaliilor de execuție",null,null,null,null,null,null,null,null,null,null,null,null,null,null,null,null,null,null,null,null,null,null,null,null,null,null,null,null,null,null,null,null,null,null,0,null,null,null,null,null,null,null,null,0,null,null,null,null,null,null,null,0]
["      3.5.6 Proiect tehnic și detalii de execuție",null,null,null,null,null,null,null,null,null,null,null,null,null,null,null,null,null,null,null,null,null,null,null,null,null,null,null,null,null,null,null,null,null,null,0,null,null,null,null,null,null,null,null,0,null,null,null,null,null,null,null,0]
["3.6 Organizarea procedurilor de achiziţie",null,null,null,null,null,null,null,null,null,null,null,null,null,null,null,null,null,null,null,null,null,null,null,null,null,null,null,null,null,null,null,null,null,null,null,null,null,null,null,null,null,null,null,0,null,null,null,null,null,null,null,{"$f":"AS620","v":0}]
["3.7 Consultanță",null,null,null,null,null,null,null,null,null,null,null,null,null,null,null,null,null,null,null,null,null,null,null,null,null,null,null,null,null,null,null,null,null,null,{"$f":"AJ622","v":0},null,null,null,null,null,null,null,null,{"$f":"SUM(AS622:AS623)","v":0},null,null,null,null,null,null,null,{"$f":"SUM(AJ621:AZ621)","v":0}]
["      3.7.1 Managementul de proiect pentru obiectivul de investiții",null,null,null,null,null,null,null,null,null,null,null,null,null,null,null,null,null,null,null,null,null,null,null,null,null,null,null,null,null,null,null,null,null,null,{"$f":"AJ480","v":0},null,null,null,null,null,null,null,null,{"$f":"AS480","v":0},null,null,null,null,null,null,null,0]
["      3.7.2 Auditul financiar",null,null,null,null,null,null,null,null,null,null,null,null,null,null,null,null,null,null,null,null,null,null,null,null,null,null,null,null,null,null,null,null,null,null,null,null,null,null,null,null,null,null,null,{"$f":"AS481","v":0},null,null,null,null,null,null,null,{"$f":"AS623","v":0}]
["3.8 Asistența tehnică",null,null,null,null,null,null,null,null,null,null,null,null,null,null,null,null,null,null,null,null,null,null,null,null,null,null,null,null,null,null,null,null,null,null,{"$f":"AJ625+AJ628","v":0},null,null,null,null,null,null,null,null,{"$f":"AS625+AS628","v":0},null,null,null,null,null,null,null,{"$f":"SUM(AJ624:AZ624)","v":0}]
["      3.8.1 Asistență tehnică din partea proiectantului",null,null,null,null,null,null,null,null,null,null,null,null,null,null,null,null,null,null,null,null,null,null,null,null,null,null,null,null,null,null,null,null,null,null,{"$f":"SUM(AJ626:AJ627)","v":0},null,null,null,null,null,null,null,null,{"$f":"SUM(AS626:AS627)","v":0},null,null,null,null,null,null,null,0]
["            3.8.1.1 pe perioada de execuție a lucrărilor",null,null,null,null,null,null,null,null,null,null,null,null,null,null,null,null,null,null,null,null,null,null,null,null,null,null,null,null,null,null,null,null,null,null,{"$f":"AJ484","v":0},null,null,null,null,null,null,null,null,{"$f":"AS484","v":0},null,null,null,null,null,null,null,0]
["            3.8.1.2 pentru participarea proiectantului la fazele incluse în programul de control al lucrărilor de execuție, avizat de către Inspectoratul de Stat în Construcții",null,null,null,null,null,null,null,null,null,null,null,null,null,null,null,null,null,null,null,null,null,null,null,null,null,null,null,null,null,null,null,null,null,null,{"$f":"AJ485","v":0},null,null,null,null,null,null,null,null,{"$f":"AS485","v":0},null,null,null,null,null,null,null,0]
["      3.8.2 Dirigenție de șantier",null,null,null,null,null,null,null,null,null,null,null,null,null,null,null,null,null,null,null,null,null,null,null,null,null,null,null,null,null,null,null,null,null,null,{"$f":"AJ486","v":0},null,null,null,null,null,null,null,null,{"$f":"AS486","v":0},null,null,null,null,null,null,null,0]
["3.9 Cheltuieli cu activitățile pregătitoare",null,null,null,null,null,null,null,null,null,null,null,null,null,null,null,null,null,null,null,null,null,null,null,null,null,null,null,null,null,null,null,null,null,null,{"$f":"SUM(AJ630:AJ631)","v":0},null,null,null,null,null,null,null,null,{"$f":"SUM(AS630:AS631)","v":0},null,null,null,null,null,null,null,{"$f":"SUM(AJ629:AZ629)","v":0}]
["       3.9.1 Elaborarea de studii pregătitoare, studii de fezabilitate și planuri, inclusiv planul\nproiectului",null,null,null,null,null,null,null,null,null,null,null,null,null,null,null,null,null,null,null,null,null,null,null,null,null,null,null,null,null,null,null,null,null,null,{"$f":"AJ552","v":0},null,null,null,null,null,null,null,null,{"$f":"AS552","v":0},null,null,null,null,null,null,null,0]
["      3.9.2 Alte cheltuieli necesare elaborării documentației necesare depunerii proiectului complet în etapa II care nu se încadrează în categoria de mai sus",null,null,null,null,null,null,null,null,null,null,null,null,null,null,null,null,null,null,null,null,null,null,null,null,null,null,null,null,null,null,null,null,null,null,{"$f":"AJ553","v":0},null,null,null,null,null,null,null,null,{"$f":"AS553","v":0},null,null,null,null,null,null,null,{"$f":"SUM(AJ631:AZ631)","v":0}]
["Verificare încadrare cheltuieli capitolul 3",null,null,null,null,null,null,null,null,null,null,null,null,null,null,null,null,null,null,null,null,null,null,null,null,null,null,null,null,null,null,null,{"$f":"AJ599+AJ604+AJ633","v":0},{"$f":"IF(AG632=0,0,AI632)","v":0},{"$f":"AJ605*100/AG632","v":{"$error":"#DIV/0!"}},{"$f":"IF(AJ633=0,IF(AH632<=5,\"cheltuieli capitol 3 se incadreaza in limita de 5%\",\"cheltuieli capitol 3 nu se incadreaza in limita de 5%\"),IF(AH632<=10,\"cheltuieli capitol 3 se incadreaza in limita de 10%\",\"cheltuieli capitol 3 nu se incadreaza in limita de 10%\"))","v":"cheltuieli capitol 3 se incadreaza in limita de 5%"}]
["Capitolul 4 Cheltuieli pentru investiţia de bază - total, din care:",null,null,null,null,null,null,null,null,null,null,null,null,null,null,null,null,null,null,null,null,null,null,null,null,null,null,null,null,null,null,null,null,null,null,{"$f":"AJ641+AJ634","v":0},null,null,null,null,null,null,null,null,{"$f":"AS641+AS634","v":0},null,null,null,null,null,null,null,{"$f":"AS633+AJ633","v":0}]
["A - Constructii şi lucrări de intervenţii - total, din care:",null,null,null,null,null,null,null,null,null,null,null,null,null,null,null,null,null,null,null,null,null,null,null,null,null,null,null,null,null,null,null,null,null,null,{"$f":"SUM(AJ635:AR640)","v":0},null,null,null,null,null,null,null,null,{"$f":"SUM(AS635:AZ640)","v":0},null,null,null,null,null,null,null,{"$f":"SUM(AJ634:AZ634)","v":0}]
["4.1 Construcţii şi instalaţii",null,null,null,null,null,null,null,null,null,null,null,null,null,null,null,null,null,null,null,null,null,null,null,null,null,null,null,null,null,null,null,null,null,null,{"$f":"AJ490","v":0},null,null,null,null,null,null,null,null,{"$f":"AS490","v":0},null,null,null,null,null,null,null,{"$f":"SUM(AJ635:AZ635)","v":0}]
["4.2 Montaj utilaje, echipamente tehnologice şi funcţionale",null,null,null,null,null,null,null,null,null,null,null,null,null,null,null,null,null,null,null,null,null,null,null,null,null,null,null,null,null,null,null,null,null,null,0,null,null,null,null,null,null,null,null,0,null,null,null,null,null,null,null,0]
["4.3 Utilaje, echipamente tehnologice şi funcţionale care necesită montaj",null,null,null,null,null,null,null,null,null,null,null,null,null,null,null,null,null,null,null,null,null,null,null,null,null,null,null,null,null,null,null,null,null,null,0,null,null,null,null,null,null,null,null,0,null,null,null,null,null,null,null,0]
["4.4 Utilaje, echipamente tehnologice şi funcţionale care nu necesită montaj şi echipamente de transport",null,null,null,null,null,null,null,null,null,null,null,null,null,null,null,null,null,null,null,null,null,null,null,null,null,null,null,null,null,null,null,null,null,null,0,null,null,null,null,null,null,null,null,0,null,null,null,null,null,null,null,0]
["4.5 Dotări",null,null,null,null,null,null,null,null,null,null,null,null,null,null,null,null,null,null,null,null,null,null,null,null,null,null,null,null,null,null,null,null,null,null,0,null,null,null,null,null,null,null,null,0,null,null,null,null,null,null,null,0]
["4.6 Active necorporale",null,null,null,null,null,null,null,null,null,null,null,null,null,null,null,null,null,null,null,null,null,null,null,null,null,null,null,null,null,null,null,null,null,null,0,null,null,null,null,null,null,null,null,0,null,null,null,null,null,null,null,0]
["B - Cheltuieli pentru investitii în culturi/plantaţii",null,null,null,null,null,null,null,null,null,null,null,null,null,null,null,null,null,null,null,null,null,null,null,null,null,null,null,null,null,null,null,null,null,null,{"$f":"SUM(AJ642:AR646)","v":0},null,null,null,null,null,null,null,null,{"$f":"SUM(AS642:AZ646)","v":0},null,null,null,null,null,null,null,{"$f":"SUM(AJ641:AZ641)","v":0}]
["Subcapitol 1 - Lucrări de pregătire a terenului",null,null,null,null,null,null,null,null,null,null,null,null,null,null,null,null,null,null,null,null,null,null,null,null,null,null,null,null,null,null,null,null,null,null,{"$f":"AJ497","v":0},null,null,null,null,null,null,null,null,{"$f":"AS497","v":0},null,null,null,null,null,null,null,0]
["Subcapitol 2 - Infiinţarea plantaţiei",null,null,null,null,null,null,null,null,null,null,null,null,null,null,null,null,null,null,null,null,null,null,null,null,null,null,null,null,null,null,null,null,null,null,{"$f":"AJ498","v":0},null,null,null,null,null,null,null,null,{"$f":"AS498","v":0},null,null,null,null,null,null,null,0]
["Subcapitol 3 - Intreţinere plantaţie în anul 1",null,null,null,null,null,null,null,null,null,null,null,null,null,null,null,null,null,null,null,null,null,null,null,null,null,null,null,null,null,null,null,null,null,null,null,null,null,null,null,null,null,null,null,{"$f":"AS499","v":0},null,null,null,null,null,null,null,0]
["Subcapitol 4 - Intreţinere plantaţie în anul 2",null,null,null,null,null,null,null,null,null,null,null,null,null,null,null,null,null,null,null,null,null,null,null,null,null,null,null,null,null,null,null,null,null,null,null,null,null,null,null,null,null,null,null,{"$f":"AS500","v":0},null,null,null,null,null,null,null,0]
["Subcapitol 5 - Instalat sistem susţinere şi împrejmuire",null,null,null,null,null,null,null,null,null,null,null,null,null,null,null,null,null,null,null,null,null,null,null,null,null,null,null,null,null,null,null,null,null,null,{"$f":"AJ501","v":0},null,null,null,null,null,null,null,null,{"$f":"AS501","v":0},null,null,null,null,null,null,null,0]
["Capitolul 5 Alte cheltuieli - total, din care:",null,null,null,null,null,null,null,null,null,null,null,null,null,null,null,null,null,null,null,null,null,null,null,null,null,null,null,null,null,null,null,null,null,null,{"$f":"AJ648+AJ651+AJ657","v":0},null,null,null,null,null,null,null,null,{"$f":"AS648+AS651+AS657+AS658","v":0},null,null,null,null,null,null,null,0]
["5.1 Organizare de şantier",null,null,null,null,null,null,null,null,null,null,null,null,null,null,null,null,null,null,null,null,null,null,null,null,null,null,null,null,null,null,null,null,null,null,{"$f":"SUM(AJ649:AR650)","v":0},null,null,null,null,null,null,null,null,{"$f":"SUM(AS649:AZ650)","v":0},null,null,null,null,null,null,null,0]
["      5.1.1 Lucrări de construcţii şi instalaţii aferente organizării de şantier",null,null,null,null,null,null,null,null,null,null,null,null,null,null,null,null,null,null,null,null,null,null,null,null,null,null,null,null,null,null,null,null,null,null,{"$f":"AJ504","v":0},null,null,null,null,null,null,null,null,{"$f":"AS504","v":0},null,null,null,null,null,null,null,0]
["      5.1.2 Cheltuieli conexe orgănizării şantierului",null,null,null,null,null,null,null,null,null,null,null,null,null,null,null,null,null,null,null,null,null,null,null,null,null,null,null,null,null,null,null,null,null,null,{"$f":"AJ505","v":0},null,null,null,null,null,null,null,null,{"$f":"AS505","v":0},null,null,null,null,null,null,null,0]
["5.2 Comisioane, cote, taxe, costul creditului",null,null,null,null,null,null,null,null,null,null,null,null,null,null,null,null,null,null,null,null,null,null,null,null,null,null,null,null,null,null,null,null,null,null,{"$f":"SUM(AJ653:AR656)-AJ655","v":0},null,null,null,null,null,null,null,null,{"$f":"SUM(AS652:AZ656)","v":0},null,null,null,null,null,null,null,{"$f":"SUM(AJ651:AZ651)","v":0}]
["      5.2.1 Comisioanele și dobânzile aferente creditului băncii finanțatoare",null,null,null,null,null,null,null,null,null,null,null,null,null,null,null,null,null,null,null,null,null,null,null,null,null,null,null,null,null,null,null,null,null,null,null,null,null,null,null,null,null,null,null,{"$f":"AS507","v":0},null,null,null,null,null,null,null,{"$f":"AS652","v":0}]
["      5.2.2 Cota aferentă ISC pentru controlul calității lucrărilor de construcții",null,null,null,null,null,null,null,null,null,null,null,null,null,null,null,null,null,null,null,null,null,null,null,null,null,null,null,null,null,null,null,null,null,null,{"$f":"AJ508","v":0},null,null,null,null,null,null,null,null,0,null,null,null,null,null,null,null,{"$f":"SUM(AJ653:AZ653)","v":0}]
["      5.2.3 Cota aferentă ISC pentru controlul statului în amenajarea teritoriului, urbanism și pentru autorizarea lucrărilor de construcţii",null,null,null,null,null,null,null,null,null,null,null,null,null,null,null,null,null,null,null,null,null,null,null,null,null,null,null,null,null,null,null,null,null,null,{"$f":"AJ509","v":0},null,null,null,null,null,null,null,null,0,null,null,null,null,null,null,null,0]
["      5.2.4 Cota aferentă Casei Sociale a Constructorilor - CSC",null,null,null,null,null,null,null,null,null,null,null,null,null,null,null,null,null,null,null,null,null,null,null,null,null,null,null,null,null,null,null,null,null,null,null,null,null,null,null,null,null,null,null,0,null,null,null,null,null,null,null,{"$f":"AS655","v":0}]
["      5.2.5 Taxe pentru acorduri, avize conforme și autorizația de construire/desființare",null,null,null,null,null,null,null,null,null,null,null,null,null,null,null,null,null,null,null,null,null,null,null,null,null,null,null,null,null,null,null,null,null,null,{"$f":"AJ511","v":0},null,null,null,null,null,null,null,null,0,null,null,null,null,null,null,null,{"$f":"SUM(AJ656:AZ656)","v":0}]
["5.3 Cheltuieli diverse şi neprevăzute",null,null,null,null,null,null,null,null,null,null,null,null,null,null,null,null,null,null,null,null,null,null,null,null,null,null,null,null,null,null,null,null,null,null,{"$f":"AJ512","v":0},null,null,null,null,null,null,null,null,0,null,null,null,null,null,null,null,{"$f":"SUM(AJ657:AZ657)","v":0}]
["5.4 Cheltuieli pentru informare și publicitate",null,null,null,null,null,null,null,null,null,null,null,null,null,null,null,null,null,null,null,null,null,null,null,null,null,null,null,null,null,null,null,null,null,null,null,null,null,null,null,null,null,null,null,0,null,null,null,null,null,null,null,{"$f":"AS658","v":0}]
["Procent cheltuieli diverse şi neprevăzute",null,null,null,null,null,null,null,null,null,null,null,null,null,null,null,null,null,null,null,null,null,null,null,null,null,null,null,null,null,null,null,null,null,null,{"$f":"IF((AJ601+AJ602+AJ603+AJ604+AJ613+AJ624+AJ633)=0,0,(AJ657/(AJ601+AJ602+AJ603+AJ604+AJ613+AJ624+AJ633)*100))","v":0},null,null,null,null,null,null,null,null,null,null,null,null,null,null,null,null,null,null,null,null,null,null,null,"%"]
["Capitolul 6 Cheltuieli pentru probe tehnologice şi teste - total, din care:",null,null,null,null,null,null,null,null,null,null,null,null,null,null,null,null,null,null,null,null,null,null,null,null,null,null,null,null,null,null,null,null,null,null,{"$f":"AJ662","v":0},null,null,null,null,null,null,null,null,{"$f":"SUM(AS661:AS662)","v":0},null,null,null,null,null,null,null,{"$f":"SUM(AJ660:AZ660)","v":0}]
["6.1 Pregătirea personalului de exploatare",null,null,null,null,null,null,null,null,null,null,null,null,null,null,null,null,null,null,null,null,null,null,null,null,null,null,null,null,null,null,null,null,null,null,null,null,null,null,null,null,null,null,null,{"$f":"AS516","v":0},null,null,null,null,null,null,null,{"$f":"AS661","v":0}]
["6.2 Probe tehnologice şi teste",null,null,null,null,null,null,null,null,null,null,null,null,null,null,null,null,null,null,null,null,null,null,null,null,null,null,null,null,null,null,null,null,null,null,{"$f":"AJ517","v":0},null,null,null,null,null,null,null,null,{"$f":"AS517","v":0},null,null,null,null,null,null,null,{"$f":"SUM(AJ662:AZ662)","v":0}]
["Capitolul 7 Cheltuieli specifice cu intensitatea de 100%",null,null,null,null,null,null,null,null,null,null,null,null,null,null,null,null,null,null,null,null,null,null,null,null,null,null,null,null,null,null,null,null,null,null,{"$f":"AJ664+AJ669+AJ673","v":0},null,null,null,null,null,null,null,null,{"$f":"AS664+AS669+AS673","v":0},null,null,null,null,null,null,null,{"$f":"SUM(AJ663:AZ663)","v":0}]
["7.1 Cheltuielile de funcționare ale parteneriatului",null,null,null,null,null,null,null,null,null,null,null,null,null,null,null,null,null,null,null,null,null,null,null,null,null,null,null,null,null,null,null,null,null,null,{"$f":"SUM(AJ665:AJ668)","v":0},null,null,null,null,null,null,null,null,{"$f":"SUM(AS665:AZ668)","v":0},null,null,null,null,null,null,null,0]
["    7.1.1 Cheltuieli de transport și diurnă ale coordonatorului/echipei de proiect și partenerilor, legate de activitățile parteneriatului, conform legislatiei nationale;",null,null,null,null,null,null,null,null,null,null,null,null,null,null,null,null,null,null,null,null,null,null,null,null,null,null,null,null,null,null,null,null,null,null,{"$f":"AJ555","v":0},null,null,null,null,null,null,null,null,{"$f":"AS555","v":0},null,null,null,null,null,null,null,0]
["    7.1.2 Onorarii ale personalului (de exemplu angajat salariat în vederea asigurării activității de secretariat, relației cu AFIR, etc.);",null,null,null,null,null,null,null,null,null,null,null,null,null,null,null,null,null,null,null,null,null,null,null,null,null,null,null,null,null,null,null,null,null,null,{"$f":"AJ556","v":0},null,null,null,null,null,null,null,null,{"$f":"AS556","v":0},null,null,null,null,null,null,null,0]
["    7.1.3 Cheltuieli legate de închirierea spațiilor de desfășurare a întâlnirilor parteneriatului, închiriere sediu, achiziție echipamente IT și alte dotări necesare desfășurării cooperării;",null,null,null,null,null,null,null,null,null,null,null,null,null,null,null,null,null,null,null,null,null,null,null,null,null,null,null,null,null,null,null,null,null,null,{"$f":"AJ557","v":0},null,null,null,null,null,null,null,null,{"$f":"AS557","v":0},null,null,null,null,null,null,null,{"$f":"SUM(AJ667:AZ667)","v":0}]
["    7.1.4 Alte cheltuieli ce nu pot fi incluse în categoriile de mai sus",null,null,null,null,null,null,null,null,null,null,null,null,null,null,null,null,null,null,null,null,null,null,null,null,null,null,null,null,null,null,null,null,null,null,{"$f":"AJ558","v":0},null,null,null,null,null,null,null,null,{"$f":"AS558","v":0},null,null,null,null,null,null,null,{"$f":"SUM(AJ668:AZ668)","v":0}]
["7.2 Costurile directe generate în mod specific de activitățile incluse în planul de proiect depus departeneriat (pot fi efectuate după semnarea contractului), precum:",null,null,null,null,null,null,null,null,null,null,null,null,null,null,null,null,null,null,null,null,null,null,null,null,null,null,null,null,null,null,null,null,null,null,{"$f":"SUM(AJ670:AJ672)","v":0},null,null,null,null,null,null,null,null,{"$f":"SUM(AS670:AZ672)","v":0},null,null,null,null,null,null,null,{"$f":"SUM(AJ669:AZ669)","v":0}]
["    7.2.1 Cheltuieli legate de chirii pentru: echipamente, utilaje, imobile necesare desfășurării activității descrise în proiect (altele decât sediu) etc.",null,null,null,null,null,null,null,null,null,null,null,null,null,null,null,null,null,null,null,null,null,null,null,null,null,null,null,null,null,null,null,null,null,null,{"$f":"AJ560","v":0},null,null,null,null,null,null,null,null,{"$f":"AS560","v":0},null,null,null,null,null,null,null,{"$f":"SUM(AJ670:AZ670)","v":0}]
["    7.2.2 Cheltuieli cu onorarii ale partenerilor, colaboratorilor externi, aferente activitatilor descrise in proiect și prestări servicii de către aceștia sau alte persoane/entități, inclusiv cheltuielile aferente salariului/onorariului coordonatorului de proiect, după caz.",null,null,null,null,null,null,null,null,null,null,null,null,null,null,null,null,null,null,null,null,null,null,null,null,null,null,null,null,null,null,null,null,null,null,{"$f":"AJ561","v":0},null,null,null,null,null,null,null,null,{"$f":"AS561","v":0},null,null,null,null,null,null,null,{"$f":"SUM(AJ671:AZ671)","v":0}]
["    7.2.3 Alte cheltuieli ce nu pot fi incluse în categoriile de mai sus",null,null,null,null,null,null,null,null,null,null,null,null,null,null,null,null,null,null,null,null,null,null,null,null,null,null,null,null,null,null,null,null,null,null,{"$f":"AJ562","v":0},null,null,null,null,null,null,null,null,{"$f":"AS562","v":0},null,null,null,null,null,null,null,0]
["7.3 Cheltuieli generate de diseminarea rezultatelor",null,null,null,null,null,null,null,null,null,null,null,null,null,null,null,null,null,null,null,null,null,null,null,null,null,null,null,null,null,null,null,null,null,null,{"$f":"AJ674","v":0},null,null,null,null,null,null,null,null,{"$f":"AS674","v":0},null,null,null,null,null,null,null,0]
["    7.3.1 Cheltuielile generate de diseminarea rezultatelor cum sunt (listă indicativă): organizare evenimente diseminare, pliante, publicații, participare evenimente specifice în vederea diseminării rezultatelor etc.",null,null,null,null,null,null,null,null,null,null,null,null,null,null,null,null,null,null,null,null,null,null,null,null,null,null,null,null,null,null,null,null,null,null,{"$f":"AJ564","v":0},null,null,null,null,null,null,null,null,{"$f":"AS564","v":0},null,null,null,null,null,null,null,0]
["TOTAL GENERAL",null,null,null,null,null,null,null,null,null,null,null,null,null,null,null,null,null,null,null,null,null,null,null,null,null,null,null,null,null,null,null,null,null,null,{"$f":"AJ599+AJ604+AJ605+AJ633+AJ647+AJ660+AJ663","v":0},null,null,null,null,null,null,null,null,{"$f":"AS599+AS604+AS605+AS633+AS647+AS660+AS663","v":0},null,null,null,null,null,null,null,{"$f":"SUM(AJ675:AZ675)","v":0}]
["Verificare actualizare",null,null,null,null,null,null,null,null,null,null,null,null,null,null,null,null,null,null,null,null,null,null,null,null,null,null,null,null,null,null,{"$f":"AJ677*100/AJ675","v":{"$error":"#DIV/0!"}},null,null,{"$f":"IF(AJ675=0,0,AF676)","v":0},{"$f":"IF(AI676<=5,\"actualizare mai mică de 5% din valoarea eligibila\",\"actualizare mai mare de 5% din valoarea eligibila\")","v":"actualizare mai mică de 5% din valoarea eligibila"}]
["ACTUALIZARE Cheltuieli Eligibile (max 5%)",null,null,null,null,null,null,null,null,null,null,null,null,null,null,null,null,null,null,null,null,null,null,null,null,null,null,null,null,null,null,null,null,null,null,{"$f":"AJ520+AJ567","v":0},null,null,null,null,null,null,null,null,null,null,null,null,null,null,null,null,{"$f":"AJ677","v":0}]
["TOTAL GENERAL CU ACTUALIZARE",null,null,null,null,null,null,null,null,null,null,null,null,null,null,null,null,null,null,null,null,null,null,null,null,null,null,null,null,null,null,null,null,null,null,{"$f":"AJ675+AJ677","v":0},null,null,null,null,null,null,null,null,{"$f":"AS675","v":0},null,null,null,null,null,null,null,{"$f":"SUM(AJ678:AZ678)","v":0}]
["Valoare TVA",null,null,null,null,null,null,null,null,null,null,null,null,null,null,null,null,null,null,null,null,null,null,null,null,null,null,null,null,null,null,null,null,null,null,{"$f":"AJ522+AJ569","v":0},null,null,null,null,null,null,null,null,{"$f":"AS522+AS569","v":0},null,null,null,null,null,null,null,0]
[null,null,null,null,null,null,null,null,null,null,null,null,null,null,null,null,null,null,null,null,null,null,null,null,null,null,null,null,null,null,null,null,null,null,null,{"$f":"SUM(AJ678:AR679)","v":0},null,null,null,null,null,null,null,null,{"$f":"SUM(AS678:AZ679)","v":0},null,null,null,null,null,null,null,0]
["TOTAL GENERAL inclusiv TVA",null,null,null,null,null,null,null,null,null,null,null,null,null,null,null,null,null,null,null,null,null,null,null,null,null,null,null,null,null,null,null,null,null,null,{"$f":"BA678+BA679","v":0}]
[null,null,null,null,null,null,null,null,null,null,null,null,null,null,null,null,null,null,null,null,null,null,null,null,null,null,null,null,null,null,null,null,null,null,null,"LEI",null,null,null,null,null,null,null,null,"EURO"]
["VALOARE TOTALĂ",null,null,null,null,null,null,null,null,null,null,null,null,null,null,null,null,null,null,null,null,null,null,null,null,null,null,null,null,null,null,null,null,null,null,{"$f":"AS683*H592","v":0},null,null,null,null,null,null,null,null,{"$f":"AJ681","v":0}]
["VALOARE ELIGIBILĂ",null,null,null,null,null,null,null,null,null,null,null,null,null,null,null,null,null,null,null,null,null,null,null,null,null,null,null,null,null,null,null,null,null,null,{"$f":"AS684*H592","v":0},null,null,null,null,null,null,null,null,{"$f":"AJ678+AJ679","v":0}]
["VALOARE NEELIGIBILĂ",null,null,null,null,null,null,null,null,null,null,null,null,null,null,null,null,null,null,null,null,null,null,null,null,null,null,null,null,null,null,null,null,null,null,{"$f":"AS685*H592","v":0},null,null,null,null,null,null,null,null,{"$f":"AS678+AS679","v":0}]
[]
["Plan Financiar",null,null,null,null,null,null,null,null,null,null,null,null,null,null,null,null,null,null,null,null,null,null,null,null,null,null,null,null,null,null,null,null,null,null,"Cheltuieli eligibile EURO",null,null,null,null,null,null,null,null,"Cheltuieli neeligibile EURO",null,null,null,null,null,null,null,"Total"]
["Ajutor public nerambursabil (contribuţie UE şi cofinanţare naţională)",null,null,null,null,null,null,null,null,null,null,null,null,null,null,null,null,null,null,null,null,null,null,null,null,null,null,null,null,null,null,null,null,null,null,{"$f":"AJ531+AJ578","v":0},null,null,null,null,null,null,null,null,null,null,null,null,null,null,null,null,{"$f":"AJ688","v":0}]
["Cofinantare privata, din care:",null,null,null,null,null,null,null,null,null,null,null,null,null,null,null,null,null,null,null,null,null,null,null,null,null,null,null,null,null,null,null,null,null,null,{"$f":"SUM(AJ690:AR691)","v":0},null,null,null,null,null,null,null,null,{"$f":"SUM(AS690:AZ691)","v":0},null,null,null,null,null,null,null,{"$f":"SUM(AJ689:AZ689)","v":0}]
[null,null,null,null,null,null,null,null,null,null,null,null,null,null,null,"- autofinantare",null,null,null,null,null,null,null,null,null,null,null,null,null,null,null,null,null,null,null,{"$f":"AJ533","v":0},null,null,null,null,null,null,null,null,{"$f":"AS533+AS580","v":0},null,null,null,null,null,null,null,0]
[null,null,null,null,null,null,null,null,null,null,null,null,null,null,null,"- imprumuturi",null,null,null,null,null,null,null,null,null,null,null,null,null,null,null,null,null,null,null,{"$f":"AJ534","v":0},null,null,null,null,null,null,null,null,{"$f":"AS534+AS581","v":0},null,null,null,null,null,null,null,0]
["TOTAL PROIECT",null,null,null,null,null,null,null,null,null,null,null,null,null,null,null,null,null,null,null,null,null,null,null,null,null,null,null,null,null,null,null,null,null,null,{"$f":"AJ688+AJ689","v":0},null,null,null,null,null,null,null,null,{"$f":"AS689","v":0},null,null,null,null,null,null,null,0]
["Procent contribuţie publică",null,null,null,null,null,null,null,null,null,null,null,null,null,null,null,null,null,null,null,null,null,null,null,null,null,null,null,null,null,null,null,null,{"$f":"AJ688*100/AJ692","v":{"$error":"#DIV/0!"}},{"$f":"IF(AJ692=0,0,AH693)","v":0},{"$f":"AI693","v":0},null,null,null,null,null,null,null,"%"]
["Avans solicitat",null,null,null,null,null,null,null,null,null,null,null,null,null,null,null,null,null,null,null,null,null,null,null,null,null,null,null,null,null,null,null,null,null,null,{"$f":"AJ537+AJ584","v":0}]
["Procent avans solicitat ca procent din ajutorul public nerambursabil",null,null,null,null,null,null,null,null,null,null,null,null,null,null,null,null,null,null,null,null,null,null,null,null,null,null,null,null,null,null,null,null,null,{"$f":"AJ694*100/AJ688","v":{"$error":"#DIV/0!"}},{"$f":"IF(AJ688=0,0,AI695)","v":0},null,null,null,null,null,null,null,null,{"$f":"IF(AJ695<=50,\"Suma avans mai mica de 50% din ajutorul public\",\"Suma avans mai mare de 50% din ajutorul public\")","v":"Suma avans mai mica de 50% din ajutorul public"}]
[]
[null,"BUGET INDICATIV ACTIVITĂȚI PREGĂTITOARE"]
[null,"Măsura",null,null,null,null,null,null,null,null,null,null,null,null,null,null,null,null,null,null,null,null,null,null,null,null,null,null,null,null,null,null,null,null,null,null,"16.7 / 2A"]
[null,"Denumirea capitolelor de cheltuieli",null,null,null,null,null,null,null,null,null,null,null,null,null,null,null,null,null,null,null,null,null,null,null,null,null,null,null,null,null,null,null,null,null,null,"Cheltuieli eligibile",null,null,null,null,null,null,null,null,"Cheltuieli neeligibile",null,null,null,null,null,null,null,"Total"]
[null,null,null,null,null,null,null,null,null,null,null,null,null,null,null,null,null,null,null,null,null,null,null,null,null,null,null,null,null,null,null,null,null,null,null,null,"EURO",null,null,null,null,null,null,null,null,"EURO",null,null,null,null,null,null,null,"EURO"]
[null,"Acțiuni de animare în scopul identificării de noi parteneri%.  Acestea trebuie să se încadreze în maximum 0,5 % din totalul cheltuielilor eligibile.",null,null,null,null,null,null,null,null,null,null,null,null,null,null,null,null,null,null,null,null,null,null,null,null,null,null,null,null,null,null,null,null,null,null,{"$f":"AK702+AK703+AK704+AK707","v":0},null,null,null,null,null,null,null,null,{"$f":"SUM(AT702:BA707)","v":0},null,null,null,null,null,null,null,{"$f":"SUM(AK701:BA701)","v":0}]
[null,"Cheltuieli privind transportul participanților  și expertilor implicați în derularea proiectului la acțiunile de animare",null,null,null,null,null,null,null,null,null,null,null,null,null,null,null,null,null,null,null,null,null,null,null,null,null,null,null,null,null,null,null,null,null,null,null,null,null,null,null,null,null,null,null,null,null,null,null,null,null,null,null,{"$f":"SUM(AK702:BA702)","v":0}]
[null,"Cheltuieli privind cazarea participanților și expertilor implicați în derularea proiectului la acțiunile de animare",null,null,null,null,null,null,null,null,null,null,null,null,null,null,null,null,null,null,null,null,null,null,null,null,null,null,null,null,null,null,null,null,null,null,null,null,null,null,null,null,null,null,null,null,null,null,null,null,null,null,null,{"$f":"SUM(AK703:BA703)","v":0}]
[null,"Cheltuieli privind masa participanților și expertilor implicați în derularea proiectului la acțiunile de animare",null,null,null,null,null,null,null,null,null,null,null,null,null,null,null,null,null,null,null,null,null,null,null,null,null,null,null,null,null,null,null,null,null,null,null,null,null,null,null,null,null,null,null,null,null,null,null,null,null,null,null,0]
[null,"Cheltuieli pentru închirierea de spații adecvate pentru derularea activităților proiectului"]
[null,"Cheltuieli pentru închirierea de echipamente și logistică pentru derularea activităților proiectului"]
[null,"Cheltuieli cu materiale de promovare utilizate în acțiunile de animare",null,null,null,null,null,null,null,null,null,null,null,null,null,null,null,null,null,null,null,null,null,null,null,null,null,null,null,null,null,null,null,null,null,null,null,null,null,null,null,null,null,null,null,null,null,null,null,null,null,null,null,{"$f":"SUM(AK707:BA707)","v":0}]
[]
[]
[]
[]
[]
[]
[]
[]
[null,null,null,null,null,null,null,null,null,null,null,null,null,null,null,null,null,null,null,null,null,null,null,null,null,null,null,null,null,null,null,null,null,null,null,null,null,null,null,null,null,null,"Anexa A1\nHG 907/2016"]
[]
[]
["Deviz financiar- Capitolul 3 - Cheltuieli pentru proiectare şi asistenţa tehnică - EURO"]
["Investitii aferente Buget Indicativ al Proiectului (EURO) cu Intensitatea de 90% - HG 907/2016"]
[]
["Nr.crt",null,null,null,"Specificaţie",null,null,null,null,null,null,null,null,null,null,null,null,null,null,null,null,null,null,null,null,null,null,null,null,null,null,null,null,null,null,null,null,null,null,null,null,null,"Valoare eligibilă",null,null,null,null,null,null,null,null,"Valoare\nneeligibilă"]
["3.1",null,null,null,"Cheltuieli pentru studii - total din care:",null,null,null,null,null,null,null,null,null,null,null,null,null,null,null,null,null,null,null,null,null,null,null,null,null,null,null,null,null,null,null,null,null,null,null,null,null,{"$f":"SUM(AQ724:AQ726)","v":0},null,null,null,null,null,null,null,null,{"$f":"SUM(AZ724:AZ726)","v":0}]
[null,null,null,null,"3.1.1 Studii de teren: studii geotehnice, geologice, hidrologice, hidrogeotehnice,\nfotogrammetrice, topografica şi de stabilitate ale terenului pe care se amplasează obiectivul de investiţie "]
[null,null,null,null,"3.1.2 Raport privind impactul asupra mediului"]
[null,null,null,null,"3.1.3 Studii de specialitate necesare în funcţie de specificul investiţiei"]
["3.2",null,null,null,"Documentaţii-suport şi cheltuieli pentru obţinerea de avize, acorduri şi\nautorizaţii",null,null,null,null,null,null,null,null,null,null,null,null,null,null,null,null,null,null,null,null,null,null,null,null,null,null,null,null,null,null,null,null,null,null,null,null,null,{"$f":"SUM(AQ728:AQ730)+SUM(AQ733:AQ736)","v":0},null,null,null,null,null,null,null,null,{"$f":"SUM(AZ728:AZ736)","v":0}]
[null,null,null,null,"1. obţinerea/prelungirea valabilităţii ceritificatului de urbanism"]
[null,null,null,null,"2. obţinerea/prelungirea valabilităţii autorizaţiei de construire/desfiinţare"]
[null,null,null,null,"3. obţinerea avizelor şi acordurilor pentru racorduri şi branşamente la reţele publice\nde alimentare cu apă, canalizare, alimentare cu gaze, alimentare cu agent termic,\nenergie electrică, telefonie"]
[null,null,null,null,"4. obţinerea certificatului de nomenclatură stradală şi adresă"]
[null,null,null,null,"5. întocmirea documentaţiei, obţinerea numărului cadastral provizoriu şi\nînregistrarea terenului în cartea funciară"]
[null,null,null,null,"6. obţinerea actului administrativ al autorităţii competente pentru protecţia mediului"]
[null,null,null,null,"7. obţinerea avizului de protecţie civilă"]
[null,null,null,null,"8. avizul de specialitate în cazul obiectivelor de patrimoniu"]
[null,null,null,null,"9. alte avize, acorduri şi autorizaţii"]
["3.3",null,null,null,"Cheltuieli pentru expertizarea tehnică a construcţiilor existente, a structurilor şi/sau, după caz, a proiectelor tehnice, inclusiv întocmirea de către expertul tehnic a raportului de expertiză tehnică",null,null,null,null,null,null,null,null,null,null,null,null,null,null,null,null,null,null,null,null,null,null,null,null,null,null,null,null,null,null,null,null,null,null,null,null,null,0,null,null,null,null,null,null,null,null,0]
["3.4",null,null,null,"Cheltuieli pentru certificarea performanţei energetice şi auditul energetic al clădirilor",null,null,null,null,null,null,null,null,null,null,null,null,null,null,null,null,null,null,null,null,null,null,null,null,null,null,null,null,null,null,null,null,null,null,null,null,null,0,null,null,null,null,null,null,null,null,0]
["3.5",null,null,null,"Cheltuieli pentru proiectare",null,null,null,null,null,null,null,null,null,null,null,null,null,null,null,null,null,null,null,null,null,null,null,null,null,null,null,null,null,null,null,null,null,null,null,null,null,{"$f":"AQ740+AQ741+AQ742+AQ743+AQ744+AQ745","v":0},null,null,null,null,null,null,null,null,{"$f":"AZ740+AZ741+AZ742+AZ743+AZ744+AZ745","v":0}]
[null,null,null,null,"3.5.1 Temă de proiectare"]
[null,null,null,null,"3.5.2 Studiu de prefezabilitate"]
[null,null,null,null,"3.5.3 Studiu de fezabilitate/documentaţie de avizare a lucrărilor de intervenţii şi deviz general"]
[null,null,null,null,"3.5.4 Documentaţiile tehnice necesare în vederea obţinerii avizelor/acordurilor/autorizaţiilor"]
[null,null,null,null,"3.5.5 Verificarea tehnică de calitate a proiectului tehnic şi a detaliilor de execuţie"]
[null,null,null,null,"3.5.6 Proiect tehnic şi detalii de execuţie"]
["3.6",null,null,null,"Cheltuieli aferente organizării şi derulării procedurilor de achiziţii publice",null,null,null,null,null,null,null,null,null,null,null,null,null,null,null,null,null,null,null,null,null,null,null,null,null,null,null,null,null,null,null,null,null,null,null,null,null,null,null,null,null,null,null,null,null,null,{"$f":"SUM(AZ747:AZ750)","v":0}]
[null,null,null,null,"1. Cheltuieli aferente întocmirii documentaţiei de atribuire şi multiplicării acesteia (exclusiv cele cumpărate de ofertanţi)"]
[null,null,null,null,"2. Cheltuieli cu onorariile, transportul, cazarea şi diurna membrilor desemnaţi în comisiile de evaluare"]
[null,null,null,null,"3. Anunţuri de intenţie, de participare şi de atribuire a contractelor, corespondenţă\nprin poştă, fax, poştă electronică în legătură cu procedurile de achiziţie publică"]
[null,null,null,null,"4. Cheltuieli aferente organizării şi derulării procedurilor de achiziţii publice"]
["3.7",null,null,null,"Cheltuieli pentru consultanţă",null,null,null,null,null,null,null,null,null,null,null,null,null,null,null,null,null,null,null,null,null,null,null,null,null,null,null,null,null,null,null,null,null,null,null,null,null,{"$f":"AQ752","v":0},null,null,null,null,null,null,null,null,{"$f":"AZ752+AZ753","v":0}]
[null,null,null,null,"3.7.1 Managementul de proiect pentru obiectivul de investiţii"]
[null,null,null,null,"3.7.2 Auditul financiar"]
["3.8",null,null,null,"Cheltuieli pentru asistenţă tehnică",null,null,null,null,null,null,null,null,null,null,null,null,null,null,null,null,null,null,null,null,null,null,null,null,null,null,null,null,null,null,null,null,null,null,null,null,null,{"$f":"AQ755+AQ758","v":0},null,null,null,null,null,null,null,null,{"$f":"AZ755+AZ758","v":0}]
[null,null,null,null,"3.8.1. Asistenţă tehnică din partea proiectantului",null,null,null,null,null,null,null,null,null,null,null,null,null,null,null,null,null,null,null,null,null,null,null,null,null,null,null,null,null,null,null,null,null,null,null,null,null,{"$f":"AQ756+AQ757","v":0},null,null,null,null,null,null,null,null,{"$f":"AZ756+AZ757","v":0}]
[null,null,null,null,"    1.1. pe perioada de execuţie a lucrărilor"]
[null,null,null,null,"     1.2. pentru participarea proiectantului la fazele incluse în programul de control al\nlucrărilor de execuţie, avizat de către Inspectoratul de Stat în Construcţii"]
[null,null,null,null,"3.8.2 Dirigenţie de şantier, asigurată de personal tehnic de specialitate, autorizat"]
[null,null,null,null,"Total valoare fără TVA",null,null,null,null,null,null,null,null,null,null,null,null,null,null,null,null,null,null,null,null,null,null,null,null,null,null,null,null,null,null,null,null,null,null,null,null,null,{"$f":"AQ754+AQ751+AQ739+AQ738+AQ737+AQ727+AQ723","v":0},null,null,null,null,null,null,null,null,{"$f":"AZ754+AZ751+AZ746+AZ739+AZ738+AZ737+AZ727+AZ723","v":0}]
[null,null,null,null,"Valoare TVA (aferentă cheltuielilor eligibile şi neeligibile)"]
["TOTAL DEVIZ FINANCIAR 1 (inclusiv TVA)",null,null,null,null,null,null,null,null,null,null,null,null,null,null,null,null,null,null,null,null,null,null,null,null,null,null,null,null,null,null,null,null,null,null,null,null,null,null,null,null,null,{"$f":"AQ759+AZ759+AQ760+AZ760","v":0}]
[]
["Notă: Pentru a adăuga o nouă anexă accesaţi foaia (sheet) corespunzătoare sau click aici"]
[]
[]
[null,null,null,null,null,null,null,null,null,null,null,null,null,null,null,null,null,null,null,null,null,null,null,null,null,null,null,null,null,null,null,null,null,null,null,null,null,null,null,null,null,null,"Anexa A1\nHG 907/2016"]
[]
["Deviz financiar- Capitolul 3 - Cheltuieli pentru proiectare şi asistenţa tehnică - EURO"]
["INVESTIŢII SPECIFICE cu intensitatea de 100%"]
[]
[]
["Nr.crt",null,null,null,"Specificaţie",null,null,null,null,null,null,null,null,null,null,null,null,null,null,null,null,null,null,null,null,null,null,null,null,null,null,null,null,null,null,null,null,null,null,null,null,null,"Valoare eligibilă",null,null,null,null,null,null,null,null,"Valoare\nneeligibilă"]
[1,null,null,null,"Cheltuieli cu activitățile pregătitoare",null,null,null,null,null,null,null,null,null,null,null,null,null,null,null,null,null,null,null,null,null,null,null,null,null,null,null,null,null,null,null,null,null,null,null,null,null,{"$f":"AQ774+AQ775","v":0},null,null,null,null,null,null,null,null,{"$f":"AZ774+AZ775","v":0}]
[null,null,null,null,"1.1 Elaborarea de studii pregătitoare, studii de fezabilitate și planuri, inclusiv planul\nproiectului"]
[null,null,null,null,"1.2 Alte cheltuieli necesare elaborării documentației necesare depunerii proiectului complet în etapa II care nu se încadrează în categoria de mai sus."]
[2,null,null,null,"Cheltuielile de funcționare ale parteneriatului",null,null,null,null,null,null,null,null,null,null,null,null,null,null,null,null,null,null,null,null,null,null,null,null,null,null,null,null,null,null,null,null,null,null,null,null,null,{"$f":"SUM(AQ777:AQ780)","v":0},null,null,null,null,null,null,null,null,{"$f":"SUM(AZ777:AZ780)","v":0}]
[null,null,null,null,"2.1 Cheltuieli de transport și diurnă ale coordonatorului/echipei de proiect și partenerilor, legate de activitățile parteneriatului, conform legislatiei nationale;"]
[null,null,null,null,"2.2 Onorarii ale personalului (de exemplu angajat salariat în vederea asigurării activității de secretariat, relației cu AFIR, etc.);"]
[null,null,null,null,"2.3 Cheltuieli legate de închirierea spațiilor de desfășurare a întâlnirilor parteneriatului,\nînchiriere sediu, achiziție echipamente IT și alte dotări necesare desfășurării cooperării."]
[null,null,null,null,"2.4 Alte cheltuieli ce nu pot fi incluse în categoria de mai sus."]
[3,null,null,null,"Costurile directe generate în mod specific de activitățile incluse în planul de proiect depus de parteneriat (pot fi efectuate după semnarea contractului), precum:",null,null,null,null,null,null,null,null,null,null,null,null,null,null,null,null,null,null,null,null,null,null,null,null,null,null,null,null,null,null,null,null,null,null,null,null,null,{"$f":"SUM(AQ782:AQ784)","v":0},null,null,null,null,null,null,null,null,{"$f":"SUM(AZ782:BI784)","v":0}]
[null,null,null,null,"3.1 Cheltuieli legate de chirii pentru: echipamente, utilaje, imobile necesare desfășurării\nactivității descrise în proiect (altele decât sediu) etc."]
[null,null,null,null,"3.2 Cheltuieli cu onorarii ale partenerilor, colaboratorilor externi, aferente activitatilor\ndescrise in proiect și prestări servicii de către aceștia sau alte persoane/entități, inclusiv\ncheltuielile aferente salariului/onorariului coordonatorului de proiect, după caz."]
[null,null,null,null,"3.3 Alte cheltuieli ce nu pot fi incluse în categoria de mai sus."]
[4,null,null,null,"Cheltuieli generate de diseminarea rezultatelor",null,null,null,null,null,null,null,null,null,null,null,null,null,null,null,null,null,null,null,null,null,null,null,null,null,null,null,null,null,null,null,null,null,null,null,null,null,{"$f":"AQ786","v":0},null,null,null,null,null,null,null,null,{"$f":"AZ786","v":0}]
[null,null,null,null,"4.1 Cheltuielile generate de diseminarea rezultatelor cum sunt (listă indicativă): organizare evenimente diseminare, pliante, publicații, participare evenimente specifice în vederea diseminării rezultatelor etc."]
[null,null,null,null,"Total valoare fără TVA",null,null,null,null,null,null,null,null,null,null,null,null,null,null,null,null,null,null,null,null,null,null,null,null,null,null,null,null,null,null,null,null,null,null,null,null,null,{"$f":"AQ773+AQ776+AQ781+AQ785","v":0},null,null,null,null,null,null,null,null,{"$f":"AZ773+AZ776+AZ781+AZ785","v":0}]
[null,null,null,null,"Valoare TVA (aferentă cheltuielilor eligibile şi neeligibile)"]
["TOTAL DEVIZ FINANCIAR 1 (inclusiv TVA)",null,null,null,null,null,null,null,null,null,null,null,null,null,null,null,null,null,null,null,null,null,null,null,null,null,null,null,null,null,null,null,null,null,null,null,null,null,null,null,null,null,{"$f":"AQ787+AZ787+AQ788+AZ788","v":0}]
[]
["Notă: Pentru a adăuga o nouă anexă accesaţi foaia (sheet) corespunzătoare sau click aici"]
[]
[]
[]
[]
[]
[]
[]
[null,null,null,null,null,null,null,null,null,null,null,null,null,null,null,null,null,null,null,null,null,null,null,null,null,null,null,null,null,null,null,null,null,null,null,null,null,null,null,null,null,null,"Anexa A2\nHG 907/2016"]
[]
[]
["DEVIZ PE OBIECT *"]
[]
[]
["(Descriere obiect de construcţie)"]
["Nr. crt.",null,null,null,"Denumire",null,null,null,null,null,null,null,null,null,null,null,null,null,null,null,null,null,null,null,null,null,null,null,null,null,null,null,null,null,null,null,null,null,null,null,null,null,"Valoarea pe categorii de lucrări, fară TVA - EURO"]
["Cap. 4 + Cheltuieli pentru investiţia de bază",null,null,null,null,null,null,null,null,null,null,null,null,null,null,null,null,null,null,null,null,null,null,null,null,null,null,null,null,null,null,null,null,null,null,null,null,null,null,null,null,null,"Valoare eligibilă",null,null,null,null,null,null,null,null,"Valoare\nneeligibilă"]
["   I - LUCRĂRI DE CONSTRUCŢII ŞI INSTALAŢII"]
["4.1",null,null,null,"Construcţii şi instalaţii"]
[null,null,null,null,"4.1.1 Terasamente, sistematizare pe verticală şi amenajări exterioare"]
[null,null,null,null,"4.1.2 Rezistenţă"]
[null,null,null,null,"4.1.3 Arhitectură"]
[null,null,null,null,"4.1.4 Instalaţii"]
[null,null,null,null,"TOTAL I ( fără TVA)",null,null,null,null,null,null,null,null,null,null,null,null,null,null,null,null,null,null,null,null,null,null,null,null,null,null,null,null,null,null,null,null,null,null,null,null,null,{"$f":"SUM(AQ810:AY813)","v":0},null,null,null,null,null,null,null,null,{"$f":"SUM(AZ810:BI813)","v":0}]
["   II - MONTAJ"]
["4.2",null,null,null,"Montaj utilaje şi echipamente tehnologice şi funcţionale"]
[null,null,null,null,"TOTAL II ( fără TVA)",null,null,null,null,null,null,null,null,null,null,null,null,null,null,null,null,null,null,null,null,null,null,null,null,null,null,null,null,null,null,null,null,null,null,null,null,null,{"$f":"SUM(AQ816)","v":0},null,null,null,null,null,null,null,null,{"$f":"SUM(AZ816)","v":0}]
["   III - PROCURARE"]
["4.3",null,null,null,"Utilaje, echipamente tehnologice şi funcţionale care necesită montaj"]
["4.4",null,null,null,"Utilaje, echipamente tehnologice şi funcţionale care nu necesită\nmontaj şi echipamente de transport"]
["4.5",null,null,null,"Dotări"]
["4.6",null,null,null,"Active necorporale"]
[null,null,null,null,"TOTAL III ( fără TVA)",null,null,null,null,null,null,null,null,null,null,null,null,null,null,null,null,null,null,null,null,null,null,null,null,null,null,null,null,null,null,null,null,null,null,null,null,null,{"$f":"SUM(AQ819:AY822)","v":0},null,null,null,null,null,null,null,null,{"$f":"SUM(AZ819:BI822)","v":0}]
["TOTAL ( TOTAL I + TOTAL II +TOTAL III) fără TVA",null,null,null,null,null,null,null,null,null,null,null,null,null,null,null,null,null,null,null,null,null,null,null,null,null,null,null,null,null,null,null,null,null,null,null,null,null,null,null,null,null,{"$f":"AQ823+AQ817+AQ814","v":0},null,null,null,null,null,null,null,null,{"$f":"AZ823+AZ817+AZ814","v":0}]
["TVA aferent cheltuielilor eligibile şi neeligibile"]
["TOTAL DEVIZ PE OBIECT (inclusiv TVA)",null,null,null,null,null,null,null,null,null,null,null,null,null,null,null,null,null,null,null,null,null,null,null,null,null,null,null,null,null,null,null,null,null,null,null,null,null,null,null,null,null,{"$f":"AQ824+AZ824+AQ825+AZ825","v":0}]
[]
["Notă: Pentru a adăuga o nouă anexă accesaţi foaia (sheet) corespunzătoare sau click aici"]
[]
[]
[]
[]
[]
[null,null,null,null,null,null,null,null,null,null,null,null,null,null,null,null,null,null,null,null,null,null,null,null,null,null,null,null,null,null,null,null,null,null,null,null,null,null,null,null,null,null,"Anexa A3\nHG 907/2016"]
[]
[]
["Deviz capitolul 2- Cheltuieli pentru asigurarea utilităţilor necesare obiectivului - EURO"]
[]
[]
["(Titlu deviz)"]
["Nr.crt",null,null,null,"Specificaţie",null,null,null,null,null,null,null,null,null,null,null,null,null,null,null,null,null,null,null,null,null,null,null,null,null,null,null,null,null,null,null,null,null,null,null,null,null,"Valoare eligibilă",null,null,null,null,null,null,null,null,"Valoare\nneeligibilă"]
[1,null,null,null,"Alimentare cu apă"]
[2,null,null,null,"Canalizare"]
[3,null,null,null,"Alimentare cu gaze naturale"]
[4,null,null,null,"Alimentare cu agent termic"]
[5,null,null,null,"Alimentare cu energie electrică"]
[6,null,null,null,"Telecomunicaţii (telefonie, radio-tv,etc)"]
[7,null,null,null,"Drumuri de acces"]
[8,null,null,null,"Căi ferate industriale"]
[9,null,null,null,"Alte utilități"]
[null,null,null,null,"TOTAL DEVIZ CAPITOLUL 2",null,null,null,null,null,null,null,null,null,null,null,null,null,null,null,null,null,null,null,null,null,null,null,null,null,null,null,null,null,null,null,null,null,null,null,null,null,{"$f":"SUM(AQ842:AY850)","v":0},null,null,null,null,null,null,null,null,{"$f":"SUM(AZ842:BI850)","v":0}]
[null,null,null,null,"Valoare TVA aferentă cheltuielilor eligibile şi neeligibile"]
["TOTAL DEVIZ CAPITOLUL 2 (inclusiv TVA)",null,null,null,null,null,null,null,null,null,null,null,null,null,null,null,null,null,null,null,null,null,null,null,null,null,null,null,null,null,null,null,null,null,null,null,null,null,null,null,null,null,{"$f":"AQ851+AZ851+AQ852+AZ852","v":0}]
[]
[" Deviz capitolul 5 - Alte cheltuieli - EURO"]
["Nr.crt",null,null,null,"Specificaţie",null,null,null,null,null,null,null,null,null,null,null,null,null,null,null,null,null,null,null,null,null,null,null,null,null,null,null,null,null,null,null,null,null,null,null,null,null,"Valoare eligibilă",null,null,null,null,null,null,null,null,"Valoare\nneeligibilă"]
[]
["5.1 ",null,null,null,"Organizare de şantier",null,null,null,null,null,null,null,null,null,null,null,null,null,null,null,null,null,null,null,null,null,null,null,null,null,null,null,null,null,null,null,null,null,null,null,null,null,{"$f":"SUM(AQ859:AY860)","v":0},null,null,null,null,null,null,null,null,{"$f":"SUM(AZ859:BI860)","v":0}]
[null,null,null,null,"5.1.1 Lucrări de construcţii şi instalaţii aferente organizării de şantier"]
[null,null,null,null,"5.1.2 Cheltuieli conexe organizării de şantier"]
["5.2",null,null,null,"Comisioane, cote, taxe, costul creditului",null,null,null,null,null,null,null,null,null,null,null,null,null,null,null,null,null,null,null,null,null,null,null,null,null,null,null,null,null,null,null,null,null,null,null,null,null,{"$f":"SUM(AQ863:AY866)","v":0},null,null,null,null,null,null,null,null,{"$f":"SUM(AZ862:BI866)","v":0}]
[null,null,null,null,"5.2.1. Comisioanele şi dobânzile aferente creditului băncii finanţatoare",null,null,null,null,null,null,null,null,null,null,null,null,null,null,null,null,null,null,null,null,null,null,null,null,null,null,null,null,null,null,null,null,null,null,null,null,null,1]
[null,null,null,null,"5.2.2. Cota aferentă ISC pentru controlul calităţii lucrărilor de construcţii"]
[null,null,null,null,"5.2.3. Cota aferentă ISC pentru controlul statului în amenajarea teritoriului, urbanism şi pentru autorizarea lucrărilor de construcţii"]
[null,null,null,null,"5.2.4. Cota aferentă Casei Sociale a Constructorilor - CSC"]
[null,null,null,null,"5.2.5. Taxe pentru acorduri, avize conforme şi autorizaţia de construire/desfiinţare"]
["5.3",null,null,null," Cheltuieli diverse si neprevazute"]
["5.4",null,null,null,"Cheltuieli pentru informare și publicitate",null,null,null,null,null,null,null,null,null,null,null,null,null,null,null,null,null,null,null,null,null,null,null,null,null,null,null,null,null,null,null,null,null,null,null,null,null,null,null,null,null,null,null,null,null,null,0]
[null,null,null,null,"TOTAL DEVIZ CAPITOLUL 5",null,null,null,null,null,null,null,null,null,null,null,null,null,null,null,null,null,null,null,null,null,null,null,null,null,null,null,null,null,null,null,null,null,null,null,null,null,{"$f":"AQ858+AQ861+AQ867","v":0},null,null,null,null,null,null,null,null,{"$f":"AZ868+AZ867+AZ861+AZ858","v":0}]
[null,null,null,null,"VALOARE TVA aferentă cheltuielilor eligibile şi neeligibile"]
[null,null,null,null,"TOTAL DEVIZ CAPITOLUL 5 ( inclusiv TVA)",null,null,null,null,null,null,null,null,null,null,null,null,null,null,null,null,null,null,null,null,null,null,null,null,null,null,null,null,null,null,null,null,null,null,null,null,null,{"$f":"AQ869+AZ869+AQ870+AZ870","v":0}]
[]
["Notă: Pentru a adăuga o nouă anexă accesaţi foaia (sheet) corespunzătoare sau click aici"]
[]
[]
[]
[]
[]
[]
[]
[]
[]
[]
[null,null,null,null,null,null,null,null,null,null,null,null,null,null,null,null,null,null,null,null,null,null,null,null,null,null,null,null,null,null,null,null,null,null,null,null,null,null,null,null,null,null,null,"Anexa A4\nHG 907/2016"]
[]
[]
["Deviz cheltuieli culturi - EURO"]
["Nr. crt.",null,null,null,"Specificaţie",null,null,null,null,null,null,null,null,null,null,null,null,null,null,null,null,null,null,null,null,null,null,null,null,null,null,null,null,null,null,null,null,null,null,null,null,null,"Valoare eligibilă",null,null,null,null,null,null,null,null,"Valoare\nneeligibilă"]
["I. LUCRĂRI DE ÎNFIINŢARE PLANTAŢIE"]
[1,null,null,null,"Subcapitolul I Lucrări de pregătire a terenului"]
[null,null,null,null,"1. Manoperă"]
["a"]
[null,null,null,null,"Total (1)",null,null,null,null,null,null,null,null,null,null,null,null,null,null,null,null,null,null,null,null,null,null,null,null,null,null,null,null,null,null,null,null,null,null,null,null,null,{"$f":"SUM(AQ892)","v":0},null,null,null,null,null,null,null,null,{"$f":"SUM(AZ892)","v":0}]
[null,null,null,null,"2. Lucrări mecanice"]
["a"]
["b"]
["c"]
[null,null,null,null,"Total (2)",null,null,null,null,null,null,null,null,null,null,null,null,null,null,null,null,null,null,null,null,null,null,null,null,null,null,null,null,null,null,null,null,null,null,null,null,null,{"$f":"SUM(AQ895:AY897)","v":0},null,null,null,null,null,null,null,null,{"$f":"SUM(AZ895:BI897)","v":0}]
[null,null,null,null,"Total subcapitol I (1+2)",null,null,null,null,null,null,null,null,null,null,null,null,null,null,null,null,null,null,null,null,null,null,null,null,null,null,null,null,null,null,null,null,null,null,null,null,null,{"$f":"AQ893+AQ898","v":0},null,null,null,null,null,null,null,null,{"$f":"AZ893+AZ898","v":0}]
[2,null,null,null,"Subcapitolul II Înfiinţarea plantaţiei"]
[null,null,null,null,"1. Manoperă"]
["a"]
["b"]
["c"]
["d"]
["e"]
["f"]
["g"]
["h"]
["i"]
[null,null,null,null,"Total (1)",null,null,null,null,null,null,null,null,null,null,null,null,null,null,null,null,null,null,null,null,null,null,null,null,null,null,null,null,null,null,null,null,null,null,null,null,null,{"$f":"SUM(AQ902:AY910)","v":0},null,null,null,null,null,null,null,null,{"$f":"SUM(AZ902:BI910)","v":0}]
[null,null,null,null,"2. Lucrări mecanice"]
["a"]
["b"]
["c"]
["d"]
[null,null,null,null,"Total (2)",null,null,null,null,null,null,null,null,null,null,null,null,null,null,null,null,null,null,null,null,null,null,null,null,null,null,null,null,null,null,null,null,null,null,null,null,null,{"$f":"SUM(AQ913:AY916)","v":0},null,null,null,null,null,null,null,null,{"$f":"SUM(AZ913:BI916)","v":0}]
[null,null,null,null,"3. Materii şi materiale "]
["a"]
["b"]
["c"]
["d"]
["e"]
[null,null,null,null,"Total (3)",null,null,null,null,null,null,null,null,null,null,null,null,null,null,null,null,null,null,null,null,null,null,null,null,null,null,null,null,null,null,null,null,null,null,null,null,null,{"$f":"SUM(AQ919:AY923)","v":0},null,null,null,null,null,null,null,null,{"$f":"SUM(AZ919:BI923)","v":0}]
[null,null,null,null,"Total subcapitol II (1+2+3)",null,null,null,null,null,null,null,null,null,null,null,null,null,null,null,null,null,null,null,null,null,null,null,null,null,null,null,null,null,null,null,null,null,null,null,null,null,{"$f":"AQ911+AQ917+AQ924","v":0},null,null,null,null,null,null,null,null,{"$f":"AZ911+AZ917+AZ924","v":0}]
[3,null,null,null,"Subcapitolul III Întreţinere plantaţie în anul 1   ATENŢIE! Cheltuieli neeligibile"]
[null,null,null,null,"1. Manoperă"]
[null,null,null,null,"Total (1)"]
[null,null,null,null,"2. Lucrări mecanice"]
[null,null,null,null,"Total (2)"]
[null,null,null,null,"3. Materii şi materiale "]
[null,null,null,null,"Total (3)"]
[null,null,null,null,"Total subcapitol III (1+2+3)",null,null,null,null,null,null,null,null,null,null,null,null,null,null,null,null,null,null,null,null,null,null,null,null,null,null,null,null,null,null,null,null,null,null,null,null,null,null,null,null,null,null,null,null,null,null,{"$f":"AZ928+AZ930+AZ932","v":0}]
[4,null,null,null,"Subcapitolul IV Întreţinere plantaţie în anul 2   ATENŢIE! Cheltuieli neeligibile"]
[null,null,null,null,"1. Manoperă"]
[null,null,null,null,"Total (1)"]
[null,null,null,null,"2. Lucrări mecanice"]
[null,null,null,null,"Total (2)"]
[null,null,null,null,"3. Materii şi materiale "]
[null,null,null,null,"Total (3)"]
[null,null,null,null,"Total subcapitol IV (1+2+3)",null,null,null,null,null,null,null,null,null,null,null,null,null,null,null,null,null,null,null,null,null,null,null,null,null,null,null,null,null,null,null,null,null,null,null,null,null,null,null,null,null,null,null,null,null,null,{"$f":"AZ936+AZ938+AZ940","v":0}]
[5,null,null,null,"Subcapitolul V Instalat sistem susţinere şi împrejmuire"]
[null,null,null,null,"1. Manoperă"]
["a"]
["b"]
["c"]
["d"]
["e"]
["f"]
["g"]
[null,null,null,null,"Total (1)",null,null,null,null,null,null,null,null,null,null,null,null,null,null,null,null,null,null,null,null,null,null,null,null,null,null,null,null,null,null,null,null,null,null,null,null,null,{"$f":"SUM(AQ944:AY950)","v":0},null,null,null,null,null,null,null,null,{"$f":"SUM(AZ944:BI950)","v":0}]
[null,null,null,null,"2. Materii şi materiale"]
["a"]
["b"]
["c"]
["d"]
[null,null,null,null,"Total (2)",null,null,null,null,null,null,null,null,null,null,null,null,null,null,null,null,null,null,null,null,null,null,null,null,null,null,null,null,null,null,null,null,null,null,null,null,null,{"$f":"SUM(AQ953:AY956)","v":0},null,null,null,null,null,null,null,null,{"$f":"SUM(AZ953:BI956)","v":0}]
[null,null,null,null,"Total subcapitol V (1+2)",null,null,null,null,null,null,null,null,null,null,null,null,null,null,null,null,null,null,null,null,null,null,null,null,null,null,null,null,null,null,null,null,null,null,null,null,null,{"$f":"AQ951+AQ957","v":0},null,null,null,null,null,null,null,null,{"$f":"AZ951+AZ957","v":0}]
["TOTAL ELIGIBIL / NEELIGIBIL FĂRĂ TVA",null,null,null,null,null,null,null,null,null,null,null,null,null,null,null,null,null,null,null,null,null,null,null,null,null,null,null,null,null,null,null,null,null,null,null,null,null,null,null,null,null,{"$f":"AQ899+AQ925+AQ958","v":0},null,null,null,null,null,null,null,null,{"$f":"AZ899+AZ925+AZ933+AZ941+AZ958","v":0}]
["VALOARE TVA aferentă cheltuielilor eligibile şi neeligibile"]
["TOTAL DEVIZ CU TVA",null,null,null,null,null,null,null,null,null,null,null,null,null,null,null,null,null,null,null,null,null,null,null,null,null,null,null,null,null,null,null,null,null,null,null,null,null,null,null,null,null,{"$f":"SUM(AQ959:BI960)","v":0}]
[]
[]
["MINISTERUL AGRICULTURII ŞI DEZVOLTĂRII RURALE",null,null,null,null,null,null,null,null,null,null,null,null,null,null,null,null,null,null,null,null,null,null,null,null,null,null,null,null,null,"SECTIUNE SPECIFICA SUBMASURA 16.1"]
["AGENŢIA PENTRU FINANŢAREA INVESTIŢIILOR RURALE"]
[]
["D. ALTE INFORMAȚII :"]
["Programarea proiectului:"]
["Numar luni de implementare"]
[]
["E. LISTA DOCUMENTELOR ANEXATE PROIECTELOR AFERENTE SUBMĂSURII 16.7/2A",null,null,null,null,null,null,null,null,null,null,null,null,null,null,null,null,null,null,null,null,null,null,null,null,null,null,null,null,null,null,null,null,null,null,null,null,null,null,null,null,null,null,null,null,null,null,null,null,null,null,null,null,null,null,"OPIS"]
[null,null,null,null,null,null,null,null,null,null,null,null,null,null,null,null,null,null,null,null,null,null,null,null,null,null,null,null,null,null,null,null,null,null,null,null,null,null,null,null,null,null,null,null,null,null,null,null,null,null,null,null,null,null,null,"documente"]
["A se anexa documentele în ordinea de mai jos:"]
["Lista documente",null,null,null,null,null,null,null,null,null,null,null,null,null,null,null,null,null,null,null,null,null,null,null,null,null,null,null,null,null,"Obligatoriu pentru toate proiectele",null,null,null,null,"Obligatoriu, dacă proiectul impune",null,null,null,null,null,null,"PAGINA de   la - până la",null,null,null,null,null,null,null,"Obligatoriu pentru toate proiectele",null,null,null,null,"Obligatoriu, dacă proiectul impune"]
["ETAPA:",null,null,null,null,null,null,null,null,null,null,null,null,null,null,null,null,null,null,null,null,null,null,null,null,null,null,null,null,null,"DEPUNERE",null,null,null,null,null,null,null,null,null,null,null,null,null,null,null,null,null,null,null,"CONTRACTARE"]
["1. PLANUL DE PROIECT"]
["2.STUDIU DE FEZABILITATE"]
["3. ACORDUL DE COOPERARE AL PARTENERIATULUI"]
["4. DOCUMENTE SOLICITATE PENTRU TERENUL AGRICOL / DOCUMENT\nPENTRU EFECTIVUL DE ANIMALE DEŢINUT ÎN PROPRIETATE\nÎn cazul în care planul de proiect include, de asemenea, acțiuni care sunt\neligibile în cadrul altor măsuri (4.1 și 4.1a) se vor prezenta documentele așa\ncum sunt prevăzute în cadrul Ghidului Solicitantului în vigoare, aferent\nsubmăsurii respective, de către fermierul/fermierii membrii ai acordului de\ncooperare ce vor beneficia de investiție, acolo unde este cazul."]
["5. DOCUMENTE SOLICITATE PENTRU IMOBILUL (CLĂDIRILE ŞI/SAU\nTERENURILE) PE CARE SUNT/VOR FI REALIZATE INVESTIŢIILE\nÎn cazul în care planul de proiect include, de asemenea, acțiuni care sunt\neligibile în cadrul altor măsuri (4.1, și  4.1a, ) se vor prezenta\ndocumentele așa cum sunt prevăzute în cadrul Ghidului Solicitantului în\nvigoare, aferent submăsurii respective, de către fermierul/microîntreprinderea\nși întreprinderea mică, membrii ai acordului de cooperare ce vor beneficia de\ninvestiție, acolo unde este cazul."]
["6.1. DOCUMENT CARE SĂ CERTIFICE CĂ NU AU FOST FINALIZATE\nLUCRĂRILE DE CADASTRU, pentru proiectele care vizează investiţii de\nlucrări privind construcţiile noi sau modernizări ale acestora .\nAtentie!**Pentru imobilele cu lucrarile de cadastru finalizate se va completa\nsectiunea A8 din CF, cu informatiile cadastrale, AFIR rezervandu-si dreptul de\na consulta baza de date ANCPI, în vederea obținerii Extrasului de Carte\nFunciară"]
["6.2. ACORDUL CREDITORULUI PRIVIND EXECUTIA INVESTITIEI ŞI\nGRAFICUL DE RAMBURSARE A CREDITULUI.\nAtenţie! Se va depune in situatia în care imobilul pe care se execută investiţia\nnu este liber de sarcini (gajat pentru un credit)."]
["7. CERTIFICAT DE URBANISM SAU AUTORIZAŢIE DE CONSTRUIRE\npentru proiecte care prevăd construcţii (noi, extinderi sau modernizări).\nCertificatul de urbanism nu trebuie însoţit de avizele menţionate ca fiind\nnecesare fazei următoare de autorizare."]
["8. DOCUMENT DE LA BANCĂ/TREZORERIE cu datele de identificare ale\nacesteia şi ale contului aferent proiectului FEADR (denumirea, adresa\ninstituţiei financiare, codul IBAN al contului în care se deruleaza operaţiunile\ncu AFIR)."]
["8.1 CERTIFICATE CARE SĂ ATESTE LIPSA DATORIILOR RESTANTE\nFISCALE ale liderului de proiect şi sociale emise de Direcţia Generală a\nFinanţelor Publice și de primăriile pe raza cărora îşi au sediul social și\npuncte de lucru (numai în cazul în care solicitantul este proprietar asupra\nimobilelor) şi, dacă este cazul, graficul de reeşalonare a datoriilor către\nbugetul consolidat."]
["8.2 CAZIERUL JUDICIAR AL REPREZENTANTULUI LEGAL AL LIDERULUI\nDE PROIECT. Extrasul cazierului judiciar se solicită și se eliberează în\nconformitate cu prevederile Legii nr. 290/2004 privind cazierul judiciar,\nrepublicată, cu modificările şi completările ulterioare."]
["9.1 DOCUMENT EMIS DE DSVSA JUDEŢEANĂ PENTRU PROIECT,\nconform Protocolului de colaborare dintre AFIR şi ANSVSA publicat pe pagina\nde internet www.afir.info, după caz."]
["9.2 DOCUMENT EMIS DE DSP JUDEŢEANĂ PENTRU PROIECT, conform\nProtocolului de colaborare dintre AFIR şi MS publicat pe pagina de internet\nwww.afir.info, după caz.\nDocumentele acestui punct vor fi emise cu cel mult un an înaintea depunerii\nCererii de finanţare.Formatul documentelor poate fi vizualizat pe pagina de\ninternet www.afir.info, secţiunea: Informaţii utile/ Protocoale de colaborare."]
["10.1 AUTORIZAŢIE SANITARĂ/ NOTIFICARE de constatare a conformităţii\ncu legislaţia sanitară emise cu cel mult un an înaintea depunerii Cererii de\nfinanţare, pentru unitățile care se se autorizează/avizează conform legislației\nîn vigoare și pentru unitățile care se modernizează, după caz."]
["10.2 NOTA DE CONSTATARE emisă de Garda Națională de Mediu (dacă\neste cazul).\nAtenție! Data de emitere a Notelor de constatare trebuie sa fie cu cel mult un\nan înaintea depunerii Cererii de finanțare."]
["11.1 CERTIFICATUL DE ÎNREGISTRARE ELIBERAT DE OFICIUL\nREGISTRULUI COMERŢULUI conform legislaţiei în vigoare."]
["11.2 STATUT pentru Societatea cooperativă înfiinţată în baza Legii nr. 1/ 2005\ncu modificările și completările ulterioare, Cooperativa agricolă înfiinţată în baza Legii nr. 566/ 2004 cu modificările și completările ulterioaresi grupuri de\nproducători înființate conform ordonantei 37/2005 privind recunoaşterea şi\nfuncţionarea grupurilor şi organizaţiilor de producători, pentru comercializarea produselor agricole, cu completările şi modificările ulterioare."]
["11.3\tAct constitutiv, Statut si hotarirea de inscriere in registrul Asociatiilor si Fundatiilor pentru asociatii.\nÎn caz, dacă în timpul evaluării se constată că documentul prezentat de solicitant nu este suficient, evaluatorul va solicita prin informații suplimentare documentul necesar cu elementele pe care trebuie să le conțină."]
["12. DOCUMENT EMIS DE ANPM PENTRU PROIECT (conform protocolului\nde colaborare AFIR ANPM-GM), după caz :\na. Clasarea notificării\nsau\nb. Decizia etapei de încadrare ca document final\nsau\nc. Acord de mediu în cazul în care se impune evaluarea impactului\npreconizat asupra mediului\nsau\nd. Acord de mediu în cazul evaluării impactului asupra mediului și de\nevaluare adecvată (dacă este cazul)\nsau\ne. Aviz Natura 2000 pentru proiectele care impun doar evaluare adecvată\nTermenul de prezentare a documentului emis de ANPM menționat la\nliterele a / b este de maximum 4 luni de la primirea de către solicitant a\nnotificarii privind selectarea Cererii de Finanțare, iar termenul de\nprezentare a documentului emis de ANPM menționat la literele c / d / e se\ndepune în 7 luni de la primirea de către solicitant a notificării privind\nselectarea Cererii de Finanțare."]
["13. Declarație privind prelucrarea datelor cu caracter personal."]
["14 ALTE DOCUMENTE JUSTIFICATIVE (SE VOR SPECIFICA DUPĂ CAZ)\nAtenţie! Evaluarea cererii de finanţare din punct de vedere al eligibilităţii şi al\nverificării criteriilor de selecţie va include şi consultarea informaţilor referitoare\nla solicitant şi la punctul de lucru, după caz, deţinute de instituţiile abilitate (ex:\nANSVSA, APIA, MADR, ONRC, etc.) sau documentele relevante anexate de\ncătre solicitant: Oferte, Documente înființare membrii, Documente de identitate\n- copii, Contract de muncă/extras REVISAL, Angajament de realizare lucrări/\nconstrucții, Hotararea Consiliului Local, etc.\nDocumentele justificative anexate Cererii de finanţare trebuie să fie\nvalabile la data depunerii acestora, în conformitate cu legislaţia naţională\nîn vigoare."]
[]
[]
[]
[]
[]
["F. DECLARAŢIE PE PROPRIA RĂSPUNDERE A LIDERULUI DE PROIECT"]
["Prin această declaraţie liderul de proiect"]
[]
["care solicită asistență financiară nerambursabilă prin programul FEADR pentru proiectul intitulat"]
[]
["prin reprezentant legal"]
[]
["cunoscând prevederile legii penale cu privire la falsul în declarații:"]
[null,null,null,"1. Declar că proiectul propus asistenței financiare nerambursabile FEADR nu beneficiază de altă finanțare din\nprograme de finanțare nerambursabilă."]
[null,null,null,"2. Ma angajez ca în cazul în care proiectul va fi selectat pentru finantare FEADR, nu voi depune acest proiect la nici\nun alt program de finantare nerambursabila la care proiectul poate fi în intregime sau partial eligibil pentru asistenta."]
[null,null,null,"3. Declar ca îndeplinesc conditiile de eligibilitate prevazute în fisa sub-masurii si Ghidul Solicitantului si ma angajez\nsa le respect pe perioada de valabilitate a contractului de finantare si monitorizare a investitiei, inclusiv criteriile de\nselectie pentru care am fost punctat."]
[null,null,null,"4. Declar ca toate informatiile din prezenta cerere de finantare si din documentele anexate sunt corecte si ma\nangajez sa respect conditiile cerute în reglementarile referitoare la prezentul program si pe cele legate de proiectul\nanexat si sa furnizez periodic, la cerere, documente justificative necesare."]
[null,null,null,"5. Declar pe propria răspundere că orice modificari aduse dreptului de proprietate sau de folosință vor fi notificate\nAFIR în termen de trei zile de la data încheierii lor. De asemenea, mă angajez, ca pe perioada de valabilitate a\ncontractului de finantare și monitorizare a investiţiei sa nu diminuez numărul de membri ai parteneriatului."]
["  ",null,null,"6. Declar ca eu si organizatia mea (asociatie sau întreprindere) nu suntem într-unul din urmatoarele cazuri:"]
[null,null,null," - Acuzat din cauza unei greşelli privind conduita profesionala având ca solutie finala res judicata (împotriva careia nici un apel nu este posibil)"]
[null,null,null," - Vinovat de grave deficiente de conduita profesionala dovedite prin orice mijloace pe care Agentia le poate justifica."]
[null,null,null," - Vinovat de faptul ca nu am prezentat informatiile cerute de Autoritatea Contractanta ca o conditie de participare la licitatie sau contractare."]
[null,null,null," - Încalcarea prevederilor contractuale prin care nu mi-am îndeplinit obligatiile contractuale în legatura cu un alt contract cu Agentia sau alte contracte finantate din fonduri comunitare."]
[null,null,null," - Încercarea de a obtine informatii confidentiale sau de influentare a Agentiei în timpul procesului de evaluare a proiectului si nu voi face presiuni la adresa evaluatorului."]
[7,null,null,null,null,"Declar ca organizatia pe care o reprezint ARE datorii catre institutii de credit si/sau institutii financiare\nbancare/ nebancare pentru care prezint graficul de rambursare"]
[null,null,null,null,null,"Declar ca organizatia pe care o reprezint NU are datorii catre institutii de credit si/sau institutii financiare\nbancare/ nebancare"]
[8,null,null,null,null,"Declar că liderul de proiect și nici partenerii nu au in derulare sau finalizate alte proiecte identice finanțate prin\nalte programe sau FEADR în cadrul aceleiași măsuri"]
[9,null,null,null,null,"Declar pe propria raspundere ca în cazul în care nu respect oricare din punctele prevazute în aceasta declaratie\nproiectul sa devina neeligibil în baza criteriului \"Eligibilitatea solicitantului\" sau contractul sa fie reziliat"]
[10,null,null,null,null,"Declar pe propria răspundere că:"]
[null,null,null,null,null,"Nu sunt înregistrat în scopuri TVA si ca ma angajez sa notific Agentiei orice modificare a situatiei privind înregistrarea\nca platitor de TVA, în maxim 10 (zece) zile de la data înregistrarii în scopuri TVA"]
[null,null,null,null,null,"Sunt înregistrat în scopuri de TVA (certificat de înregistrare fiscală în scopuri de TVA)"]
[11,null,null,null,null,"Declar pe propria raspundere că nu am înscrieri care privesc sanctiuni economico-financiare în cazierul judiciar\npe care ma oblig sa îl depun la încheierea contractului de finanțare."]
[12,null,null,null,null,"Declar pe propria raspundere că nu am fapte înscrise în cazierul fiscal."]
[13,null,null,null,null,"Declar pe propria raspundere ca toate cheltuielile neeligibile vor fi suportate de solicitant si ca acestea vor fi\nrealizate pâna la finalizarea proiectului."]
[14,null,null,null,null,"Mă angajez ca în maxim 4 luni de la data primirii \"Notificării beneficiarului privind selectarea cererii de finantare\nși semnarea contractului de finanțare\" să prezint documentul ANPM pentru proiect. Prin excepţie de la acest\ntermen, în cazul în care proiectul se supune procedurilor de evaluare a impactului asupra mediului şi de evaluare adecvată sau doar de evaluare adecvată, mă angajez să prezint Acordul de mediu/Avizul Natura 2000 în termen de maximum 7 luni de la primirea Notificării solicitantului privind selectarea cererii de finanţare şi semnarea contractului de finanţare."]
[]
["Semnătura reprezentant legal şi ştampila (după caz)",null,null,null,null,null,null,null,null,null,null,null,null,null,null,null,null,null,null,null,null,null,null,null,null,null,null,null,null,null,null,null,null,null,null,null,null,null,null,null,null," Data:"]
[]
[]
[]
["Anexa INDICATORI DE MONITORIZARE"]
["Măsura 16.1\nSprijin acordat pentru cooperare orizontală şi verticală între actorii din lanţul de aprovizionare\n"]
[]
["1. Cod RO"]
["2. Cod CAEN lider de proiect"]
["3. Tipul liderului de proiect",null,null,null,null,null,null,null,null,null,null,null,null,null,null,null,null,"Fermier"]
[null,null,null,null,null,null,null,null,null,null,null,null,null,null,null,null,null,"Consultant"]
[null,null,null,null,null,null,null,null,null,null,null,null,null,null,null,null,null,"Institut de cercetare/ Stațiune de cercetare"]
[null,null,null,null,null,null,null,null,null,null,null,null,null,null,null,null,null,"IMM"]
[null,null,null,null,null,null,null,null,null,null,null,null,null,null,null,null,null,"ONG"]
[null,null,null,null,null,null,null,null,null,null,null,null,null,null,null,null,null,"Alții"]
["4. Număr membri (parteneri) în Grupul Operațional",null,null,null,null,null,null,null,null,null,null,null,null,null,null,null,null,"Fermier",null,null,null,null,null,null,null,null,null,null,null,null,null,null,null,null,null,null,null,null,null,null,null,null,null,null,null,null,null,null,null,null,0]
[null,null,null,null,null,null,null,null,null,null,null,null,null,null,null,null,null,"Consultant",null,null,null,null,null,null,null,null,null,null,null,null,null,null,null,null,null,null,null,null,null,null,null,null,null,null,null,null,null,null,null,null,0]
[null,null,null,null,null,null,null,null,null,null,null,null,null,null,null,null,null,"Institut de cercetare/ Stațiune de cercetare",null,null,null,null,null,null,null,null,null,null,null,null,null,null,null,null,null,null,null,null,null,null,null,null,null,null,null,null,null,null,null,null,0]
[null,null,null,null,null,null,null,null,null,null,null,null,null,null,null,null,null,"IMM",null,null,null,null,null,null,null,null,null,null,null,null,null,null,null,null,null,null,null,null,null,null,null,null,null,null,null,null,null,null,null,null,0]
[null,null,null,null,null,null,null,null,null,null,null,null,null,null,null,null,null,"ONG",null,null,null,null,null,null,null,null,null,null,null,null,null,null,null,null,null,null,null,null,null,null,null,null,null,null,null,null,null,null,null,null,0]
[null,null,null,null,null,null,null,null,null,null,null,null,null,null,null,null,null,"Alții",null,null,null,null,null,null,null,null,null,null,null,null,null,null,null,null,null,null,null,null,null,null,null,null,null,null,null,null,null,null,null,null,0]
["5. Tipul de proiect propus",null,null,null,null,null,null,null,null,null,null,null,null,null,null,null,null,"Proiect pilot"]
[null,null,null,null,null,null,null,null,null,null,null,null,null,null,null,null,null,"Dezvoltare de noi produse, practici, procese și tehnologii în\nsectorul agro-alimentar"]
["6. Contribuie la Prioritatea 1?",null,null,null,null,null,null,null,null,null,null,null,null,null,null,null,null,"M01 - Transfer de cunoştinţe şi acţiuni de informare"]
[null,null,null,null,null,null,null,null,null,null,null,null,null,null,null,null,null,"M02 - Servicii de consiliere"]
[null,null,null,null,null,null,null,null,null,null,null,null,null,null,null,null,null,"M16 - Cooperare"]
["7. Domeniul de Intervenţie\n principal",null,null,null,null,null,null,null,null,null,null,null,null,null,null,null,null,"DI 1A: Încurajarea inovării, a cooperării și a creării unei baze de\ncunoștințe în zonele rurale."]
[null,null,null,null,null,null,null,null,null,null,null,null,null,null,null,null,null,"DI 1B: Consolidarea legăturilor dintre agricultură, producția\nalimentară și silvicultură, pe de o parte, cercetare și inovare, pe de\naltă parte, inclusiv în scopul unei gestionări mai bune a mediului și\nal unei performanțe de mediu îmbunătățite."]
[null,null,null,null,null,null,null,null,null,null,null,null,null,null,null,null,null,"DI 3A: Îmbunătățirea competitivității producătorilor primari printro\nmai bună integrare a acestora în lanțul agro-alimentar prin\nintermediul schemelor de calitate, al creșterii valorii adăugate a\nproduselor agricole, al promovării pe piețele locale și în cadrul\ncircuitelor scurte de aprovizionare, al grupurilor și organizațiilor de\nproducători și al organizațiilor interprofesionale."]
["8. Domeniul de Intervenţie secundar",null,null,null,null,null,null,null,null,null,null,null,null,null,null,null,null,"DI 2A Îmbunătățirea performanței economice a tuturor\nexploatațiilor agricole și facilitarea restructurării și modernizării\nexploatațiilor, în special în vederea sporirii participării pe piață și a\norientării spre piață, precum și a diversificării activităților agricole."]
[null,null,null,null,null,null,null,null,null,null,null,null,null,null,null,null,null,"DI 4B Îmbunătățirea gestionării apelor, inclusiv a gestionării\nîngrășămintelor și a pesticidelor."]
[null,null,null,null,null,null,null,null,null,null,null,null,null,null,null,null,null,"DI 4C Prevenirea eroziunii solului și ameliorarea gestionării solului."]
[null,null,null,null,null,null,null,null,null,null,null,null,null,null,null,null,null,"DI 5A Eficientizarea utilizării apei în agricultură."]
[null,null,null,null,null,null,null,null,null,null,null,null,null,null,null,null,null,"DI 5B Eficientizarea utilizării energiei în sectorul agroalimentar."]
[null,null,null,null,null,null,null,null,null,null,null,null,null,null,null,null,null,"DI 5C Facilitarea furnizării și a utilizării surselor regenerabile de\nenergie, a subproduselor, a deșeurilor, a reziduurilor și a altor\nmaterii prime nealimentare, în scopul bioeconomiei."]
[null,null,null,null,null,null,null,null,null,null,null,null,null,null,null,null,null,"DI 5D Reducerea emisiilor de gaze cu efect de seră și de amoniac\ndin agricultură."]
[null,null,null,null,null,null,null,null,null,null,null,null,null,null,null,null,null,"DI 5E Promovarea conservării și sechestrării carbonului în\nagricultură și silvicultură."]
[]
["*Pentru indicatorii de tip numeric care nu fac obiectul investiţiei se va completa valoarea zero.\nIndic. nr.1 - reprezinta codul de inregistrare al beneficiarului în Registrul Fermierului la APIA\nIndic. nr.2 - reprezinta codul CAEN pentru investitia vizata prin proiect\nIndic. nr. 3, 5 - se va bifa doar o singura categorie/ categoria majoritara\nIndic. nr. 6 - se va completa din momentul demararii M01, M02, respectiv M16"]
[]
["Factori de risc"]
["I1. Numarul de membri ai parteneriatului",null,null,null,null,null,null,null,null,null,null,null,null,null,null,null,null,null,null,null,null,null,null,null,null,null,null,null,null,null,null,null,null,null,null,null,null,null,null,null,null,"Factor îndeplinit",null,null,null,null,null,null,null,null,null,"Punctaj"]
["•",null,2,null,null,null,null,null,null,null,null,null,null,null,null,null,null,null,null,null,null,null,null,null,null,null,null,null,null,null,null,null,null,null,null,null,null,null,null,null,null,null,null,null,null,null,null,null,null,null,null,5]
["•",null,"3 - 5",null,null,null,null,null,null,null,null,null,null,null,null,null,null,null,null,null,null,null,null,null,null,null,null,null,null,null,null,null,null,null,null,null,null,null,null,null,null,null,null,null,null,null,null,null,null,null,null,3]
["•",null," > 5",null,null,null,null,null,null,null,null,null,null,null,null,null,null,null,null,null,null,null,null,null,null,null,null,null,null,null,null,null,null,null,null,null,null,null,null,null,null,null,null,null,null,null,null,null,null,null,null,1]
[]
["I2. Domeniul de activitate al liderului de proiect",null,null,null,null,null,null,null,null,null,null,null,null,null,null,null,null,null,null,null,null,null,null,null,null,null,null,null,null,null,null,null,null,null,null,null,null,null,null,null,null,"Factor îndeplinit",null,null,null,null,null,null,null,null,null,"Punctaj"]
["•",null,"Alte categorii conform punctului A7.2 CF",null,null,null,null,null,null,null,null,null,null,null,null,null,null,null,null,null,null,null,null,null,null,null,null,null,null,null,null,null,null,null,null,null,null,null,null,null,null,null,null,null,null,null,null,null,null,null,null,5]
["•",null,"Microîntreprinderi si întreprinderi mici",null,null,null,null,null,null,null,null,null,null,null,null,null,null,null,null,null,null,null,null,null,null,null,null,null,null,null,null,null,null,null,null,null,null,null,null,null,null,null,null,null,null,null,null,null,null,null,null,3]
["•",null,"Fermier",null,null,null,null,null,null,null,null,null,null,null,null,null,null,null,null,null,null,null,null,null,null,null,null,null,null,null,null,null,null,null,null,null,null,null,null,null,null,null,null,null,null,null,null,null,null,null,null,1]
[]
["I3. Gradul de dotare al membrilor parteneriatului",null,null,null,null,null,null,null,null,null,null,null,null,null,null,null,null,null,null,null,null,null,null,null,null,null,null,null,null,null,null,null,null,null,null,null,null,null,null,null,null,"Factor îndeplinit",null,null,null,null,null,null,null,null,null,"Punctaj"]
["•",null,"Nu detine baze de productie specifice activitatii",null,null,null,null,null,null,null,null,null,null,null,null,null,null,null,null,null,null,null,null,null,null,null,null,null,null,null,null,null,null,null,null,null,null,null,null,null,null,null,null,null,null,null,null,null,null,null,null,5]
["•",null,"Propune achizitii pentru realizarea bazei de productie specifice",null,null,null,null,null,null,null,null,null,null,null,null,null,null,null,null,null,null,null,null,null,null,null,null,null,null,null,null,null,null,null,null,null,null,null,null,null,null,null,null,null,null,null,null,null,null,null,null,3]
["•",null,"Detine baze de productie specifice activitatii",null,null,null,null,null,null,null,null,null,null,null,null,null,null,null,null,null,null,null,null,null,null,null,null,null,null,null,null,null,null,null,null,null,null,null,null,null,null,null,null,null,null,null,null,null,null,null,null,1]
["TOTAL",null,null,null,null,null,null,null,null,null,null,null,null,null,null,null,null,null,null,null,null,null,null,null,null,null,null,null,null,null,null,null,null,null,null,null,null,null,null,null,null,null,null,null,null,null,null,null,null,null,null,0]
[]
[]
[]
["Codul unic de inregistrare APIA"]
["In cazul in care nu aveti un cod unic de inregistrare APIA, completati acest formular. "]
[]
["FORMULAR"]
["de înscriere în Registrul unic de identificare pentru solicitanţii de finanţare prin măsurile"]
["Programului naţional de dezvoltare rurală 2014 - 2020"]
[" - Valabil pentru fermieri -"]
["Denumire solicitant:"]
[]
["Categorie Solicitant:"]
[]
["Sediul / Adresa"]
[]
["Ţara",null,null,null,null,"România",null,null,null,null,null,null,null,null,"Judeţul",null,null,null,null,null,null,null,null,null,null,null,null,null,null,null,null,null,null,"oraşul"]
[]
["comuna",null,null,null,null,null,null,null,null,null,null,null,null,null,null,null,null,null,null,null,null,"satul",null,null,null,null,null,null,null,null,null,null,null,null,null,null,null,null,null,"strada"]
[]
["nr.",null,null,null,null,null,null,null,"bl.",null,null,null,null,null,"et.",null,null,null,null,"ap.",null,null,null,null,null,"sectorul",null,null,null,null,null,null,null,null,null,null,null,null,"codul poştal"]
[]
["Număr de telefon",null,null,null,null,null,null,null,null,null,null,null,null,null,null,null,null,null,null,null,null,null,null,"Fax",null,null,null,null,null,null,null,null,null,null,null,null,null,null,"E-mail"]
[]
["Număr de înregistrare în registrul comerțului/Registrul asociațiilor și fundațiilor"]
[]
["CUI / CIF"]
[]
["Cod CAEN pentru activitatea principală"]
[]
["Cod CAEN pentru activitatea secundară pentru care se solicită înregistrarea în Registrul unic de identificare"]
[]
["Cod IBAN"]
[]
["deschis la Banca"]
[]
["Sucursala / Agenție"]
[]
["Prin reprezentant legal, doamna/domnul"]
[]
["cu CNP",null,null,null,null,null,null,null,null,null,null,null,null,null,null,"solicit înscrierea în Registrul unic de identificare -Agenţia de Plăţi şi Intervenţie pentru Agricultură."]
[]
["Am luat la cunoştinţă că orice modificare a informaţiilor de mai sus trebuie furnizată către APIA în termen de maximum 10 zile\nlucrătoare de la producerea acestora.\nDeclar pe propria răspundere că cele de mai sus sunt conforme cu realitatea.\nSunt de acord ca datele din cerere să fie introduse în baza de date a Sistemului Integrat de Administrare şi Control, procesate şi\nverificate în vederea înscrierii în Registrul unic de identificare şi transmise autorităţilor responsabile în vederea elaborării de studii\nstatistice şi de evaluări economice, în condiţiile Legii nr. 677-2001 pentru protecţia persoanelor cu privire la prelucrarea datelor cu\ncaracter personal şi libera circulaţie a acestor date, cu modificarile şi completările ulterioare."]
[]
["Reprezentant legal",null,null,null,null,null,null,null,null,null,null,null,null,null,null,null,null,null,null,null,null,null,null,null,null,null,null,null,null,null,null,null,null,null,null,null,null,null,null,null,null,null,null,"Data:"]
[]
["Numele şi prenumele"]
[]
[null,"Semnătura "]

{"sheet":"Anexa 1","index":1,"n_rows":82,"n_cols":52,"rows_kept":82,"cut":false,"hidden":false,"merged":[[12,4,12,41],[12,42,12,50],[12,51,12,60],[8,42,8,50],[8,51,8,60],[17,42,17,50],[17,51,17,60],[18,0,18,3],[18,4,18,41],[18,42,18,50],[18,51,18,60],[13,0,13,3],[13,4,13,41],[13,42,13,50],[13,51,13,60],[14,0,14,3],[14,4,14,41],[14,42,14,50],[14,51,14,60],[15,0,15,3],[15,4,15,41],[15,42,15,50],[15,51,15,60],[25,42,25,50],[25,51,25,60],[26,0,26,3],[26,42,26,50],[26,51,26,60],[27,0,27,3],[27,42,27,50],[27,51,27,60],[22,4,22,41],[22,42,22,50],[22,51,22,60],[23,0,23,3],[23,42,23,50],[23,51,23,60],[24,42,24,50],[24,51,24,60],[25,4,25,41],[26,4,26,41],[27,4,27,41],[28,0,28,3],[28,42,28,50],[28,51,28,60],[29,0,29,3],[29,4,29,41],[29,42,29,50],[29,51,29,60],[30,0,30,3],[30,4,30,41],[30,42,30,50],[30,51,30,60],[28,4,28,41],[31,0,31,3],[31,4,31,41],[31,42,31,50],[31,51,31,60],[32,0,32,3],[32,4,32,41],[32,42,32,50],[32,51,32,60],[33,0,33,3],[33,4,33,41],[33,42,33,50],[33,51,33,60],[34,4,34,41],[34,42,34,50],[34,51,34,60],[35,0,35,3],[35,4,35,41],[35,42,35,50],[35,51,35,60],[36,0,36,3],[36,4,36,41],[36,42,36,50],[36,51,36,60],[34,0,34,3],[48,0,48,3],[49,0,49,3],[50,0,50,3],[40,4,40,41],[40,42,40,50],[40,51,40,60],[43,0,43,3],[44,0,44,3],[45,0,45,3],[43,4,43,41],[43,42,43,50],[43,51,43,60],[44,4,44,41],[44,42,44,50],[44,51,44,60],[45,4,45,41],[45,42,45,50],[45,51,45,60],[46,4,46,41],[46,42,46,50],[46,51,46,60],[47,4,47,41],[48,4,48,41],[48,42,48,50],[72,51,72,60],[73,0,73,3],[73,4,73,41],[73,42,73,50],[73,51,73,60],[65,42,65,50],[65,51,65,60],[70,0,70,3],[70,4,70,41],[70,42,70,50],[70,51,70,60],[65,0,65,3],[66,0,66,3],[67,0,67,3],[68,0,68,3],[69,0,69,3],[71,0,71,3],[71,4,71,41],[71,42,71,50],[71,51,71,60],[72,0,72,3],[72,4,72,41],[72,42,72,50],[65,4,65,41],[74,0,74,3],[74,4,74,41],[74,42,74,50],[74,51,74,60],[75,0,75,3],[75,4,75,41],[75,42,75,50],[75,51,75,60],[78,0,78,3],[78,4,78,41],[78,42,78,50],[78,51,78,60],[48,51,48,60],[47,42,47,50],[47,51,47,60],[49,4,49,41],[49,42,49,50],[49,51,49,60],[50,4,50,41],[50,42,50,50],[50,51,50,60],[63,42,63,50],[63,51,63,60],[64,4,64,41],[64,42,64,50],[64,51,64,60],[56,7,56,41],[56,42,57,60],[57,7,57,41],[59,0,59,60],[60,0,60,60],[61,0,61,60],[62,0,62,3],[62,4,62,41],[62,42,62,50],[62,51,62,60],[63,0,63,3],[64,0,64,3],[37,51,37,60],[38,0,38,3],[38,4,38,41],[38,42,38,50],[38,51,38,60],[39,4,39,41],[39,42,39,50],[39,51,39,60],[69,4,69,41],[69,42,69,50],[69,51,69,60],[66,4,66,41],[66,42,66,50],[66,51,66,60],[67,4,67,41],[67,42,67,50],[67,51,67,60],[68,4,68,41],[68,42,68,50],[68,51,68,60],[51,0,51,41],[51,42,51,60],[53,0,53,42],[63,4,63,41],[6,7,6,41],[6,42,7,60],[7,7,7,41],[8,7,8,41],[10,0,10,60],[11,0,11,60],[23,4,23,41],[24,4,24,41],[19,4,19,41],[19,42,19,50],[19,51,19,60],[20,4,20,41],[20,42,20,50],[20,51,20,60],[21,4,21,41],[21,42,21,50],[21,51,21,60],[16,0,16,3],[16,4,16,41],[16,42,16,50],[16,51,16,60],[17,0,17,3],[17,4,17,41],[12,0,12,3],[79,0,79,41],[79,42,79,60],[81,0,81,42],[9,0,9,60],[58,0,58,60],[76,0,76,3],[76,4,76,41],[76,42,76,50],[76,51,76,60],[77,0,77,3],[77,4,77,41],[77,42,77,50],[77,51,77,60],[41,0,41,3],[41,4,41,41],[41,42,41,50],[41,51,41,60],[42,0,42,3],[42,4,42,41],[42,42,42,50],[42,51,42,60],[37,0,37,3],[37,4,37,41],[37,42,37,50]]}
[]
[]
[]
[]
[]
[]
[null,null,null,null,null,null,null,null,null,null,null,null,null,null,null,null,null,null,null,null,null,null,null,null,null,null,null,null,null,null,null,null,null,null,null,null,null,null,null,null,null,null,"Anexa A1\nHG 907/2016"]
[]
[]
["Deviz financiar- Capitolul 3 - Cheltuieli pentru proiectare şi asistenţa tehnică - EURO"]
["Investitii aferente Buget Indicativ al Proiectului (EURO) cu Intensitatea de 90% - HG 907/2016"]
[]
["Nr.crt",null,null,null,"Specificaţie",null,null,null,null,null,null,null,null,null,null,null,null,null,null,null,null,null,null,null,null,null,null,null,null,null,null,null,null,null,null,null,null,null,null,null,null,null,"Valoare eligibilă",null,null,null,null,null,null,null,null,"Valoare\nneeligibilă"]
["3.1",null,null,null,"Cheltuieli pentru studii - total din care:",null,null,null,null,null,null,null,null,null,null,null,null,null,null,null,null,null,null,null,null,null,null,null,null,null,null,null,null,null,null,null,null,null,null,null,null,null,{"$f":"SUM(AQ15:AQ17)","v":0},null,null,null,null,null,null,null,null,{"$f":"SUM(AZ15:AZ17)","v":0}]
[null,null,null,null,"3.1.1 Studii de teren: studii geotehnice, geologice, hidrologice, hidrogeotehnice,\nfotogrammetrice, topografica şi de stabilitate ale terenului pe care se amplasează obiectivul de investiţie "]
[null,null,null,null,"3.1.2 Raport privind impactul asupra mediului"]
[null,null,null,null,"3.1.3 Studii de specialitate necesare în funcţie de specificul investiţiei"]
["3.2",null,null,null,"Documentaţii-suport şi cheltuieli pentru obţinerea de avize, acorduri şi\nautorizaţii",null,null,null,null,null,null,null,null,null,null,null,null,null,null,null,null,null,null,null,null,null,null,null,null,null,null,null,null,null,null,null,null,null,null,null,null,null,{"$f":"SUM(AQ19:AQ21)+SUM(AQ24:AQ27)","v":0},null,null,null,null,null,null,null,null,{"$f":"SUM(AZ19:AZ27)","v":0}]
[null,null,null,null,"1. obţinerea/prelungirea valabilităţii ceritificatului de urbanism"]
[null,null,null,null,"2. obţinerea/prelungirea valabilităţii autorizaţiei de construire/desfiinţare"]
[null,null,null,null,"3. obţinerea avizelor şi acordurilor pentru racorduri şi branşamente la reţele publice\nde alimentare cu apă, canalizare, alimentare cu gaze, alimentare cu agent termic,\nenergie electrică, telefonie"]
[null,null,null,null,"4. obţinerea certificatului de nomenclatură stradală şi adresă"]
[null,null,null,null,"5. întocmirea documentaţiei, obţinerea numărului cadastral provizoriu şi\nînregistrarea terenului în cartea funciară"]
[null,null,null,null,"6. obţinerea actului administrativ al autorităţii competente pentru protecţia mediului"]
[null,null,null,null,"7. obţinerea avizului de protecţie civilă"]
[null,null,null,null,"8. avizul de specialitate în cazul obiectivelor de patrimoniu"]
[null,null,null,null,"9. alte avize, acorduri şi autorizaţii"]
["3.3",null,null,null,"Cheltuieli pentru expertizarea tehnică a construcţiilor existente, a structurilor şi/sau, după caz, a proiectelor tehnice, inclusiv întocmirea de către expertul tehnic a raportului de expertiză tehnică",null,null,null,null,null,null,null,null,null,null,null,null,null,null,null,null,null,null,null,null,null,null,null,null,null,null,null,null,null,null,null,null,null,null,null,null,null,0,null,null,null,null,null,null,null,null,0]
["3.4",null,null,null,"Cheltuieli pentru certificarea performanţei energetice şi auditul energetic al clădirilor",null,null,null,null,null,null,null,null,null,null,null,null,null,null,null,null,null,null,null,null,null,null,null,null,null,null,null,null,null,null,null,null,null,null,null,null,null,0,null,null,null,null,null,null,null,null,0]
["3.5",null,null,null,"Cheltuieli pentru proiectare",null,null,null,null,null,null,null,null,null,null,null,null,null,null,null,null,null,null,null,null,null,null,null,null,null,null,null,null,null,null,null,null,null,null,null,null,null,{"$f":"AQ31+AQ32+AQ33+AQ34+AQ35+AQ36","v":0},null,null,null,null,null,null,null,null,{"$f":"AZ31+AZ32+AZ33+AZ34+AZ35+AZ36","v":0}]
[null,null,null,null,"3.5.1 Temă de proiectare"]
[null,null,null,null,"3.5.2 Studiu de prefezabilitate"]
[null,null,null,null,"3.5.3 Studiu de fezabilitate/documentaţie de avizare a lucrărilor de intervenţii şi deviz general"]
[null,null,null,null,"3.5.4 Documentaţiile tehnice necesare în vederea obţinerii avizelor/acordurilor/autorizaţiilor"]
[null,null,null,null,"3.5.5 Verificarea tehnică de calitate a proiectului tehnic şi a detaliilor de execuţie"]
[null,null,null,null,"3.5.6 Proiect tehnic şi detalii de execuţie"]
["3.6",null,null,null,"Cheltuieli aferente organizării şi derulării procedurilor de achiziţii publice",null,null,null,null,null,null,null,null,null,null,null,null,null,null,null,null,null,null,null,null,null,null,null,null,null,null,null,null,null,null,null,null,null,null,null,null,null,null,null,null,null,null,null,null,null,null,{"$f":"SUM(AZ38:AZ41)","v":0}]
[null,null,null,null,"1. Cheltuieli aferente întocmirii documentaţiei de atribuire şi multiplicării acesteia (exclusiv cele cumpărate de ofertanţi)"]
[null,null,null,null,"2. Cheltuieli cu onorariile, transportul, cazarea şi diurna membrilor desemnaţi în comisiile de evaluare"]
[null,null,null,null,"3. Anunţuri de intenţie, de participare şi de atribuire a contractelor, corespondenţă\nprin poştă, fax, poştă electronică în legătură cu procedurile de achiziţie publică"]
[null,null,null,null,"4. Cheltuieli aferente organizării şi derulării procedurilor de achiziţii publice"]
["3.7",null,null,null,"Cheltuieli pentru consultanţă",null,null,null,null,null,null,null,null,null,null,null,null,null,null,null,null,null,null,null,null,null,null,null,null,null,null,null,null,null,null,null,null,null,null,null,null,null,{"$f":"AQ43","v":0},null,null,null,null,null,null,null,null,{"$f":"AZ43+AZ44","v":0}]
[null,null,null,null,"3.7.1 Managementul de proiect pentru obiectivul de investiţii"]
[null,null,null,null,"3.7.2 Auditul financiar"]
["3.8",null,null,null,"Cheltuieli pentru asistenţă tehnică",null,null,null,null,null,null,null,null,null,null,null,null,null,null,null,null,null,null,null,null,null,null,null,null,null,null,null,null,null,null,null,null,null,null,null,null,null,{"$f":"AQ46+AQ49","v":0},null,null,null,null,null,null,null,null,{"$f":"AZ46+AZ49","v":0}]
[null,null,null,null,"3.8.1. Asistenţă tehnică din partea proiectantului",null,null,null,null,null,null,null,null,null,null,null,null,null,null,null,null,null,null,null,null,null,null,null,null,null,null,null,null,null,null,null,null,null,null,null,null,null,{"$f":"AQ47+AQ48","v":0},null,null,null,null,null,null,null,null,{"$f":"AZ47+AZ48","v":0}]
[null,null,null,null,"    1.1. pe perioada de execuţie a lucrărilor"]
[null,null,null,null,"     1.2. pentru participarea proiectantului la fazele incluse în programul de control al\nlucrărilor de execuţie, avizat de către Inspectoratul de Stat în Construcţii"]
[null,null,null,null,"3.8.2 Dirigenţie de şantier, asigurată de personal tehnic de specialitate, autorizat"]
[null,null,null,null,"Total valoare fără TVA",null,null,null,null,null,null,null,null,null,null,null,null,null,null,null,null,null,null,null,null,null,null,null,null,null,null,null,null,null,null,null,null,null,null,null,null,null,{"$f":"AQ45+AQ42+AQ30+AQ29+AQ28+AQ18+AQ14","v":0},null,null,null,null,null,null,null,null,{"$f":"AZ45+AZ42+AZ37+AZ30+AZ29+AZ28+AZ18+AZ14","v":0}]
[null,null,null,null,"Valoare TVA (aferentă cheltuielilor eligibile şi neeligibile)"]
["TOTAL DEVIZ FINANCIAR 1 (inclusiv TVA)",null,null,null,null,null,null,null,null,null,null,null,null,null,null,null,null,null,null,null,null,null,null,null,null,null,null,null,null,null,null,null,null,null,null,null,null,null,null,null,null,null,{"$f":"AQ50+AZ50+AQ51+AZ51","v":0}]
[]
["Notă: Pentru a adăuga o nouă anexă accesaţi foaia (sheet) corespunzătoare sau click aici"]
[]
[]
[null,null,null,null,null,null,null,null,null,null,null,null,null,null,null,null,null,null,null,null,null,null,null,null,null,null,null,null,null,null,null,null,null,null,null,null,null,null,null,null,null,null,"Anexa A1\nHG 907/2016"]
[]
["Deviz financiar- Capitolul 3 - Cheltuieli pentru proiectare şi asistenţa tehnică - EURO"]
["INVESTIŢII SPECIFICE cu intensitatea de 100%"]
[]
[]
["Nr.crt",null,null,null,"Specificaţie",null,null,null,null,null,null,null,null,null,null,null,null,null,null,null,null,null,null,null,null,null,null,null,null,null,null,null,null,null,null,null,null,null,null,null,null,null,"Valoare eligibilă",null,null,null,null,null,null,null,null,"Valoare\nneeligibilă"]
[1,null,null,null,"Cheltuieli cu activitățile pregătitoare",null,null,null,null,null,null,null,null,null,null,null,null,null,null,null,null,null,null,null,null,null,null,null,null,null,null,null,null,null,null,null,null,null,null,null,null,null,{"$f":"AQ65+AQ66","v":0},null,null,null,null,null,null,null,null,{"$f":"AZ65+AZ66","v":0}]
[null,null,null,null,"1.1 Elaborarea de studii pregătitoare, studii de fezabilitate și planuri, inclusiv planul\nproiectului"]
[null,null,null,null,"1.2 Alte cheltuieli necesare elaborării documentației necesare depunerii proiectului complet în etapa II care nu se încadrează în cateparteneriatria de mai sus."]
[2,null,null,null,"Cheltuielile de funcționare ale parteneriatuluui",null,null,null,null,null,null,null,null,null,null,null,null,null,null,null,null,null,null,null,null,null,null,null,null,null,null,null,null,null,null,null,null,null,null,null,null,null,{"$f":"SUM(AQ68:AQ71)","v":0},null,null,null,null,null,null,null,null,{"$f":"SUM(AZ68:AZ71)","v":0}]
[null,null,null,null,"2.1 Cheltuieli de transport și diurnă ale coordonatorului/echipei de proiect și partenerilor, legate de activitățile parteneriatului, conform legislatiei nationale;"]
[null,null,null,null,"2.2 Onorarii ale personalului (de exemplu angajat salariat în vederea asigurării activității de secretariat, relației cu AFIR, etc.);"]
[null,null,null,null,"2.3 Cheltuieli legate de închirierea spațiilor de desfășurare a întâlnirilor parteneriatului,\nînchiriere sediu, achiziție echipamente IT și alte dotări necesare desfășurării cooperării."]
[null,null,null,null,"2.4 Alte cheltuieli ce nu pot fi incluse în cateparteneriatria de mai sus."]
[3,null,null,null,"Costurile directe generate în mod specific de activitățile incluse în planul de proiect depus de parteneriat (pot fi efectuate după semnarea contractului), precum:",null,null,null,null,null,null,null,null,null,null,null,null,null,null,null,null,null,null,null,null,null,null,null,null,null,null,null,null,null,null,null,null,null,null,null,null,null,{"$f":"SUM(AQ73:AQ75)","v":0},null,null,null,null,null,null,null,null,{"$f":"SUM(AZ73:BI75)","v":0}]
[null,null,null,null,"3.1 Cheltuieli legate de chirii pentru: echipamente, utilaje, imobile necesare desfășurării\nactivității descrise în proiect (altele decât sediu) etc."]
[null,null,null,null,"3.2 Cheltuieli cu onorarii ale partenerilor, colaboratorilor externi, aferente activitatilor\ndescrise in proiect și prestări servicii de către aceștia sau alte persoane/entități, inclusiv\ncheltuielile aferente salariului/onorariului coordonatorului de proiect, după caz."]
[null,null,null,null,"3.3 Alte cheltuieli ce nu pot fi incluse în cateparteneriatria de mai sus."]
[4,null,null,null,"Cheltuieli generate de diseminarea rezultatelor",null,null,null,null,null,null,null,null,null,null,null,null,null,null,null,null,null,null,null,null,null,null,null,null,null,null,null,null,null,null,null,null,null,null,null,null,null,{"$f":"AQ77","v":0},null,null,null,null,null,null,null,null,{"$f":"AZ77","v":0}]
[null,null,null,null,"4.1 Cheltuielile generate de diseminarea rezultatelor cum sunt (listă indicativă): organizare evenimente diseminare, pliante, publicații, participare evenimente specifice în vederea diseminării rezultatelor etc."]
[null,null,null,null,"Total valoare fără TVA",null,null,null,null,null,null,null,null,null,null,null,null,null,null,null,null,null,null,null,null,null,null,null,null,null,null,null,null,null,null,null,null,null,null,null,null,null,{"$f":"AQ64+AQ67+AQ72+AQ76","v":0},null,null,null,null,null,null,null,null,{"$f":"AZ64+AZ67+AZ72+AZ76","v":0}]
[null,null,null,null,"Valoare TVA (aferentă cheltuielilor eligibile şi neeligibile)"]
["TOTAL DEVIZ FINANCIAR 1 (inclusiv TVA)",null,null,null,null,null,null,null,null,null,null,null,null,null,null,null,null,null,null,null,null,null,null,null,null,null,null,null,null,null,null,null,null,null,null,null,null,null,null,null,null,null,{"$f":"AQ78+AZ78+AQ79+AZ79","v":0}]
[]
["Notă: Pentru a adăuga o nouă anexă accesaţi foaia (sheet) corespunzătoare sau click aici"]

{"sheet":"Anexa 2","index":2,"n_rows":37,"n_cols":52,"rows_kept":37,"cut":false,"hidden":false,"merged":[[6,7,6,41],[7,7,7,41],[7,42,8,60],[8,7,8,41],[9,7,9,41],[11,0,11,60],[12,0,12,60],[13,0,13,60],[9,42,9,50],[9,51,9,60],[10,7,10,60],[14,0,14,3],[14,4,14,41],[15,42,15,50],[15,51,15,60],[16,42,16,50],[16,51,16,60],[14,42,14,60],[15,0,15,41],[16,0,16,41],[20,0,20,3],[20,4,20,41],[20,42,20,50],[20,51,20,60],[17,0,17,3],[17,4,17,41],[17,42,17,50],[17,51,17,60],[18,0,18,3],[18,4,18,41],[18,42,18,50],[18,51,18,60],[19,0,19,3],[19,4,19,41],[19,42,19,50],[19,51,19,60],[21,0,21,3],[21,4,21,41],[21,42,21,50],[21,51,21,60],[22,0,22,3],[22,4,22,41],[22,42,22,50],[22,51,22,60],[26,0,26,60],[28,0,28,3],[28,4,28,41],[23,0,23,60],[24,0,24,3],[24,4,24,41],[24,42,24,50],[24,51,24,60],[25,0,25,3],[25,4,25,41],[25,42,25,50],[25,51,25,60],[27,0,27,3],[27,4,27,41],[27,42,27,50],[27,51,27,60],[34,0,34,41],[34,42,34,60],[28,42,28,50],[28,51,28,60],[32,0,32,41],[32,42,32,50],[32,51,32,60],[36,0,36,43],[29,42,29,50],[29,51,29,60],[29,0,29,3],[29,4,29,41],[30,0,30,3],[30,4,30,41],[30,42,30,50],[30,51,30,60],[31,0,31,3],[31,4,31,41],[31,42,31,50],[31,51,31,60],[33,0,33,41],[33,42,33,50],[33,51,33,60]]}
[]
[]
[]
[]
[]
[]
[]
[null,null,null,null,null,null,null,null,null,null,null,null,null,null,null,null,null,null,null,null,null,null,null,null,null,null,null,null,null,null,null,null,null,null,null,null,null,null,null,null,null,null,"Anexa A2\nHG 907/2016"]
[]
[]
[null,null,null,null,null,null,null,"DEVIZ PE OBIECT *"]
[]
[]
["(Descriere obiect de construcţie)"]
["Nr. crt.",null,null,null,"Denumire",null,null,null,null,null,null,null,null,null,null,null,null,null,null,null,null,null,null,null,null,null,null,null,null,null,null,null,null,null,null,null,null,null,null,null,null,null,"Valoarea pe categorii de lucrări, fară TVA - EURO"]
["Cap. 4 + Cheltuieli pentru investiţia de bază",null,null,null,null,null,null,null,null,null,null,null,null,null,null,null,null,null,null,null,null,null,null,null,null,null,null,null,null,null,null,null,null,null,null,null,null,null,null,null,null,null,"Valoare eligibilă",null,null,null,null,null,null,null,null,"Valoare\nneeligibilă"]
["   I - LUCRĂRI DE CONSTRUCŢII ŞI INSTALAŢII"]
["4.1",null,null,null,"Construcţii şi instalaţii"]
[null,null,null,null,"4.1.1 Terasamente, sistematizare pe verticală şi amenajări exterioare"]
[null,null,null,null,"4.1.2 Rezistenţă"]
[null,null,null,null,"4.1.3 Arhitectură"]
[null,null,null,null,"4.1.4 Instalaţii"]
[null,null,null,null,"TOTAL I ( fără TVA)",null,null,null,null,null,null,null,null,null,null,null,null,null,null,null,null,null,null,null,null,null,null,null,null,null,null,null,null,null,null,null,null,null,null,null,null,null,{"$f":"SUM(AQ19:AY22)","v":0},null,null,null,null,null,null,null,null,{"$f":"SUM(AZ19:BI22)","v":0}]
["   II - MONTAJ"]
["4.2",null,null,null,"Montaj utilaje şi echipamente tehnologice şi funcţionale"]
[null,null,null,null,"TOTAL II ( fără TVA)",null,null,null,null,null,null,null,null,null,null,null,null,null,null,null,null,null,null,null,null,null,null,null,null,null,null,null,null,null,null,null,null,null,null,null,null,null,{"$f":"SUM(AQ25)","v":0},null,null,null,null,null,null,null,null,{"$f":"SUM(AZ25)","v":0}]
["   III - PROCURARE"]
["4.3",null,null,null,"Utilaje, echipamente tehnologice şi funcţionale care necesită montaj"]
["4.4",null,null,null,"Utilaje, echipamente tehnologice şi funcţionale care nu necesită\nmontaj şi echipamente de transport"]
["4.5",null,null,null,"Dotări"]
["4.6",null,null,null,"Active necorporale"]
[null,null,null,null,"TOTAL III ( fără TVA)",null,null,null,null,null,null,null,null,null,null,null,null,null,null,null,null,null,null,null,null,null,null,null,null,null,null,null,null,null,null,null,null,null,null,null,null,null,{"$f":"SUM(AQ28:AY31)","v":0},null,null,null,null,null,null,null,null,{"$f":"SUM(AZ28:BI31)","v":0}]
["TOTAL ( TOTAL I + TOTAL II +TOTAL III) fără TVA",null,null,null,null,null,null,null,null,null,null,null,null,null,null,null,null,null,null,null,null,null,null,null,null,null,null,null,null,null,null,null,null,null,null,null,null,null,null,null,null,null,{"$f":"AQ32+AQ26+AQ23","v":0},null,null,null,null,null,null,null,null,{"$f":"AZ32+AZ26+AZ23","v":0}]
["TVA aferent cheltuielilor eligibile şi neeligibile"]
["TOTAL DEVIZ PE OBIECT (inclusiv TVA)",null,null,null,null,null,null,null,null,null,null,null,null,null,null,null,null,null,null,null,null,null,null,null,null,null,null,null,null,null,null,null,null,null,null,null,null,null,null,null,null,null,{"$f":"AQ33+AZ33+AQ34+AZ34","v":0}]
[]
["Notă: Pentru a adăuga o nouă anexă accesaţi foaia (sheet) corespunzătoare sau click aici"]

{"sheet":"Anexa 3","index":3,"n_rows":47,"n_cols":52,"rows_kept":47,"cut":false,"hidden":false,"merged":[[9,7,9,41],[9,42,9,50],[9,51,9,60],[11,0,11,60],[12,0,12,60],[10,1,10,60],[7,7,7,41],[7,42,8,60],[8,7,8,41],[14,0,14,3],[14,4,14,41],[14,42,14,50],[14,51,14,60],[15,0,15,3],[15,4,15,41],[15,42,15,50],[15,51,15,60],[13,0,13,60],[16,0,16,3],[16,4,16,41],[16,42,16,50],[16,51,16,60],[17,0,17,3],[17,4,17,41],[17,42,17,50],[17,51,17,60],[18,0,18,3],[18,4,18,41],[18,42,18,50],[18,51,18,60],[19,0,19,3],[19,4,19,41],[19,42,19,50],[19,51,19,60],[20,0,20,3],[20,4,20,41],[20,42,20,50],[20,51,20,60],[21,0,21,3],[21,4,21,41],[21,42,21,50],[21,51,21,60],[22,0,22,3],[22,4,22,41],[22,42,22,50],[22,51,22,60],[23,0,23,3],[23,4,23,41],[23,42,23,50],[23,51,23,60],[24,0,24,3],[24,4,24,41],[24,42,24,50],[24,51,24,60],[28,0,28,60],[29,0,29,3],[29,4,29,41],[29,42,29,50],[29,51,29,60],[30,0,30,60],[25,0,25,3],[25,4,25,41],[25,42,25,50],[25,51,25,60],[27,0,27,3],[27,4,27,41],[27,42,27,50],[27,51,27,60],[26,0,26,41],[26,42,26,60],[31,0,31,3],[31,4,31,41],[31,42,31,50],[31,51,31,60],[32,0,32,3],[32,4,32,41],[32,42,32,50],[32,51,32,60],[33,0,33,3],[33,4,33,41],[33,42,33,50],[33,51,33,60],[34,0,34,3],[34,4,34,41],[34,42,34,50],[34,51,34,60],[35,0,35,3],[35,4,35,41],[35,42,35,50],[35,51,35,60],[36,0,36,3],[36,4,36,41],[36,42,36,50],[36,51,36,60],[37,4,37,41],[37,42,37,50],[37,51,37,60],[38,0,38,3],[38,4,38,41],[38,42,38,50],[38,51,38,60],[39,0,39,3],[39,4,39,41],[39,42,39,50],[39,51,39,60],[37,0,37,3],[43,51,43,60],[44,0,44,3],[44,4,44,41],[44,42,44,60],[46,0,46,44],[40,0,40,3],[40,4,40,41],[40,42,40,50],[40,51,40,60],[41,0,41,3],[41,4,41,41],[41,42,41,50],[41,51,41,60],[42,0,42,3],[42,4,42,41],[42,42,42,50],[42,51,42,60],[43,0,43,3],[43,4,43,41],[43,42,43,50]]}
[]
[]
[]
[]
[]
[]
[]
[null,null,null,null,null,null,null,null,null,null,null,null,null,null,null,null,null,null,null,null,null,null,null,null,null,null,null,null,null,null,null,null,null,null,null,null,null,null,null,null,null,null,"Anexa A3\nHG 907/2016"]
[]
[]
[null,"Deviz capitolul 2- Cheltuieli pentru asigurarea utilităţilor necesare obiectivului - EURO"]
[]
[]
["(Titlu deviz)"]
["Nr.crt",null,null,null,"Specificaţie",null,null,null,null,null,null,null,null,null,null,null,null,null,null,null,null,null,null,null,null,null,null,null,null,null,null,null,null,null,null,null,null,null,null,null,null,null,"Valoare eligibilă",null,null,null,null,null,null,null,null,"Valoare\nneeligibilă"]
[1,null,null,null,"Alimentare cu apă"]
[2,null,null,null,"Canalizare"]
[3,null,null,null,"Alimentare cu gaze naturale"]
[4,null,null,null,"Alimentare cu agent termic"]
[5,null,null,null,"Alimentare cu energie electrică"]
[6,null,null,null,"Telecomunicaţii (telefonie, radio-tv,etc)"]
[7,null,null,null,"Drumuri de acces"]
[8,null,null,null,"Căi ferate industriale"]
[9,null,null,null,"Alte utilități"]
[null,null,null,null,"TOTAL DEVIZ CAPITOLUL 2",null,null,null,null,null,null,null,null,null,null,null,null,null,null,null,null,null,null,null,null,null,null,null,null,null,null,null,null,null,null,null,null,null,null,null,null,null,{"$f":"SUM(AQ16:AY24)","v":0},null,null,null,null,null,null,null,null,{"$f":"SUM(AZ16:BI24)","v":0}]
[null,null,null,null,"Valoare TVA aferentă cheltuielilor eligibile şi neeligibile"]
["TOTAL DEVIZ CAPITOLUL 2 (inclusiv TVA)",null,null,null,null,null,null,null,null,null,null,null,null,null,null,null,null,null,null,null,null,null,null,null,null,null,null,null,null,null,null,null,null,null,null,null,null,null,null,null,null,null,{"$f":"AQ25+AZ25+AQ26+AZ26","v":0}]
[]
[" Deviz capitolul 5 - Alte cheltuieli - EURO"]
["Nr.crt",null,null,null,"Specificaţie",null,null,null,null,null,null,null,null,null,null,null,null,null,null,null,null,null,null,null,null,null,null,null,null,null,null,null,null,null,null,null,null,null,null,null,null,null,"Valoare eligibilă",null,null,null,null,null,null,null,null,"Valoare\nneeligibilă"]
[]
["5.1 ",null,null,null,"Organizare de şantier",null,null,null,null,null,null,null,null,null,null,null,null,null,null,null,null,null,null,null,null,null,null,null,null,null,null,null,null,null,null,null,null,null,null,null,null,null,{"$f":"SUM(AQ33:AY34)","v":0},null,null,null,null,null,null,null,null,{"$f":"SUM(AZ33:BI34)","v":0}]
[null,null,null,null,"5.1.1 Lucrări de construcţii şi instalaţii aferente organizării de şantier"]
[null,null,null,null,"5.1.2 Cheltuieli conexe organizării de şantier"]
["5.2",null,null,null,"Comisioane, cote, taxe, costul creditului",null,null,null,null,null,null,null,null,null,null,null,null,null,null,null,null,null,null,null,null,null,null,null,null,null,null,null,null,null,null,null,null,null,null,null,null,null,{"$f":"SUM(AQ37:AY40)","v":0},null,null,null,null,null,null,null,null,{"$f":"SUM(AZ36:BI40)","v":0}]
[null,null,null,null,"5.2.1. Comisioanele şi dobânzile aferente creditului băncii finanţatoare",null,null,null,null,null,null,null,null,null,null,null,null,null,null,null,null,null,null,null,null,null,null,null,null,null,null,null,null,null,null,null,null,null,null,null,null,null,1]
[null,null,null,null,"5.2.2. Cota aferentă ISC pentru controlul calităţii lucrărilor de construcţii"]
[null,null,null,null,"5.2.3. Cota aferentă ISC pentru controlul statului în amenajarea teritoriului, urbanism şi pentru autorizarea lucrărilor de construcţii"]
[null,null,null,null,"5.2.4. Cota aferentă Casei Sociale a Constructorilor - CSC"]
[null,null,null,null,"5.2.5. Taxe pentru acorduri, avize conforme şi autorizaţia de construire/desfiinţare"]
["5.3",null,null,null," Cheltuieli diverse si neprevazute"]
["5.4",null,null,null,"Cheltuieli pentru informare și publicitate",null,null,null,null,null,null,null,null,null,null,null,null,null,null,null,null,null,null,null,null,null,null,null,null,null,null,null,null,null,null,null,null,null,null,null,null,null,null,null,null,null,null,null,null,null,null,0]
[null,null,null,null,"TOTAL DEVIZ CAPITOLUL 5",null,null,null,null,null,null,null,null,null,null,null,null,null,null,null,null,null,null,null,null,null,null,null,null,null,null,null,null,null,null,null,null,null,null,null,null,null,{"$f":"AQ32+AQ35+AQ41","v":0},null,null,null,null,null,null,null,null,{"$f":"AZ42+AZ41+AZ35+AZ32","v":0}]
[null,null,null,null,"VALOARE TVA aferentă cheltuielilor eligibile şi neeligibile"]
[null,null,null,null,"TOTAL DEVIZ CAPITOLUL 5 ( inclusiv TVA)",null,null,null,null,null,null,null,null,null,null,null,null,null,null,null,null,null,null,null,null,null,null,null,null,null,null,null,null,null,null,null,null,null,null,null,null,null,{"$f":"AQ43+AZ43+AQ44+AZ44","v":0}]
[]
["Notă: Pentru a adăuga o nouă anexă accesaţi foaia (sheet) corespunzătoare sau click aici"]